Workbook

Sheet Cover

Sheet 1.CAPACITIES
B9: Crop Year | E9: 2011/12 | F9: 2012/13 | G9: 2013/14 | H9: 2014/15 | I9: 2015/16 | J9: 2016/17 | K9: 2017/18 | L9: 2018/19 | M9: 2019/20 | O9: Production Flexibility by Mill
B11: Crushing capacity | C11: '000 tons | E11: 40000 | F11: 40000 | G11: 37900 | H11: 36400 | I11: 36400 | J11: 34600 | K11: 34600 | L11: 32100 | M11: 32200
B13: Installed power capacity | C13: MW | E13: 487 | F13: 540 | G13: 532 | H13: 532 | I13: 532 | J13: 519 | K13: 519 | L13: 489 | M13: 476
B15: Sugar Storage Capacity | C15: '000 tons | E15: 754 | F15: 889 | G15: 754 | H15: 765 | I15: 614 | J15: 473 | K15: 473 | L15: 280 | M15: 245
B17: Ethanol Storage Capacity | C17: '000 m³ | E17: 829 | F17: 864 | G17: 829 | H17: 829 | I17: 707 | J17: 658 | K17: 658 | L17: 580 | M17: 593

Sheet 2.PRODUCTION
E5: 2011/12 Crop Year | J5: 2012/13 Crop Year | O5: 2013/14 Crop Year | T5: 2014/15 Crop Year | Y5: 2015/16 Crop Year | AD5: 2016/17 Crop Year | AI5: 2017/18 Crop Year | AN5: 2018/19 Crop Year | AS5: 2019/20 Crop Year | AX5: 2020/21 Crop Year | BC5: TOTAL CROP YEAR
BC7: FY12 | BD7: FY13 | BE7: FY14 | BF7: FY15
B9: Crop Year | E9: 1Q12 | F9: 2Q12 | G9: 3Q12 | H9: 4Q12 | J9: 1Q13 | K9: 2Q13 | L9: 3Q13 | M9: 4Q13 | O9: 1Q14 | P9: 2Q14 | Q9: 3Q14 | R9: 4Q14 | T9: 1Q15 | U9: 2Q15 | V9: 3Q15 | W9: 4Q15 | Y9: 1Q16 | Z9: 2Q16 | AA9: 3Q16 | AB9: 4Q16 | AD9: 1Q17 | AE9: 2Q17 | AF9: 3Q17 | AG9: 4Q17 | AI9: 1Q18 | AJ9: 2Q18 | AK9: 3Q18 | AL9: 4Q18 | AN9: 1Q19 | AO9: 2Q19 | AP9: 3Q19 | AQ9: 4Q19 | AS9: 1Q20 | AT9: 2Q20 | AU9: 3Q20 | AV9: 4Q20 | AX9: 1Q21 | AY9: 2Q21 | AZ9: 3Q21 | BA9: 4Q21 | BC9: 2011/12 | BD9: 2012/13 | BE9: 2013/14 | BF9: 2014/15 | BG9: 2015/16 | BH9: 2016/17 | BI9: 2017/18 | BJ9: 2018/19 | BK9: 2019/20
B11: Operational Performance ¹
B13: Crushing Volume | C13: '000 tons | E13: 9541.00918 | F13: 12957.7045 | G13: 4198.25044 | H13: 816.94804 | J13: 6031.06816 | K13: 13933.99919 | L13: 8874.04122 | M13: 694.10098 | O13: 9223.83968 | P13: 12491.89289 | Q13: 7345.7192 | R13: 947.87794 | T13: 9737.32601 | U13: 11318.56179 | V13: 5771.80199 | W13: 1486.95865 | Y13: 8576.00414 | Z13: 12080.3546 | AA13: 7920.13003 | AB13: 2382.36208 | AD13: 9036.48872 | AE13: 12226.40731 | AF13: 7867.9956 | AG13: 2404.52496 | AI13: 9621.08562 | AJ13: 13080.02486 | AK13: 6399.51797 | AL13: 3565.75255 | AN13: 11267 | AO13: 11808 | AP13: 4926.798 | AQ13: 1161.856 | AS13: =SUM(AS14:AS15) -> 10883 | AT13: =SUM(AT14:AT15) -> 11823 | AU13: =SUM(AU14:AU15) -> 3197 | AV13: =SUM(AV14:AV15) -> 1142 | AX13: =SUM(AX14:AX15) -> 11633 | AY13: =SUM(AY14:AY15) -> 11619.948 | BC13: 27513.91216 | BD13: 29533.20955 | BE13: 30009.32971 | BF13: 28314.64844 | BG13: 30958.85085 | BH13: 31535.41659 | BI13: =SUM(BI14:BI15) -> 32666.381 | BJ13: =SUM(BJ14:BJ15) -> 29163.493 | BK13: =SUM(BK14:BK15) -> 27044.44132
B14: Own | E14: 6309.57581 | F14: 7408.285991 | G14: 3002.278561 | H14: 565.74506 | J14: 4098.402589 | K14: 7912.428044 | L14: 5965.631525 | M14: 532.55686 | O14: 5905.573918 | P14: 6560.371059 | Q14: 4601.238228 | R14: 555.75106 | T14: 5999.323319 | U14: 6457.471338 | V14: 3679.071262 | W14: 1112.020218 | Y14: 5371.796647 | Z14: 6867.665185 | AA14: 5245.672255 | AB14: 2019.364323 | AD14: 5420.64353 | AE14: 6781.3429 | AF14: 5811.79577 | AG14: 2169.75583 | AI14: 5584.98299 | AJ14: 7855.88945 | AK14: 4484.18232 | AL14: 3107.30708 | AN14: 6720 | AO14: 7110 | AP14: 3560.672 | AQ14: 1122.816 | AS14: 6558 | AT14: 6937 | AU14: 2273 | AV14: 1013 | AX14: 6935 | AY14: 6300.113 | BC14: 17285.88542 | BD14: 18509.01902 | BE14: 17622.93426 | BF14: 17247.88614 | BG14: 19504.49841 | BH14: 20183.53803 | BI14: 21032.36184 | BJ14: 18512.981 | BK14: 16780.70556
B15: Third Parties | E15: 3231.43337 | F15: 5549.418509 | G15: 1195.971879 | H15: 251.20298 | J15: 1932.665571 | K15: 6021.571146 | L15: 2908.409695 | M15: 161.54412 | O15: 3318.265762 | P15: 5931.521831 | Q15: 2744.480972 | R15: 392.12688 | T15: 3738.002691 | U15: 4861.090452 | V15: 2092.730728 | W15: 374.938432 | Y15: 3204.207493 | Z15: 5212.689415 | AA15: 2674.457775 | AB15: 362.997757 | AD15: 3615.84519 | AE15: 5445.06441 | AF15: 2056.19983 | AG15: 234.76913 | AI15: 4036.10263 | AJ15: 5224.13541 | AK15: 1915.33565 | AL15: 458.44547 | AN15: 4547 | AO15: 4698 | AP15: 1366.126 | AQ15: 39.04 | AS15: 4325 | AT15: 4886 | AU15: 924 | AV15: 129 | AX15: 4698 | AY15: 5319.835 | BC15: 10228.02674 | BD15: 11024.19053 | BE15: 12386.39545 | BF15: 11066.7623 | BG15: 11454.35244 | BH15: 11351.87856 | BI15: 11634.01916 | BJ15: 10650.512 | BK15: 10263.73577
B16: TCH ² | C16: ton/ha | E16: 79.00415719 | F16: 68.09 | G16: 62.22 | H16: 44.23 | J16: 76.22020927 | K16: 74.74906768 | L16: 68.26502257 | M16: 38.09195414 | O16: 80.40507687 | P16: 72.73 | Q16: 63.87 | R16: 47.10379302 | T16: 74.09632545 | U16: 67.56755742 | V16: 60.1725295 | W16: 54.96983033 | Y16: 83.65796246 | Z16: 78.46753243 | AA16: 71.13548668 | AB16: 68.54958977 | AD16: 91.32 | AE16: 78.17411355 | AF16: 73.38554955 | AG16: 64.25485961 | AI16: 89.69315678 | AJ16: 82.04746159 | AK16: 70.67471167 | AL16: 62.72074483 | AN16: 85.2 | AO16: 72.2 | AP16: 61.64 | AQ16: 81.33 | AS16: 88.4 | AT16: 78.8 | AU16: 68.2 | AV16: 74.6 | AX16: 94.5 | AY16: 82.82 | BC16: 69.00668508 | BD16: 71.06428892 | BE16: 71.00131279 | BF16: 66.61463759 | BG16: 76.15 | BH16: 77.90283055 | BI16: 79.67684637 | BJ16: 73.75 | BK16: 82.9
B17: Product TRS ³ | C17: kg/Ton | E17: 120.1211232 | F17: 141.5029003 | G17: 135.4819685 | H17: 124.5766936 | J17: 119.9601971 | K17: 136.2370892 | L17: 137.1930865 | M17: 127.4221655 | O17: 118.1541627 | P17: 131.156799 | Q17: 122.5552632 | R17: 124.7188191 | T17: 118.4169992 | U17: 135.8895939 | V17: 133.0817529 | W17: 124.2832812 | Y17: 117.0959089 | Z17: 137.4660408 | AA17: 130.5593499 | AB17: 103.5420268 | AD17: 119.5133021 | AE17: 137.6390733 | AF17: 133.6532893 | AG17: 105.5345302 | AI17: 120.3539091 | AJ17: 138.5671081 | AK17: 135.6229417 | AL17: 103.4893393 | AN17: 120.6 | AO17: 143.8 | AP17: 130.08 | AQ17: 104.4 | AS17: 115.3 | AT17: 138.7 | AU17: 140.3 | AV17: 102.3 | AX17: 129 | AY17: 153.3 | BC17: 132.6679688 | BD17: 132.9930016 | BE17: 124.8513584 | BF17: 128.6992029 | BG17: 127.45 | BH17: 129.0031597 | BI17: 128.7976522 | BJ17: 130.94 | BK17: 128
B18: Mechanization | C18: % | E18: 0.9240936094 | F18: 0.887 | G18: 0.889 | H18: 0.593 | J18: 0.929032538 | K18: 0.9395307059 | L18: 0.9301747079 | M18: 0.7841509609 | O18: 0.9624752666 | P18: 0.956 | Q18: 0.941 | R18: 0.7357018476 | T18: 0.9581537533 | U18: 0.9581548857 | V18: 0.9467319101 | W18: 0.8224559027 | Y18: 0.97736553 | Z18: 0.9726350894 | AA18: 0.9673360445 | AB18: 0.9399554551 | AD18: 0.9895112767 | AE18: 0.9825887416 | AF18: 0.9713144754 | AG18: 0.9654 | AI18: 0.9905812912 | AJ18: 0.977 | AK18: =97.5241436097382% -> 0.9752414361 | AL18: 0.9478176546 | AN18: 0.995 | AO18: 0.977 | AP18: 0.98 | AQ18: 1 | AS18: 0.972 | AT18: 0.932 | AU18: 0.999 | AV18: 1 | AX18: 1 | AY18: 0.999 | BC18: 0.8915238015 | BD18: 0.9297256834 | BE18: 0.9473429592 | BF18: 0.949 | BG18: 0.9691295137 | BH18: 0.9793555109 | BI18: 0.9801379059 | BJ18: 0.989 | BK18: 1
B19: Sugar Mix | C19: % | E19: 0.5196403042 | F19: 0.6106834065 | G19: 0.5441179447 | H19: 0.3907420693 | J19: 0.5537660553 | K19: 0.6153511464 | L19: 0.5535528594 | M19: 0.3362472166 | O19: 0.4499254546 | P19: 0.5422725344 | Q19: 0.4164601081 | R19: 0.346501776 | T19: 0.4790553717 | U19: 0.4670174419 | V19: 0.4646673812 | W19: 0.3689038259 | Y19: 0.4622681844 | Z19: 0.4932972365 | AA19: 0.4375140157 | AB19: 0.2989566144 | AD19: 0.515583341 | AE19: 0.5318013596 | AF19: 0.4780474334 | AG19: 0.4120421483 | AI19: 0.5299965002 | AJ19: 0.5084487946 | AK19: 0.3976103361 | AL19: 0.313818691 | AN19: 0.351 | AO19: 0.401 | AP19: 0.24 | AQ19: 0.168 | AS19: 0.337 | AT19: 0.365 | AU19: 0.285 | AV19: 0.132 | AX19: 0.516 | AY19: 0.5584665507 | BC19: 0.596007438 | BD19: 0.6099555862 | BE19: 0.5106852581 | BF19: 0.4982085872 | BG19: 0.4589339699 | BH19: 0.5067322322 | BI19: 0.4748954058 | BJ19: 0.349 | BK19: 0.347
B20: Capacity Utilization | C20: % | E20: 0 | F20: 0 | G20: 0 | H20: 0.687847804 | J20: 0 | K20: 0 | L20: 0 | M20: 0.7373302387 | O20: 0 | P20: 0 | Q20: 0 | R20: 0.792 | T20: 0 | U20: 0 | V20: 0 | W20: 0.778 | AD20: 0 | AE20: 0 | AF20: - | AG20: 0.866 | AI20: - | AJ20: - | AK20: - | AL20: 0.9441150578 | AN20: 0 | AO20: 0 | AP20: 0 | AQ20: 0.909 | AS20: 0 | AT20: 0 | AU20: 0 | AV20: 0.84 | AX20: 0 | AY20: 0 | BC20: 0.687847804 | BD20: 0.7373302387 | BE20: 0.792 | BF20: 0.778 | BG20: 0.8505178805 | BH20: 0.866 | BI20: 0.944 | BJ20: 0.909 | BK20: 0.84
B22: Production ¹
B24: TRS Product | C24: '000 tons | E24: 1136.708876 | F24: 1816.27381 | G24: 577.1467217 | H24: 105.4690064 | J24: 671.388096 | K24: 1892.136876 | L24: 1214.391506 | M24: 81.98016984 | O24: 1092.093062 | P24: 1649.737315 | Q24: 900.1877422 | R24: 124.2141246 | T24: 1140.384764 | U24: 1543.458481 | V24: 780.5047815 | W24: 187.8709326 | Y24: 988.9528413 | Z24: 1645.896229 | AA24: 1016.903188 | AB24: 237.5473499 | AD24: 1057.864435 | AE24: 1634.066745 | AF24: 1004.951622 | AG24: 227.4316044 | AI24: 1157.643326 | AJ24: 1786.558549 | AK24: 854.9085915 | AL24: 357.9712809 | AN24: 1358 | AO24: 1694 | AP24: 653.072985 | AQ24: 100.582551 | AS24: 1266 | AT24: 1660 | AU24: 470 | AV24: 104 | AX24: 1498 | AY24: 1766.895913 | BC24: 3635.598414 | BD24: 3859.896648 | BE24: 3766.232244 | BF24: 3652.21896 | BG24: =SUM(Y24:AB24) -> 3889.299609 | BH24: 3924.384251 | BI24: 4157.081747 | BJ24: 3806.136962 | BK24: 3500
B25: Sugar | E25: 590.6797461 | F25: 1109.168278 | G25: 314.035888 | H25: 41.21117781 | J25: 371.7919375 | K25: 1164.328596 | L25: 672.2298904 | M25: 27.56560392 | O25: 491.3604675 | P25: 894.6072347 | Q25: 374.8922844 | R25: 43.0404148 | T25: 546.3074471 | U25: 720.8220317 | V25: 362.6751129 | W25: 69.30630582 | Y25: 457.1614344 | BC25: 2055.095089 | BD25: 2235.916028 | BE25: 1803.900402 | BF25: 1699.110897 | BG25: 1699.110897
B26: Ethanol | E26: 546.02913 | F26: 707.1055327 | G26: 263.1108337 | H26: 64.25782859 | J26: 299.5961585 | K26: 727.8082802 | L26: 542.1616154 | M26: 54.41456592 | O26: 600.7325947 | P26: 755.1300799 | Q26: 525.2954578 | R26: 81.17370985 | T26: 594.077317 | U26: 822.6364497 | V26: 417.8296686 | W26: 118.5646268 | Y26: 531.7914069 | BC26: 1580.503325 | BD26: 1623.98062 | BE26: 1962.331842 | BF26: 1953.108062 | BG26: 1953.108062
B28: Sugar | C28: '000 tons | E28: 564.2011546 | F28: 1059.452315 | G28: 299.842934 | H28: 39.26743955 | J28: 355.251291 | K28: 1112.270047 | L28: 642.165198 | M28: 26.28755 | O28: 469.493196 | P28: 854.55228 | Q28: 358.185067 | R28: 41.0104 | T28: 521.95466 | U28: 688.531 | V28: 346.37168 | W28: 66.15095 | Y28: 436.786393 | Z28: 775.59057 | AA28: 424.947499 | AB28: 67.79884 | AD28: 521.314547 | AE28: 830.374427 | AF28: 459.11041 | AG28: 89.573683 | AI28: 586.862943 | AJ28: 868.716284 | AK28: 324.927839 | AL28: 107.319685 | AN28: 456 | AO28: 650 | AP28: 150 | AQ28: 16.113 | AS28: 408 | AT28: 614 | AU28: 128 | AV28: 13 | AX28: 739 | AY28: 943.701 | BC28: 1962.763843 | BD28: 2135.974086 | BE28: 1723.240943 | BF28: 1623.00829 | BG28: =SUM(Y28:AB28) -> 1705.123302 | BH28: 1900.439617 | BI28: 1887.826751 | BJ28: 1271.886 | BK28: 1163
B29: Ethanol | C29: '000 m³ | E29: 320.59045 | F29: 414.432777 | G29: 154.916928 | H29: 37.97336 | J29: 176.035508 | K29: 425.823546 | L29: 318.3118971 | M29: 32.131331 | O29: 351.3633415 | P29: 441.5414031 | Q29: 308.892559 | R29: 47.739659 | T29: 350.313233 | U29: 485.170771 | V29: 246.138534 | W29: 69.892057 | Y29: 313.972988 | Z29: 489.273457 | AA29: 336.787796 | AB29: 98.885079 | AD29: 301.266521 | AE29: 448.014158 | AF29: 309.13121 | AG29: 79.298753 | AI29: 320.313048 | AJ29: 515.077834 | AK29: 304.738305 | AL29: 145.911851 | AN29: 522 | AO29: 599 | AP29: 293 | AQ29: 49.378 | AS29: 494 | AT29: 600 | AU29: 198 | AV29: 54 | AX29: 426 | AY29: 459.059 | BC29: 927.913515 | BD29: 952.3022821 | BE29: 1149.536963 | BF29: 1151.514595 | BG29: =SUM(Y29:AB29) -> 1238.91932 | BH29: 1137.710642 | BI29: 1286.041038 | BJ29: 1463.719 | BK29: 1346
B30: Cogeneration for sale | C30: GWh | E30: 197.007835 | F30: 274.010323 | G30: 86.73672 | H30: 13.10681 | J30: 120.512339 | K30: 282.423386 | L30: 198.97987 | M30: 17.096113 | O30: 197.255136 | P30: 294.62281 | Q30: 177.32155 | R30: 42.959 | T30: 268.170277 | U30: 357.527586 | V30: 218.646014 | W30: 51.668331 | Y30: 265.725597 | Z30: 369.8072 | AA30: 220.384903 | AB30: 73.442635 | AD30: 237.28041 | AE30: 319.285323 | AF30: 227.83589 | AG30: 59.031505 | AI30: 278.328896 | AJ30: 349.833365 | AK30: 173.879981 | AL30: 89.877105 | AN30: 317 | AO30: 348.4 | AP30: 158.5 | AQ30: 46.972 | AS30: 311.1 | AT30: 346 | AU30: 124 | AV30: 30.7 | AX30: 344.5 | AY30: 362.04 | BC30: 570.861688 | BD30: 619.011708 | BE30: 712.158496 | BF30: 896.012208 | BG30: =SUM(Y30:AB30) -> 929.360335 | BH30: 843.433128 | BI30: 891.919347 | BJ30: 870.452 | BK30: 811.7
B32: ¹ Ex-Nordeste Cluster from 4Q19 (18/19 crop)
B33: ² Considers only own cane until 3Q20
B34: ³ Cane TRS until 4Q20. From 1Q21, Product TRS.

Sheet 3.REVENUE
E5: 2011/12 Crop Year | J5: 2012/13 Crop Year | O5: 2013/14 Crop Year | T5: 2014/15 Crop Year | Y5: 2015/16 Crop Year | AD5: 2016/17 Crop Year | AI5: 2017/18 Crop Year | AN5: 2018/19 Crop Year | AS5: 2019/20 Crop Year | AX5: 2020/21 Crop Year | BC5: TOTAL CROP YEAR
BC7: FY12 | BD7: FY13 | BE7: FY14 | BF7: FY15
B9: Crop Year | E9: 1Q12 | F9: 2Q12 | G9: 3Q12 | H9: 4Q12 | J9: 1Q13 | K9: 2Q13 | L9: 3Q13 | M9: 4Q13 | O9: 1Q14 | P9: 2Q14 | Q9: 3Q14 | R9: 4Q14 | T9: 1Q15 | U9: 2Q15 | V9: 3Q15 | W9: 4Q15 | Y9: 1Q16 | Z9: 2Q16 | AA9: 3Q16 | AB9: 4Q16 | AD9: 1Q17 | AE9: 2Q17 | AF9: 3Q17 | AG9: 4Q17 | AI9: 1Q18 | AJ9: 2Q18 | AK9: 3Q18 | AL9: 4Q18 | AN9: 1Q19 | AO9: 2Q19 | AP9: 3Q19 | AQ9: 4Q19 | AS9: 1Q20 | AT9: 2Q20 | AU9: 3Q20 | AV9: 4Q20 | AX9: 1Q21 | AY9: 2Q21 | AZ9: 3Q21 | BA9: 4Q21 | BC9: 2011/12 | BD9: 2012/13 | BE9: 2013/14 | BF9: 2014/15 | BG9: 2015/16 | BH9: 2016/17 | BI9: 2017/18 | BJ9: 2018/19 | BK9: 2019/20
B11: Net Revenue (R$ Million) ¹ | E11: 855.4077304 | F11: 1111.583 | G11: 837.151 | H11: 598.7529911 | J11: 897.4209905 | K11: 1310.683 | L11: 980.607 | M11: 963.498 | O11: 1065.208 | P11: 1333.94 | Q11: 1015.897 | R11: 852.478 | T11: 911.098 | U11: 1111.213 | V11: 1031.574 | W11: 1459.29574 | Y11: 1362.426 | Z11: 1740.243 | AA11: 1693.157 | AB11: 1366.822 | AD11: 1672.682 | AE11: 2229.541 | AF11: 1555.847839 | AG11: 1572.298 | AI11: 1954.856167 | AJ11: 1829.649287 | AK11: 1540.979491 | AL11: 1955.927 | AN11: =+AN13+AN16+AN19+AN20 -> 1917 | AO11: =+AO13+AO16+AO19+AO20 -> 1503.159 | AP11: =+AP13+AP16+AP19+AP20 -> 1628.856863 | AQ11: =+AQ13+AQ16+AQ19+AQ20 -> 1273.103 | AS11: =+AS13+AS16+AS19+AS20 -> 1752.232 | AT11: =+AT13+AT16+AT19+AT20 -> 1752.029 | AU11: =+AU13+AU16+AU19+AU20 -> 1421 | AV11: =+AV13+AV16+AV19+AV20 -> 1877.717 | AX11: =+AX13+AX16+AX19+AX20 -> 2688.108 | AY11: =+AY13+AY16+AY19+AY20 -> 3045.296059 | BC11: 3402.895 | BD11: 4152.209 | BE11: 4267.523 | BF11: 4513.181682 | BG11: =SUM(Y11:AB11) -> 6162.648 | BH11: 7111.800045 | BI11: 7281.411946 | BJ11: 6322 | BK11: =+BK13+BK16+BK19+BK20 -> 6804.287155
B13: Sugar | E13: 428.9116507 | F13: 700.357 | G13: 533.914 | H13: 199.8779911 | J13: 479.5167425 | K13: 757.452 | L13: 580.39 | M13: 585.454 | O13: 506.514 | P13: 749.952 | Q13: 628.057 | R13: 332.569 | T13: 408.849 | U13: 650.491 | V13: 491.464 | W13: 509.525 | Y13: 399.181 | Z13: 653.141 | AA13: 647.323 | AB13: 599.062 | AD13: 496.978 | AE13: 1073.58 | AF13: 813.969839 | AG13: 411.804 | AI13: 876.9811432 | AJ13: 1039.491761 | AK13: 835.2992837 | AL13: 387.976 | AN13: 464 | AO13: =SUM(AO14:AO15) -> 695.917 | AP13: =SUM(AP14:AP15) -> 401.3701726 | AQ13: =SUM(AQ14:AQ15) -> 166.486 | AS13: =SUM(AS14:AS15) -> 311.464 | AT13: =SUM(AT14:AT15) -> 631.83 | AU13: =SUM(AU14:AU15) -> 484 | AV13: =SUM(AV14:AV15) -> 102.531 | AX13: =SUM(AX14:AX15) -> 715.593 | AY13: =SUM(AY14:AY15) -> 1304.497778 | BC13: 1871.186 | BD13: 2402.812 | BE13: 2217.092 | BF13: 2060.328 | BG13: =SUM(Y13:AB13) -> 2298.707 | BH13: 2863.313989 | BI13: 3139.748188 | BJ13: 1727.579529 | BK13: =SUM(BK14:BK15) -> 1530.531469
B14: Domestic Market | E14: 166.547553 | F14: 172.252 | G14: 185.753 | H14: 129.247 | J14: 116.5825365 | K14: 116.345 | L14: 153.066 | M14: 128.801 | O14: 121.019 | P14: 81.73 | Q14: 126.654 | R14: 110.331 | T14: 98.377 | U14: 125.293 | V14: 135.28 | W14: 157.692 | Y14: 111.566 | Z14: 104.476 | AA14: 193.279 | AB14: 192.902 | AD14: 137.642 | AE14: 161.196 | AF14: 185.378 | AG14: 141.753 | AI14: 86.041 | AJ14: 82.829 | AK14: 117.932 | AL14: 77.958 | AN14: 30 | AO14: 93.019 | AP14: 122.635 | AQ14: 79.013 | AS14: =32951/1000 -> 32.951 | AT14: 53.402 | AU14: 25 | AV14: 87.278 | AX14: 53.871 | AY14: 87.924 | BC14: 696.494 | BD14: 514.793 | BE14: 439.733 | BF14: 516.642 | BG14: 602.223 | BH14: 625.969 | BI14: 364.76 | BJ14: 324.436 | BK14: 199.097
B15: Export Market | E15: 262.3640978 | F15: 528.105 | G15: 348.161 | H15: 70.63099108 | J15: 362.934206 | K15: 641.107 | L15: 427.324 | M15: 456.653 | O15: 385.495 | P15: 668.222 | Q15: 501.403 | R15: 222.238 | T15: 310.472 | U15: 525.198 | V15: 356.184 | W15: 351.833 | Y15: 287.615 | Z15: 548.665 | AA15: 454.044 | AB15: 406.16 | AD15: 359.336 | AE15: 912.384 | AF15: 628.591839 | AG15: 270.051 | AI15: 790.9401432 | AJ15: 956.6627608 | AK15: 717.3672837 | AL15: 310.018 | AN15: 434 | AO15: 602.898 | AP15: 278.7351726 | AQ15: 87.473 | AS15: =278513/1000 -> 278.513 | AT15: 578.428 | AU15: 459 | AV15: 15.253 | AX15: 661.722 | AY15: 1216.573778 | BC15: 1174.692 | BD15: 1888.019 | BE15: 1777.359 | BF15: 1543.686 | BG15: 1696.484 | BH15: 2237.344989 | BI15: 2774.988188 | BJ15: 1403.143529 | BK15: 1331.434469
B16: Ethanol | E16: 383.3563349 | F16: 339.968 | G16: 247.631 | H16: 387.134 | J16: 371.2262629 | K16: 449.873 | L16: 304.102 | M16: 376.956 | O16: 488.364 | P16: 414.061 | Q16: 302.382 | R16: 464.259 | T16: 377.803 | U16: 274.691 | V16: 363.66 | W16: 677.729 | Y16: 356.596 | Z16: 406.774 | AA16: 673.019 | AB16: 634.641 | AD16: 422.277 | AE16: 432.601 | AF16: 473.212 | AG16: 795.373 | AI16: 543.1010242 | AJ16: 362.8315261 | AK16: 597.0442078 | AL16: 739.938 | AN16: 591 | AO16: =SUM(AO17:AO18) -> 670.464 | AP16: =SUM(AP17:AP18) -> 754.5086904 | AQ16: =SUM(AQ17:AQ18) -> 679.747 | AS16: =SUM(AS17:AS18) -> 704.315 | AT16: =SUM(AT17:AT18) -> 758.196 | AU16: =SUM(AU17:AU18) -> 520 | AV16: =SUM(AV17:AV18) -> 969.979 | AX16: =SUM(AX17:AX18) -> 446.785 | AY16: =SUM(AY17:AY18) -> 597.1672814 | BC16: 1351.799 | BD16: 1502.156 | BE16: 1669.066 | BF16: 1693.883 | BG16: 2071.03 | BH16: 2137.912056 | BI16: 2242.914758 | BJ16: 2695.8072 | BK16: =SUM(BK17:BK18) -> 2952.986686
B17: Domestic Market | E17: 341.2603333 | F17: 235.486 | G17: 187.374 | H17: 348.703 | J17: 331.5342213 | K17: 201.277 | L17: 179.144 | M17: 320.906 | O17: 340.91 | P17: 216.91 | Q17: 187.868 | R17: 405.509 | T17: 308.621 | U17: 225.635 | V17: 263.18 | W17: 595.577 | Y17: 319.943 | Z17: 249.528 | AA17: 496.967 | AB17: 595.099 | AD17: 321.096 | AE17: 386.656 | AF17: 473.212 | AG17: 772.89 | AI17: 468.14 | AJ17: 330.633 | AK17: 596.158 | AL17: 738.289 | AN17: 542 | AO17: 563.258 | AP17: 754.152 | AQ17: 677.797 | AS17: =609925/1000 -> 609.925 | AT17: 576.149 | AU17: 509 | AV17: 731.193 | AX17: 208.901 | AY17: 251.487 | BC17: 1112.208 | BD17: 1032.86 | BE17: 1151.197 | BF17: 1393.013 | BG17: 1661.537 | BH17: 1953.854 | BI17: 2133.22 | BJ17: 2537.662 | BK17: 2426.564
B18: Export Market | E18: 42.0960016 | F18: 104.482 | G18: 60.257 | H18: 38.431 | J18: 39.69204156 | K18: 248.596 | L18: 124.958 | M18: 56.05 | O18: 147.454 | P18: 197.151 | Q18: 114.514 | R18: 58.75 | T18: 69.182 | U18: 49.056 | V18: 100.48 | W18: 82.152 | Y18: 36.653 | Z18: 157.246 | AA18: 176.052 | AB18: 39.542 | AD18: 101.181 | AE18: 45.945 | AF18: 0 | AG18: 22.483 | AI18: 74.9610242 | AJ18: 32.19852613 | AK18: 0.8862077802 | AL18: 1.649 | AN18: 49 | AO18: 107.206 | AP18: 0.356690422 | AQ18: 1.95 | AS18: =94390/1000 -> 94.39 | AT18: 182.047 | AU18: 11 | AV18: 238.786 | AX18: 237.884 | AY18: 345.6802814 | BC18: 239.591 | BD18: 469.296 | BE18: 517.869 | BF18: 300.87 | BG18: 409.493 | BH18: 184.058056 | BI18: 109.6947581 | BJ18: 158.1452002 | BK18: 526.4226857
B19: Energy | E19: 33.828 | F19: 50.55340484 | G19: 39.74437917 | H19: 6.403005447 | J19: 39.092 | K19: 90.29062239 | L19: 65.076 | M19: -11.882 | O19: 62.681 | P19: 60.369282 | Q19: 67.977 | R19: 52.325 | T19: 82.346 | U19: 84.53418363 | V19: 78.56 | W19: 38.66534982 | Y19: 54.429 | Z19: 77.504 | AA19: 64.201 | AB19: 37.059 | AD19: 49.168 | AE19: 69.189 | AF19: 65.447 | AG19: 34.957 | AI19: 69.081 | AJ19: 120.284 | AK19: 92.054 | AL19: 68.246 | AN19: 110 | AO19: 120.947 | AP19: 113.719 | AQ19: 105.729 | AS19: =108007/1000 -> 108.007 | AT19: 93.36 | AU19: 69 | AV19: 194.165 | AX19: 116.882 | AY19: 132.041 | BC19: 132.284 | BD19: 182.73 | BE19: 243.351 | BF19: 284.1054403 | BG19: 233.193 | BH19: 218.761 | BI19: 349.665 | BJ19: 450.216 | BK19: 464.508
B20: Other Products | E20: 9.311744765 | F20: 20.70459516 | G20: 15.86162083 | H20: 5.337994553 | J20: 7.586 | K20: 13.06791117 | L20: 31.039 | M20: 12.97 | O20: 7.649 | P20: 109.5579069 | Q20: 17.481 | R20: 3.325 | T20: 42.1 | U20: 101.4968263 | V20: 97.89 | W20: 233.3772026 | Y20: 552.22 | Z20: 602.824 | AA20: 308.614 | AB20: 96.06 | AD20: 704.259 | AE20: 654.171 | AF20: 203.219 | AG20: 330.164 | AI20: 465.693 | AJ20: 307.042 | AK20: 16.582 | AL20: 759.767 | AN20: 752 | AO20: 15.831 | AP20: 359.259 | AQ20: 321.141 | AS20: =628446/1000 -> 628.446 | AT20: 268.643 | AU20: 348 | AV20: 611.042 | AX20: 1408.848 | AY20: 1011.59 | BC20: 47.626 | BD20: 64.511 | BE20: 138.014 | BF20: 474.865242 | BG20: 1559.718 | BH20: 1891.813 | BI20: 1549.084 | BJ20: 1447.931 | BK20: 1856.261
B22: Volume sold (ton ATR) | E22: 988.1647852 | F22: 1202.214695 | G22: 832.0235689 | H22: 776.5888263 | J22: 932.2631331 | K22: 1407.973435 | L22: 1047.344261 | M22: 1127.755571 | O22: 1175.917032 | P22: 1309.133837 | Q22: 983.8685719 | R22: 905.8350127 | T22: 853.1804049 | U22: 1011.099372 | V22: 1003.514672 | W22: 1261.933712 | Y22: 910.4385027 | Z22: 1222.909008 | AA22: 1268.266545 | AB22: 1018.489343 | AD22: 948.2164575 | AE22: 1331.170598 | AF22: 1075.433964 | AG22: 1135.54445 | AI22: 1284.763463 | AJ22: 1312.84756 | AK22: 1286.257072 | AL22: 998.9262186 | AN22: 1043 | AO22: 1236 | AP22: 1098 | AQ22: 787.7121059 | AS22: 875 | AT22: 1214 | AU22: 935 | AV22: 950 | AX22: 957 | AY22: 1488.538435 | BC22: 3798.991876 | BD22: 4515.3364 | BE22: 4374.754453 | BF22: 4129.728161 | BG22: =SUM(Y22:AB22) -> 4420.103398 | BH22: =SUM(AD22:AG22) -> 4490.36547 | BI22: 4882.794313 | BJ22: 4159.212412 | BK22: 3974
B24: Sugar | C24: '000Tons | E24: 500.0812799 | F24: 702.7929621 | G24: 496.2170291 | H24: 246.588209 | J24: 409.2726679 | K24: 781.9498836 | L24: 606.3191618 | M24: 601.9434443 | O24: 531.8540502 | P24: 747.0302778 | Q24: 570.983889 | R24: 336.9818458 | T24: 376.4692945 | U24: 644.6207098 | V24: 519.3970185 | W24: 418.677143 | Y24: 447.5186205 | Z24: 659.5416781 | AA24: 530.3807345 | AB24: 445.2804129 | AD24: 473.9687478 | AE24: 840.3830545 | AF24: 638.6866422 | AG24: 342.47204 | AI24: 664.8635328 | AJ24: 860.2588455 | AK24: 645.312429 | AL24: 317.2242651 | AN24: 387 | AO24: 555 | AP24: 389 | AQ24: 125.1213816 | AS24: =SUM(AS25:AS26) -> 224 | AT24: =SUM(AT25:AT26) -> 503 | AU24: =SUM(AU25:AU26) -> 451 | AV24: =SUM(AV25:AV26) -> 127 | AX24: =SUM(AX25:AX26) -> 539 | AY24: =SUM(AY25:AY26) -> 966.2383933 | BC24: 1945.67948 | BD24: 2399.485158 | BE24: 2186.850063 | BF24: 1959.164166 | BG24: =SUM(Y24:AB24) -> 2082.721446 | BH24: =SUM(AD24:AG24) -> 2295.510484 | BI24: =SUM(AI24:AL24) -> 2487.659072 | BJ24: =SUM(AN24:AQ24) -> 1456.121382 | BK24: =SUM(BK25:BK26) -> 1305
B25: Domestic Market | E25: 184.3121618 | F25: 155.6200321 | G25: 165.7343411 | H25: 151.207109 | J25: 119.4399489 | K25: 132.7794316 | L25: 171.7365925 | M25: 161.505683 | O25: 127.1837401 | P25: 106.6738158 | Q25: 116.105809 | R25: 125.1037118 | T25: 94.72324505 | U25: 128.0022913 | V25: 133.2763735 | W25: 147.536708 | Y25: 99.16864754 | Z25: 124.3689201 | AA25: 149.6579465 | AB25: 146.4667619 | AD25: 95.59631446 | AE25: 97.2887978 | AF25: 117.1569272 | AG25: 100.3072686 | AI25: 48.97991517 | AJ25: 60.34092053 | AK25: 90.36954518 | AL25: 76.08999673 | AN25: 39 | AO25: 74 | AP25: 89 | AQ25: 28.47953657 | AS25: 22 | AT25: 31 | AU25: 21 | AV25: 23 | AX25: 34 | AY25: 56.93963327 | BC25: 656.873644 | BD25: 585.461656 | BE25: 475.0670766 | BF25: 503.5386178 | BG25: =SUM(Y25:AB25) -> 519.662276 | BH25: 410.349308 | BI25: 275.7803776 | BJ25: 230.4795366 | BK25: =SUM(AS25:AV25) -> 97
B26: Export Market | E26: 315.7691181 | F26: 547.17293 | G26: 330.482688 | H26: 95.3811 | J26: 289.832719 | K26: 649.170452 | L26: 434.5825693 | M26: 440.4377613 | O26: 404.6703102 | P26: 640.356462 | Q26: 454.87808 | R26: 211.878134 | T26: 281.7460495 | U26: 516.6184185 | V26: 386.120645 | W26: 271.140435 | Y26: 348.349973 | Z26: 535.172758 | AA26: 380.722788 | AB26: 298.813651 | AD26: 378.3724333 | AE26: 743.0942567 | AF26: 521.529715 | AG26: 242.1647714 | AI26: 615.8836176 | AJ26: 799.917925 | AK26: 554.9428838 | AL26: 241.1342684 | AN26: 348 | AO26: 481 | AP26: 300 | AQ26: 96.641845 | AS26: 202 | AT26: 472 | AU26: 430 | AV26: 104 | AX26: 505 | AY26: 909.29876 | BC26: 1288.805836 | BD26: 1814.023502 | BE26: 1711.782986 | BF26: 1455.625548 | BG26: 1563.05917 | BH26: 1885.161176 | BI26: 2211.878695 | BJ26: 1225.641845 | BK26: =SUM(AS26:AV26) -> 1208
B27: Ethanol | C27: '000 m³ | E27: 271.727384 | F27: 269.569567 | G27: 181.417654 | H27: 303.447512 | J27: 293.119268 | K27: 344.32967 | L27: 241.1890842 | M27: 292.1520173 | O27: 361.5429433 | P27: 306.2282441 | Q27: 227.1464879 | R27: 323.941751 | T27: 269.333073 | U27: 197.880642 | V27: 270.239659 | W27: 486.687429 | Y27: 259.907943 | Z27: 312.418307 | AA27: 419.687745 | AB27: 325.082193 | AD27: 265.398213 | AE27: 265.360217 | AF27: 238.174393 | AG27: 456.335806 | AI27: 345.774617 | AJ27: 242.531298 | AK27: 359.276529 | AL27: 393.370781 | AN27: 377 | AO27: 388 | AP27: 407 | AQ27: 387.596308 | AS27: =SUM(AS28:AS29) -> 376 | AT27: =SUM(AT28:AT29) -> 403 | AU27: =SUM(AU28:AU29) -> 274 | AV27: =SUM(AV28:AV29) -> 479 | AX27: =SUM(AX28:AX29) -> 231 | AY27: =SUM(AY28:AY29) -> 280.0100531 | BC27: 1026.162117 | BD27: 1170.79004 | BE27: 1218.859426 | BF27: 1224.140803 | BG27: 1317.096188 | BH27: 1225.268629 | BI27: 1340.953225 | BJ27: 1559.596308 | BK27: =SUM(BK28:BK29) -> 1532
B28: Domestic Market | E28: 231.61234 | F28: 179.404813 | G28: 142.862505 | H28: 276.847046 | J28: 263.987367 | K28: 167.527138 | L28: 150.4249062 | M28: 252.1543186 | O28: 255.8376502 | P28: 166.774567 | Q28: 139.5594079 | R28: 283.547286 | T28: 224.264551 | U28: 164.506275 | V28: 197.45857 | W28: 432.767795 | Y28: 226.582581 | Z28: 177.189996 | AA28: 294.289243 | AB28: 303.752114 | AD28: 194.282838 | AE28: 228.975811 | AF28: 238.174393 | AG28: 443 | AI28: 303.2232 | AJ28: 219.816122 | AK28: 358.865644 | AL28: 392.550803 | AN28: 361 | AO28: 351 | AP28: 407 | AQ28: 386.713692 | AS28: 334 | AT28: 316 | AU28: 269 | AV28: 367 | AX28: 127 | AY28: 125.0955541 | BC28: 830.726704 | BD28: 834.0937298 | BE28: 845.7189112 | BF28: 1018.997191 | BG28: 1001.813934 | BH28: 1104.433042 | BI28: 1274.455769 | BJ28: 1505.713692 | BK28: =SUM(AS28:AV28) -> 1286
B29: Export Market | E29: 40.115044 | F29: 90.164754 | G29: 38.555149 | H29: 26.600466 | J29: 29.131901 | K29: 176.802532 | L29: 90.764178 | M29: 39.99769872 | O29: 105.705293 | P29: 139.453677 | Q29: 87.58708 | R29: 40.394465 | T29: 45.068522 | U29: 33.374367 | V29: 72.781089 | W29: 53.919634 | Y29: 33.325362 | Z29: 135.228311 | AA29: 125.398502 | AB29: 21.330079 | AD29: 71.115375 | AE29: 36.384406 | AF29: 1.2e-12 | AG29: 12.827364 | AI29: 42.551417 | AJ29: 22.715176 | AK29: 0.410885 | AL29: 0.819978 | AN29: 16 | AO29: 37 | AP29: 0 | AQ29: 0.882616 | AS29: 42 | AT29: 87 | AU29: 5 | AV29: 112 | AX29: 104 | AY29: 154.914499 | BC29: 195.435413 | BD29: 336.6963097 | BE29: 373.140515 | BF29: 205.143612 | BG29: 315.282254 | BH29: 120.327145 | BI29: 66.497456 | BJ29: 53.882616 | BK29: =SUM(AS29:AV29) -> 246
B30: Energy | C30: GWh | E30: 0 | F30: 0 | G30: 0 | H30: 177.089278 | J30: 254.76207 | K30: 568.490101 | L30: 371.575452 | M30: 98.5784601 | O30: 362.2432011 | P30: 394.469551 | Q30: 365 | R30: 176.413357 | T30: 354.7824844 | U30: 461.5260032 | V30: 322.996111 | W30: 117.818824 | Y30: 288.306249 | Z30: 437.0440163 | AA30: 339.188282 | AB30: 331.3697597 | AD30: 362.2990553 | AE30: 482.8847713 | AF30: 403.3404407 | AG30: 227.513549 | AI30: 360.5930275 | AJ30: 563.6461564 | AK30: 385.9823362 | AL30: 373.961885 | AN30: 572 | AO30: 534 | AP30: 532 | AQ30: 481.6814644 | AS30: 314.2202575 | AT30: 346.0774593 | AU30: 390 | AV30: 1463 | AX30: 352.9076721 | AY30: 362.6799161 | BC30: 177.089278 | BD30: 1293.406083 | BE30: 1298.126109 | BF30: 1257.123423 | BG30: 1395.908307 | BH30: 1476.037816 | BI30: =SUM(AI30:AL30) -> 1684.183405 | BJ30: 2119.681464 | BK30: =SUM(AS30:AV30) -> 2513.297717
B32: Price (Net Revenue/Volume)
B34: Sugar | C34: R$/Ton | E34: 857.6838766 | F34: 996.5338838 | G34: 1075.968717 | H34: 810.5740005 | J34: 1171.632111 | K34: 968.6707754 | L34: 957.4272587 | M34: 972.606323 | O34: 952.3552557 | P34: 1003.911116 | Q34: 1099.955729 | R34: 986.9047967 | T34: 1086.008888 | U34: 1009.10658 | V34: 946.2202949 | W34: 1216.987859 | Y34: 891.9874653 | Z34: 990.2952636 | AA34: 1220.487393 | AB34: 1345.358975 | AD34: 1048.545927 | AE34: 1277.488872 | AF34: 1274.443186 | AG34: 1202.445607 | AI34: 1319.039322 | AJ34: 1208.347657 | AK34: 1294.410655 | AL34: 1223.036957 | AN34: 1198.966408 | AO34: 1253.904505 | AP34: 1031.79993 | AQ34: 1330.595921 | AS34: 1390.464286 | AT34: 1256.12326 | AU34: 1073.170732 | AV34: 807.3307087 | AX34: 1327.630798 | AY34: 1350.078601 | BC34: 961.7133856 | BD34: 1001.386482 | BE34: 1013.828994 | BF34: 1051.636221 | BG34: 1103.703524 | BH34: 1247.353915 | BI34: 1262.129615 | BJ34: 1186.425493 | BK34: 1172.821049
B35: Ethanol | C35: R$/m³ | E35: 1410.812297 | F35: 1261.151263 | G35: 1364.977413 | H35: 1275.785711 | J35: 1266.467409 | K35: 1306.518256 | L35: 1260.844789 | M35: 1290.27348 | O35: 1350.777298 | P35: 1288.101605 | Q35: 1331.220231 | R35: 1433.155802 | T35: 1402.735267 | U35: 1388.165094 | V35: 1345.694416 | W35: 1392.534427 | Y35: 1325.180312 | Z35: 1302.01717 | AA35: 1603.618424 | AB35: 1952.247812 | AD35: 1591.107171 | AE35: 1630.240602 | AF35: 1986.829877 | AG35: 1742.955494 | AI35: 1570.679273 | AJ35: 1496.019397 | AK35: 1661.795747 | AL35: 1881.019235 | AN35: 1567.639257 | AO35: 1728 | AP35: 1853.829706 | AQ35: 1753.749935 | AS35: 1873.178191 | AT35: 1881.379653 | AU35: 1897.810219 | AV35: 2025.008351 | AX35: 1934.134199 | AY35: 2132.66372 | BC35: 1317.334735 | BD35: 1283.027656 | BE35: 1369.367102 | BF35: 1383.732162 | BG35: 1572.421224 | BH35: 1744.851705 | BI35: 1672.62714 | BJ35: 1728.528842 | BK35: 1927.537001
B36: Energy | C36: R$/Mwh | E36: 142 | F36: 111.6008279 | G36: 132.661887 | H36: 36.15693462 | J36: 153.4451341 | K36: 153.0332796 | L36: 158.1551169 | M36: 159.2299685 | O36: 173.0356838 | P36: 153.035893 | Q36: 186.3272419 | R36: 296.6045252 | T36: 232.1027774 | U36: 183.1611499 | V36: 243.1504748 | W36: 328.1818532 | Y36: 188.788832 | Z36: 177.3368291 | AA36: 189.2783548 | AB36: 111.8357935 | AD36: 135.7110908 | AE36: 143.28263 | AF36: 162.2624299 | AG36: 153.6479922 | AI36: 191.5760836 | AJ36: 213.403389 | AK36: 238.492779 | AL36: 182.4945342 | AN36: 192.3076923 | AO36: 226.4925094 | AP36: 213.7575188 | AQ36: 219.4998309 | AS36: 190 | AT36: 200.2259713 | AU36: 176.9230769 | AV36: 132.7170198 | AX36: 184 | AY36: 192 | BC36: 109.9957804 | BD36: 149.2285976 | BE36: 187.4884449 | BF36: 225.9792864 | BG36: 167.0546689 | BH36: 148.2082624 | BI36: 207.616937 | BJ36: 212.3979511 | BK36: 184.8201257
B38: Inventories - Variation ²
B40: Sugar | C40: '000 Tons | E40: 206.7354674 | F40: 570.4681132 | G40: 364.3658371 | H40: 158.1258618 | J40: 123.0041677 | K40: 515.3861386 | L40: 576.6487964 | M40: 71.09759715 | O40: 134.4982138 | P40: 355 | Q40: 249.7434892 | R40: 69.68840032 | T40: 238.2583454 | U40: 419.3300539 | V40: 366.8126026 | W40: 75.99723114 | Y40: 185.8216573 | Z40: 419.1492036 | AA40: 371.5615228 | AB40: 68.02906453 | AD40: 155.9412457 | AE40: 252.1933569 | AF40: 190.273493 | AG40: 38.49324894 | AI40: 83.38618286 | AJ40: 299.43 | AK40: 121 | AL40: 52.912 | AN40: 173 | AO40: 302 | AP40: 80 | AQ40: 18.097 | AS40: =214 -> 214 | AT40: 332 | AU40: 120 | AV40: 9 | AX40: 278 | AY40: 370.208 | BC40: 158.1258618 | BD40: 71.09759715 | BE40: 69.68840032 | BF40: 75.99723114 | BG40: 68.02906453 | BH40: =AG40 -> 38.49324894 | BI40: 52.912 | BJ40: 18.097 | BK40: 9
B41: Ethanol | C41: '000 m³ | E41: 157.7836114 | F41: 310.3707641 | G41: 377.034253 | H41: 196.5428896 | J41: 112.7015186 | K41: 246.8165187 | L41: 321.6518169 | M41: 106.6464417 | O41: 115.7406206 | P41: 250 | Q41: 339.6917711 | R41: 95.36464844 | T41: 197.1782738 | U41: 497.1757137 | V41: 472.5571631 | W41: 84.78437524 | Y41: 163.5581021 | Z41: 353.5422734 | AA41: 272.0347541 | AB41: 64.61419151 | AD41: 121.6546196 | AE41: 303.4236247 | AF41: 370.6984406 | AG41: 37.34009687 | AI41: 62.55536425 | AJ41: 344.276 | AK41: 297 | AL41: 67.909 | AN41: 233 | AO41: 459 | AP41: 347 | AQ41: 36.614 | AS41: 186 | AT41: 420 | AU41: 343 | AV41: 33 | AX41: 232 | AY41: 414.849 | BC41: 196.5428896 | BD41: 106.6464417 | BE41: 95.36464844 | BF41: 84.78437524 | BG41: 64.61419151 | BH41: =AG41 -> 37.34009687 | BI41: 67.909 | BJ41: 36.614 | BK41: 33
B43: ¹ From 3Q17, exclude the impact from hedge accounting (HACC) of foreign currency debt on net revenue (non-cash impact)
B44: ² Before 1Q21, represents inventory position at the end of the period. From 1Q21, represents inventory balance variation when compared to the beginning of each crop.

Sheet 4.COGS
E5: 2011/12 Crop Year | J5: 2012/13 Crop Year | O5: 2013/14 Crop Year | T5: 2014/15 Crop Year | Y5: 2015/16 Crop Year | AD5: 2016/17 Crop Year | AI5: 2017/18 Crop Year | AN5: 2018/19 Crop Year | AS5: 2019/20 Crop Year | AX5: 2020/21 Crop Year | BC5: TOTAL CROP YEAR
B9: Crop Year | E9: 1Q12 | F9: 2Q12 | G9: 3Q12 | H9: 4Q12 | J9: 1Q13 | K9: 2Q13 | L9: 3Q13 | M9: 4Q13 | O9: 1Q14 | P9: 2Q14 | Q9: 3Q14 | R9: 4Q14 | T9: 1Q15 | U9: 2Q15 | V9: 3Q15 | W9: 4Q15 | Y9: 1Q16 | Z9: 2Q16 | AA9: 3Q16 | AB9: 4Q16 | AD9: 1Q17 | AE9: 2Q17 | AF9: 3Q17 | AG9: 4Q17 | AI9: 1Q18 | AJ9: 2Q18 | AK9: 3Q18 | AL9: 4Q18 | AN9: 1Q19 | AO9: 2Q19 | AP9: 3Q19 | AQ9: 4Q19 | AS9: 1Q20 | AT9: 2Q20 | AU9: 3Q20 | AV9: 4Q20 | AX9: 1Q21 | AY9: 2Q21 | AZ9: 3Q21 | BA9: 4Q21 | BC9: 2011/12 | BD9: 2012/13 | BE9: 2013/14 | BF9: 2014/15 | BG9: 2015/16 | BH9: 2016/17 | BI9: 2017/18 | BJ9: 2018/19 | BK9: 2019/20
B11: COGS (R$ Million) * | E11: -763.666 | F11: -909.902 | G11: -813.409 | H11: -458.587 | J11: -876.4417549 | K11: -1126.401 | L11: -819.5592161 | M11: -939.2653342 | O11: -1126.778 | P11: -822.59 | Q11: -865.964 | R11: -745.9869536 | T11: -764.158 | U11: -631.058 | V11: -923.83 | W11: -1259.426 | Y11: -1219.954 | Z11: -962.284 | AA11: -1106.043 | AB11: -1111.991 | AD11: -1607.986 | AE11: -1792.968 | AF11: -1307.104 | AG11: -1686.463 | AI11: -2014.258 | AJ11: -1427.629 | AK11: -1155.374 | AL11: -2200.034 | AN11: -1853 | AO11: =+AO13+AO18 -> -1177.837 | AP11: =+AP13+AP18 -> -1521.241 | AQ11: =AQ13+AQ18 -> -1090.061 | AS11: =AS13+AS18 -> -1487.628 | AT11: =+AT13+AT18 -> -1290.815 | AU11: =+AU13+AU18 -> -1217.363 | AV11: =+AV13+AV18 -> -1784.829 | AX11: =AX13+AX18 -> -2297.419718 | AY11: =AY13+AY18 -> -1988.669955 | BC11: -2945.564 | BD11: -3761.667305 | BE11: -3561.318954 | BF11: -3578.472 | BG11: =SUM(Y11:AB11) -> -4400.272 | BH11: =SUM(AD11:AG11) -> -6394.521 | BI11: -6797.295 | BJ11: -5642 | BK11: =+BK13+BK18 -> -5780.635
B13: Cash | E13: -447.314 | F13: -552.406 | G13: -423.541 | H13: -378.877 | J13: -584.425 | K13: -698.226 | L13: -446.089 | M13: -575.05 | O13: -724.699 | P13: -769.966 | Q13: -631.518 | R13: -500.229 | T13: -537.285 | U13: -652.733 | V13: -661.94 | W13: -896.535 | Y13: -1115.421 | Z13: -1232.01 | AA13: -1102.878 | AB13: -835.747 | AD13: -1402.555 | AE13: -1576.204 | AF13: -1039.415 | AG13: -1111.151 | AI13: -1476.918 | AJ13: -1203.813 | AK13: -859.436 | AL13: -1432.403 | AN13: -1481 | AO13: =SUM(AO14:AO17) -> -778.245 | AP13: =SUM(AP14:AP17) -> -1052.861 | AQ13: -875.165 | AS13: =SUM(AS14:AS17) -> -1150.681 | AT13: =SUM(AT14:AT17) -> -843.911 | AU13: =SUM(AU14:AU17) -> -847.228 | AV13: =SUM(AV14:AV17) -> -1286.789 | AX13: =SUM(AX14:AX17) -> -2181.709171 | AY13: =SUM(AY14:AY17) -> -2001.906391 | BC13: -1802.138 | BD13: -2303.79 | BE13: -2626.412 | BF13: -2748.493 | BG13: =SUM(Y13:AB13) -> -4286.056 | BH13: =SUM(AD13:AG13) -> -5129.325 | BI13: -4972.57 | BJ13: -4187.338 | BK13: =SUM(BK14:BK17) -> -4128.609
B14: Personnel | E14: -112.724 | F14: -134.748 | G14: -100.733 | H14: -85.957 | J14: -120.707 | K14: -103.673 | L14: -104.429 | M14: -99.967 | O14: -126.055 | P14: -123.04 | Q14: -113.69 | R14: -95.701 | T14: -94.651 | U14: -118.062 | V14: -140.359 | W14: -122.929 | Y14: -101.765 | Z14: -86.127 | AA14: -139.293 | AB14: -128.216 | AD14: -111.302 | AE14: -119.728 | AF14: -124.173 | AG14: -132.86 | AI14: -173.586 | AJ14: -126.643 | AK14: -162.37 | AL14: -97.589 | AN14: -157 | AO14: -149.017 | AP14: -148.398 | AQ14: -99.061 | AS14: -114.618 | AT14: -120.573 | AU14: -122.123 | AV14: -114.732 | AX14: -117.709 | AY14: -162.239 | BC14: -434.162 | BD14: -428.776 | BE14: -458.486 | BF14: -476.001 | BG14: -455.401 | BH14: -488.063 | BI14: -560.188 | BJ14: -553.038 | BK14: =SUM(AS14:AV14) -> -472.046
B15: Raw Materials | E15: -265.671 | F15: -339.544 | G15: -181.812 | H15: -171.908 | J15: -270.026 | K15: -357.831 | L15: -256.616 | M15: -329.163 | O15: -307.756 | P15: -405.072 | Q15: -316.891 | R15: -226.313 | T15: -286.804 | U15: -260.502 | V15: -271.566 | W15: -403.479 | Y15: -276.283 | Z15: -388.522 | AA15: -487.685 | AB15: -448.792 | AD15: -420.435 | AE15: -586.743 | AF15: -485.072 | AG15: -379.723 | AI15: -534.455 | AJ15: -435.247 | AK15: -427.458 | AL15: -332.624 | AN15: -428 | AO15: -453.043 | AP15: -444.048 | AQ15: -272.214 | AS15: -230.988 | AT15: -311.868 | AU15: -222.739 | AV15: -180.761 | AX15: -388.4201724 | AY15: -564.2083772 | BC15: -958.935 | BD15: -1213.636 | BE15: -1256.032 | BF15: -1222.351 | BG15: -1601.282 | BH15: -1871.973 | BI15: -1729.784 | BJ15: -1597.56 | BK15: =SUM(AS15:AV15) -> -946.356
B16: Inputs | E16: -45.304 | F16: -55.824 | G16: -34.809 | H16: -39.17 | J16: -43.658 | K16: -42.51 | L16: -35.593 | M16: -45.943 | O16: -47.509 | P16: -34.838 | Q16: -34.919 | R16: -26.401 | T16: -32.944 | U16: -8.302 | V16: -23.469 | W16: -19.258 | Y16: -35.055 | Z16: -39.634 | AA16: -55.527 | AB16: -52.395 | AD16: -57.73 | AE16: -67.262 | AF16: -55.144 | AG16: -28.988 | AI16: -45.058 | AJ16: -47.176 | AK16: -34.7 | AL16: -41.745 | AN16: -29 | AO16: -58.397 | AP16: -58.068 | AQ16: -33.393 | AS16: -31.659 | AT16: -27.071 | AU16: -22.584 | AV16: -5.369 | AX16: -46.566999 | AY16: -26.933014 | BC16: -175.107 | BD16: -167.704 | BE16: -143.667 | BF16: -83.973 | BG16: -182.611 | BH16: -209.124 | BI16: -168.679 | BJ16: -178.418 | BK16: =SUM(AS16:AV16) -> -86.683
B17: Resale goods | E17: -23.615 | F17: -22.29 | G17: -106.187 | H17: -81.842 | J17: -150.034 | K17: -194.212 | L17: -49.451 | M17: -99.977 | O17: -243.379 | P17: -207.016 | Q17: -166.018 | R17: -151.814 | T17: -122.886 | U17: -265.867 | V17: -226.546 | W17: -350.869 | Y17: -702.318 | Z17: -717.727 | AA17: -420.373 | AB17: -206.344 | AD17: -813.088 | AE17: -802.471 | AF17: -375.026 | AG17: -569.58 | AI17: -723.819 | AJ17: -594.747 | AK17: -234.908 | AL17: -960.445 | AN17: -868 | AO17: -117.788 | AP17: -402.347 | AQ17: -470.497 | AS17: -773.416 | AT17: -384.399 | AU17: -479.782 | AV17: -985.927 | AX17: -1629.013 | AY17: -1248.526 | BC17: -233.934 | BD17: -493.674 | BE17: -768.227 | BF17: -966.168 | BG17: -2046.762 | BH17: -2560.165 | BI17: -2513.919 | BJ17: -1858.322 | BK17: -2623.524
B18: Non-cash | E18: -316.352 | F18: -357.496 | G18: -389.868 | H18: -79.71 | J18: -292.0167549 | K18: -428.175 | L18: -373.4702161 | M18: -364.2153342 | O18: -402.079 | P18: -52.624 | Q18: -234.446 | R18: -245.7579536 | T18: -226.873 | U18: 21.675 | V18: -261.89 | W18: -362.891 | Y18: -104.533 | Z18: 269.726 | AA18: -3.165 | AB18: -276.244 | AD18: -205.431 | AE18: -216.764 | AF18: -267.689 | AG18: -575.312 | AI18: -537.34 | AJ18: -223.816 | AK18: -295.938 | AL18: -767.631 | AN18: -372 | AO18: =SUM(AO19:AO20) -> -399.592 | AP18: =SUM(AP19:AP20) -> -468.38 | AQ18: -214.896 | AS18: =SUM(AS19:AS20) -> -336.947 | AT18: =SUM(AT19:AT20) -> -446.904 | AU18: =SUM(AU19:AU20) -> -370.135 | AV18: =SUM(AV19:AV20) -> -498.04 | AX18: =SUM(AX19:AX20) -> -115.7105464 | AY18: =SUM(AY19:AY20) -> 13.23643661 | BC18: -1143.426 | BD18: -1457.877305 | BE18: -934.9069536 | BF18: -829.979 | BG18: -114.216 | BH18: -1265.196 | BI18: -1824.725 | BJ18: -1454.862 | BK18: =SUM(BK19:BK20) -> -1652.026
B19: Depreciation and Amortization | E19: -300.332 | F19: -341.476 | G19: -244.615 | H19: -192.923 | J19: -272.53 | K19: -404.364 | L19: -328.612 | M19: -325.872 | O19: -182.358 | P19: -184.304 | Q19: -164.904 | R19: -216.665 | T19: -145.197 | U19: -254.121 | V19: -259.162 | W19: -351.506 | Y19: -217.627 | Z19: -251.306 | AA19: -272.315 | AB19: -366.009 | AD19: -263.205 | AE19: -362.233 | AF19: -364.011 | AG19: -521.207 | AI19: -343.058 | AJ19: -376.977 | AK19: -376.701 | AL19: -375.485 | AN19: -315 | AO19: -444.49 | AP19: -369.102 | AQ19: -303.52 | AS19: -430.344 | AT19: -548.869 | AU19: -422.078 | AV19: -473.183 | AX19: -329.5395464 | AY19: -507.4785634 | BC19: -1079.346 | BD19: -1331.378 | BE19: -748.231 | BF19: -1009.986 | BG19: -1107.257 | BH19: -1510.656 | BI19: -1472.221 | BJ19: -1432.428 | BK19: -1874.474
B20: Losses (gains) from changes in the Fair Value minus estimated costs of selling Biological Assets | E20: -16.02 | F20: -16.02 | G20: -145.253 | H20: 113.213 | J20: -19.48675492 | K20: -23.811 | L20: -44.85821609 | M20: -38.34333423 | O20: -219.721 | P20: 131.68 | Q20: -69.542 | R20: -29.09295355 | T20: -81.676 | U20: 275.796 | V20: -2.728 | W20: -11.385 | Y20: 113.094 | Z20: 521.032 | AA20: 269.15 | AB20: 89.765 | AD20: 57.774 | AE20: 145.469 | AF20: 96.322 | AG20: -54.105 | AI20: -194.282 | AJ20: 153.161 | AK20: 80.763 | AL20: -392.146 | AN20: -57 | AO20: 44.898 | AP20: -99.278 | AQ20: 88.624 | AS20: 93.397 | AT20: 101.965 | AU20: 51.943 | AV20: -24.857 | AX20: 213.829 | AY20: 520.715 | BC20: -64.08 | BD20: -126.4993052 | BE20: -186.6759536 | BF20: 180.007 | BG20: 993.041 | BH20: 245.46 | BI20: -352.504 | BJ20: -22.434 | BK20: 222.448
B22: Cash COGS ex-resale (R$ Million) | E22: 0 | F22: 0 | G22: 0 | H22: 0 | J22: -434.3908702 | K22: -504.0135627 | L22: -396.6378076 | M22: -475.0719244 | O22: -481.3197017 | P22: -562.9502681 | Q22: -465.5009449 | R22: -348.4133811 | T22: -414.3982025 | U22: -386.866378 | V22: -435.394 | W22: -545.6664741 | Y22: -413.1021977 | Z22: -514.284 | AA22: -682.505 | AB22: -629.4028023 | AD22: -589.467 | AE22: -773.733 | AF22: -664.389 | AG22: -541.571 | AI22: -753.0994991 | AJ22: -609.0656579 | AK22: -624.5282901 | AL22: -471.9579063 | AN22: -613 | AO22: -660.457 | AP22: -650.514 | AQ22: -404.668 | AS22: =AS24+AS28+AS29 -> -377.265 | AT22: =AT24+AT28+AT29 -> -459.5120385 | AU22: =AU24+AU28+AU29 -> -367.4429025 | AV22: =AV24+AV28+AV29 -> -300.8621714 | AX22: =AX24+AX28+AX29 -> -552.6961217 | AY22: =AY24+AY28+AY29 -> -753.3808551 | BC22: 0 | BD22: -1810.114165 | BE22: -1858.184296 | BF22: -1782.325055 | BG22: =SUM(Y22:AB22) -> -2239.294 | BH22: =SUM(AD22:AG22) -> -2569.16 | BI22: -2458.651353 | BJ22: -2329.015954 | BK22: =BK24+BK28+BK29 -> -1505.082112
B24: Agriculture | E24: 0 | F24: 0 | G24: 0 | H24: 0 | J24: -316.9709465 | K24: -426.9887193 | L24: -329.2222722 | M24: -394.5263444 | O24: -385.2007132 | P24: -485.6054812 | Q24: -401.713684 | R24: -295.8222188 | T24: -343.2280202 | U24: -340.5853336 | V24: -371.87 | W24: -467.3501104 | Y24: -342.1601348 | Z24: -440.222 | AA24: -580.511 | AB24: -535.4028652 | AD24: -494.003 | AE24: -666.093 | AF24: -567.197304 | AG24: -465.7642964 | AI24: -6497.975334 | AJ24: -520.5589058 | AK24: -533.8414188 | AL24: 5452.258765 | AN24: -531.549 | AO24: -553.01 | AP24: -542.8910431 | AQ24: -337.965181 | AS24: =SUM(AS25:AS27) -> -305.77 | AT24: =SUM(AT25:AT27) -> -390.2630345 | AU24: =SUM(AU25:AU27) -> -299.9550836 | AV24: =SUM(AV25:AV27) -> -253.404429 | AX24: =SUM(AX25:AX27) -> -462.5633222 | AY24: =SUM(AY25:AY27) -> -667.4057609 | BC24: 0 | BD24: -1467.708282 | BE24: -1568.342097 | BF24: -1523.033464 | BG24: =SUM(Y24:AB24) -> -1898.296 | BH24: =SUM(AD24:AG24) -> -2193.0576 | BI24: -2100.116893 | BJ24: -1965.41456 | BK24: =SUM(BK25:BK27) -> -1249.392547
B25: HLT (Own + 3rd party cane) | E25: 0 | F25: 0 | G25: 0 | H25: 0 | J25: -122.545266 | K25: -139.829813 | L25: -123.3674935 | M25: -172.9103011 | O25: -172.2008987 | P25: -166.0170703 | Q25: -154.6939085 | R25: -123.5106319 | T25: -114.9593313 | U25: -122.0821039 | V25: -131.834 | W25: -169.8404394 | Y25: -130.6032822 | Z25: -136.156 | AA25: -217.085 | AB25: -222.3957178 | AD25: -186.641 | AE25: -192.917 | AF25: -176.52528 | AG25: -183.5706942 | AI25: -224.1541424 | AJ25: -177.8859321 | AK25: -203.1474022 | AL25: -157.3947266 | AN25: -182.553 | AO25: -213.407 | AP25: -201.2870513 | AQ25: -130.7538653 | AS25: -21.912 | AT25: -34.26860971 | AU25: -19.32865047 | AV25: -10.57328062 | AX25: -142.0196409 | AY25: -190.2094611 | BC25: 0 | BD25: -558.6528737 | BE25: -616.4225094 | BF25: -538.7158746 | BG25: =SUM(Y25:AB25) -> -706.24 | BH25: -739.6539742 | BI25: -762.5822033 | BJ25: -728.0010048 | BK25: =SUM(AS25:AV25) -> -86.0825408
B26: Land lease | E26: 0 | F26: 0 | G26: 0 | H26: 0 | J26: -55.38486413 | K26: -65.48256736 | L26: -63.04332936 | M26: -72.70866819 | O26: -60.58376401 | P26: -70.08641535 | Q26: -76.32456977 | R26: -55.6942157 | T26: -87.61922878 | U26: -48.34270702 | V26: -91.219 | W26: -81.20131961 | Y26: -77.95802956 | Z26: -77.836 | AA26: -115.803 | AB26: -100.1939704 | AD26: -88.865 | AE26: -123.248 | AF26: -129.2015981 | AG26: -135.4455574 | AI26: -144.6993822 | AJ26: -100.2488126 | AK26: -119.8767523 | AL26: -98.98245515 | AN26: -121.639 | AO26: -107.473 | AP26: -126.6850415 | AQ26: -77.79791586 | AS26: -110.822 | AT26: -91.91091097 | AU26: -104.2905798 | AV26: -77.34523385 | AX26: -114.4504821 | AY26: -132.2893408 | BC26: 0 | BD26: -256.619429 | BE26: -262.6889648 | BF26: -308.3822554 | BG26: -371.791 | BH26: -476.7601555 | BI26: -463.8074023 | BJ26: -433.5941108 | BK26: -384.3687247
B27: 3rd party cane | E27: 0 | F27: 0 | G27: 0 | H27: 0 | J27: -139.0408163 | K27: -221.6763389 | L27: -142.8114493 | M27: -148.9073751 | O27: -152.4160505 | P27: -249.5019956 | Q27: -170.6952058 | R27: -116.6173712 | T27: -140.6494601 | U27: -170.1605227 | V27: -148.817 | W27: -216.3083513 | Y27: -133.5988231 | Z27: -226.23 | AA27: -247.623 | AB27: -212.8131769 | AD27: -218.497 | AE27: -349.928 | AF27: -261.4704258 | AG27: -146.7470449 | AI27: -280.9440087 | AJ27: -242.4241612 | AK27: -210.8172642 | AL27: -139.5418534 | AN27: -227.357 | AO27: -232.13 | AP27: -214.9189503 | AQ27: -129.4133999 | AS27: -173.036 | AT27: -264.0835138 | AU27: -176.3358533 | AV27: -165.4859145 | AX27: -206.0931991 | AY27: -344.906959 | BC27: 0 | BD27: -652.4359797 | BE27: -689.2306231 | BF27: -675.9353341 | BG27: -820.265 | BH27: -976.6424707 | BI27: -873.7272875 | BJ27: -803.8194448 | BK27: -778.9412816
B28: Industrial | E28: 0 | F28: 0 | G28: 0 | H28: 0 | J28: -96.9941844 | K28: -61.98258843 | L28: -53.7601966 | M28: -93.67804242 | O28: -91.87241842 | P28: -66.96493416 | Q28: -59.79378481 | R28: -49.57062528 | T28: -63.15562819 | U28: -43.47787616 | V28: -59.693 | W28: -72.78131085 | Y28: -63.20935225 | Z28: -70.021 | AA28: -101.862 | AB28: -74.86464775 | AD28: -84.843 | AE28: -100.39 | AF28: -95.63748122 | AG28: -74.13392367 | AI28: -83.53225325 | AJ28: -74.54572325 | AK28: -80.17913828 | AL28: -65.78974699 | AN28: -68 | AO28: -92.902 | AP28: -87.19872369 | AQ28: -57.80211162 | AS28: -50.183 | AT28: -68.0096476 | AU28: -62.03995491 | AV28: -51.31715518 | AX28: -76.10270832 | AY28: -82.1891682 | BC28: 0 | BD28: -306.4150118 | BE28: -268.2017627 | BF28: -239.1078152 | BG28: -309.957 | BH28: -355.0044049 | BI28: -304.0468618 | BJ28: -305.9849831 | BK28: -231.5497577
B29: Other | E29: 0 | F29: 0 | G29: 0 | H29: 0 | J29: -20.42573932 | K29: -15.04225491 | L29: -13.65533879 | M29: 13.1324625 | O29: -4.2465701 | P29: -10.37985267 | Q29: -3.99347607 | R29: -3.020537013 | T29: -8.014554064 | U29: -2.803168264 | V29: -3.831 | W29: -5.535052869 | Y29: -7.732710716 | Z29: -4.041 | AA29: -0.132 | AB29: -19.13528928 | AD29: -10.622 | AE29: -7.25 | AF29: -1.55421001 | AG29: -1.672684174 | AI29: -19.76971252 | AJ29: -13.96116446 | AK29: -10.50773305 | AL29: -10.24898852 | AN29: -13.747 | AO29: -14.544 | AP29: -20.42410219 | AQ29: -8.90055229 | AS29: -21.312 | AT29: -1.239356357 | AU29: -5.447863931 | AV29: 3.859412697 | AX29: -14.03009123 | AY29: -3.785925997 | BC29: 0 | BD29: -35.99087052 | BE29: -21.64043585 | BF29: -20.1837752 | BG29: -31.041 | BH29: -21.09889418 | BI29: -54.48759856 | BJ29: -57.61641065 | BK29: -24.13980759
B31: Cash COGS ex-reasle (R$/Ton TRS)
B33: Cash COGS ex-reasle/TRS Product sold ex-resale | E33: 0 | F33: 0 | G33: 0 | H33: 0 | J33: -562.4174491 | K33: -407.590618 | L33: -386 | M33: -507.3581553 | O33: -514.7681236 | P33: -471.9298118 | Q33: -547.457703 | R33: -507.3581553 | T33: -547.1333686 | U33: -463.2684757 | V33: -496.1653811 | W33: -472.2110715 | Y33: -562.0871648 | Z33: -481.7733886 | AA33: -580.7169396 | AB33: -686.1971804 | AD33: -691.0360249 | AE33: -637.0596525 | AF33: -695.0182836 | AG33: -562 | AI33: -713.4576643 | AJ33: -571.4376127 | AK33: -545.0501441 | AL33: -561.4939849 | AN33: -661 | AO33: -565 | AP33: -601.1782703 | AQ33: -563.0177378 | AS33: -466 | AT33: -407.9615489 | AU33: -437.4623893 | AV33: -392.1698654 | AX33: -671.7874527 | AY33: -556.3671311 | BC33: 0 | BD33: -444.8841944 | BE33: -507.0846988 | BF33: -491.6011425 | BG33: -574.4504859 | BH33: -644 | BI33: -598.4333066 | BJ33: -594.6645252 | BK33: -424.755835
B35: * From 1Q20, includes IFRS16 impacts.

Sheet 5.EBITDA
E5: 2011/12 Crop Year | J5: 2012/13 Crop Year | O5: 2013/14 Crop Year | T5: 2014/15 Crop Year | Y5: 2015/16 Crop Year | AD5: 2016/17 Crop Year | AI5: 2017/18 Crop Year | AN5: 2018/19 Crop Year | AS5: 2019/20 Crop Year | AX5: 2020/21 Crop Year | BC5: TOTAL CROP YEAR
BF7: FY15
B9: Crop Year | E9: 1Q12 | F9: 2Q12 | G9: 3Q12 | H9: 4Q12 | J9: 1Q13 | K9: 2Q13 | L9: 3Q13 | M9: 4Q13 | O9: 1Q14 | P9: 2Q14 | Q9: 3Q14 | R9: 4Q14 | T9: 1Q15 | U9: 2Q15 | V9: 3Q15 | W9: 4Q15 | Y9: 1Q16 | Z9: 2Q16 | AA9: 3Q16 | AB9: 4Q16 | AD9: 1Q17 | AE9: 2Q17 | AF9: 3Q17 | AG9: 4Q17 | AI9: 1Q18 | AJ9: 2Q18 | AK9: 3Q18 | AL9: 4Q18 | AN9: 1Q19 | AO9: 2Q19 | AP9: 3Q19 | AQ9: 4Q19 | AS9: 1Q20 | AT9: 2Q20 | AU9: 3Q20 | AV9: 4Q20 | AX9: 1Q21 | AY9: 2Q21 | AZ9: 3Q21 | BA9: 4Q21 | BC9: 2011/12 | BD9: 2012/13 | BE9: 2013/14 | BF9: 2014/15 | BG9: 2015/16 | BH9: 2016/17 | BI9: 2017/18 | BJ9: 2018/19 | BK9: 2019/20
B11: EBITDA (R$ Million) *
B13: Net Revenue | E13: 855.4077304 | F13: 1111.583 | G13: 837.151 | H13: 598.7529911 | J13: 897.4210054 | K13: 1310.683534 | L13: 980.607 | M13: 963.498 | O13: 1065.208 | P13: 1333.940189 | Q13: 1015.897 | R13: 852.478 | T13: 911.098 | U13: 1111.21301 | V13: 1031.574 | W13: 1459.296552 | Y13: 1362.426 | Z13: 1740.243049 | AA13: 1693.157 | AB13: 1366.822 | AD13: 1672.682 | AE13: 2229.541 | AF13: 1550.533 | AG13: 1572.298 | AI13: 1832.242 | AJ13: 1780.041 | AK13: 1535.433 | AL13: 1955.928 | AN13: =SUM(AN14:AN17) -> 1916.414 | AO13: =SUM(AO14:AO17) -> 1483.106 | AP13: =SUM(AP14:AP17) -> 1559.926 | AQ13: =SUM(AQ14:AQ17) -> 1273.103 | AS13: =SUM(AS14:AS17) -> 1718.364 | AT13: =SUM(AT14:AT17) -> 1552.459 | AU13: =SUM(AU14:AU17) -> 1389.546 | AV13: =SUM(AV14:AV17) -> 1877.717 | AX13: =SUM(AX14:AX17) -> 2663.642288 | AY13: =SUM(AY14:AY17) -> 2984.604 | BC13: =SUM(BC14:BC17) -> 3402.894721 | BD13: 4152.209539 | BE13: 4267.523189 | BF13: 4513.181562 | BG13: 6162.648049 | BH13: 7025.054 | BI13: 7103.644 | BJ13: 6232.172 | BK13: =SUM(BK14:BK17) -> 6538.086
B14: Sugar | E14: 428.9116507 | F14: 700.357 | G14: 533.914 | H14: 199.8779911 | J14: 479.5167425 | K14: 757.452 | L14: 580.39 | M14: 585.454 | O14: 506.514 | P14: 749.952 | Q14: 628.057 | R14: 332.569 | T14: 408.849 | U14: 650.491 | V14: 491.464 | W14: 509.525 | Y14: 399.181 | Z14: 653.1412322 | AA14: 647.323 | AB14: 599.062 | AD14: 496.978 | AE14: 1073.58 | AF14: 808.655 | AG14: 411.804 | AI14: 760.665 | AJ14: 999.719 | AK14: 829.784 | AL14: 387.976 | AN14: 463.805 | AO14: =681056/1000 -> 681.056 | AP14: 332.731 | AQ14: 166.486 | AS14: 285.757 | AT14: 467.125 | AU14: 451.943 | AV14: 102.531 | AX14: 857.139 | AY14: 1267.949 | BC14: 1863.060642 | BD14: 2402.812743 | BE14: 2217.092 | BF14: 2060.329 | BG14: =SUM(Y14:AB14) -> 2298.707232 | BH14: =SUM(AD14:AG14) -> 2791.017 | BI14: 2978.144 | BJ14: 1643.776 | BK14: =SUM(AS14:AV14) -> 1307.356
B15: Ethanol | E15: 383.3563349 | F15: 339.968 | G15: 247.631 | H15: 387.134 | J15: 371.2262629 | K15: 449.873 | L15: 304.102 | M15: 376.956 | O15: 488.364 | P15: 414.061 | Q15: 302.382 | R15: 464.259 | T15: 377.803 | U15: 274.691 | V15: 363.66 | W15: 677.729 | Y15: 356.596 | Z15: 406.7737586 | AA15: 673.019 | AB15: 634.641 | AD15: 422.277 | AE15: 432.601 | AF15: 473.212 | AG15: 795.373 | AI15: 536.803 | AJ15: 352.996 | AK15: 597.013 | AL15: 739.939 | AN15: 591.089 | AO15: =665272/1000 -> 665.272 | AP15: 754.217 | AQ15: 679.747 | AS15: 696.154 | AT15: 723.331 | AU15: 520.497 | AV15: 969.979 | AX15: 349.768 | AY15: 573.024 | BC15: 1358.089335 | BD15: 1502.157263 | BE15: 1669.066 | BF15: 1693.883 | BG15: 2071.029759 | BH15: 2123.463 | BI15: 2226.751 | BJ15: 2690.249 | BK15: =SUM(AS15:AV15) -> 2909.961
B16: Energy | E16: 33.828 | F16: 50.55340484 | G16: 39.74437917 | H16: 6.403005447 | J16: 39.092 | K16: 90.29062239 | L16: 62.61391379 | M16: -11.882 | O16: 62.681 | P16: 60.369282 | Q16: 67.977 | R16: 52.325 | T16: 82.346 | U16: 84.53418363 | V16: 78.56 | W16: 38.66534982 | Y16: 54.429 | Z16: 77.50394093 | AA16: 64.201 | AB16: 37.059 | AD16: 49.168 | AE16: 69.189 | AF16: 65.447 | AG16: 34.957 | AI16: 69.081 | AJ16: 120.284 | AK16: 92.054 | AL16: 68.246 | AN16: 109.821 | AO16: =120947/1000 -> 120.947 | AP16: 113.719 | AQ16: 105.729 | AS16: 108.007 | AT16: 93.36 | AU16: 68.978 | AV16: 194.165 | AX16: 47.88728769 | AY16: 132.041 | BC16: 130.5287895 | BD16: 180.1145362 | BE16: 243.352282 | BF16: 284.1055334 | BG16: 233.1929409 | BH16: 218.761 | BI16: 349.665 | BJ16: 450.216 | BK16: =SUM(AS16:AV16) -> 464.51
B17: Other | E17: 9.311744765 | F17: 20.70459516 | G17: 15.86162083 | H17: 5.337994553 | J17: 7.586 | K17: 13.06791117 | L17: 33.50108621 | M17: 12.97 | O17: 7.649 | P17: 109.5579069 | Q17: 17.481 | R17: 3.325 | T17: 42.1 | U17: 101.4968263 | V17: 97.89 | W17: 233.3772026 | Y17: 552.22 | Z17: 602.8241174 | AA17: 308.614 | AB17: 96.06 | AD17: 704.259 | AE17: 654.171 | AF17: 203.219 | AG17: 330.164 | AI17: 465.693 | AJ17: 307.042 | AK17: 16.582 | AL17: 759.767 | AN17: 751.699 | AO17: =15831/1000 -> 15.831 | AP17: 359.259 | AQ17: 321.141 | AS17: 628.446 | AT17: 268.643 | AU17: 348.128 | AV17: 611.042 | AX17: 1408.848 | AY17: 1011.59 | BC17: 51.2159553 | BD17: 67.12499738 | BE17: 138.0129069 | BF17: 474.8640289 | BG17: 1559.718117 | BH17: 1891.813 | BI17: 1549.084 | BJ17: 1447.931 | BK17: 1856.259
B18: Cash COGS | E18: -447.314 | F18: -552.406 | G18: -423.541 | H18: -378.877 | J18: -584.425 | K18: -698.226 | L18: -446.089 | M18: -575.05 | O18: -724.699 | P18: -769.966 | Q18: -631.518 | R18: -500.229 | T18: -537.285 | U18: -652.733 | V18: -661.94 | W18: -896.535 | Y18: -1115.421 | Z18: -1232.01 | AA18: -1102.878 | AB18: -835.747 | AD18: -1402.555 | AE18: -1576.204 | AF18: -1039.415 | AG18: -1111.151 | AI18: -1476.918 | AJ18: -1203.813 | AK18: -859.436 | AL18: -1432.403 | AN18: -1481 | AO18: =-778245/1000 -> -778.245 | AP18: -1052.861 | AQ18: -875.165 | AS18: -1150.681 | AT18: -843.911 | AU18: -847.228 | AV18: -1286.789 | AX18: -2024.04 | AY18: -1858.707 | BC18: -1802.138 | BD18: -2303.79 | BE18: -2626.412 | BF18: -2748.493 | BG18: -4286.056 | BH18: -5129.325 | BI18: -4972.57 | BJ18: -4187.338 | BK18: -4128.609
B19: Gross Profit Cash | E19: 408.0937304 | F19: 559.177 | G19: 413.61 | H19: 219.8759911 | J19: 312.9960054 | K19: 612.4575336 | L19: 534.518 | M19: 388.448 | O19: 340.509 | P19: 563.9741889 | Q19: 384.379 | R19: 352.249 | T19: 373.813 | U19: 458.48001 | V19: 369.634 | W19: 562.7615524 | Y19: 247.005 | Z19: 508.2330492 | AA19: 590.279 | AB19: 531.075 | AD19: 270.127 | AE19: 653.337 | AF19: 511.118 | AG19: 461.147 | AI19: 355.324 | AJ19: 576.228 | AK19: 675.997 | AL19: 523.525 | AN19: 434.97 | AO19: =704861/1000 -> 704.861 | AP19: 507.065 | AQ19: 397.938 | AS19: 567.683 | AT19: 708.548 | AU19: 542.318 | AV19: 590.928 | AX19: 645.586 | AY19: 1125.896 | BC19: 1600.756721 | BD19: 1848.419539 | BE19: 1641.111189 | BF19: 1764.688562 | BG19: 1876.592049 | BH19: 1895.729 | BI19: 2131.074 | BJ19: 2044.834 | BK19: 2409.477
B20: Cash Gross Margin | E20: 0.4770751022 | F20: 0.5030456565 | G20: 0.4940685731 | H20: 0.3672232028 | J20: 0.348772765 | K20: 0.4672810163 | L20: 0.5450889092 | M20: 0.4031643034 | O20: 0.3196643285 | P20: 0.4227882131 | Q20: 0.3783641452 | R20: 0.4132059713 | T20: 0.4102884651 | U20: 0.4125941704 | V20: 0.3583203919 | W20: 0.3856389241 | Y20: 0.18129792 | Z20: 0.2920471651 | AA20: 0.3486262644 | AB20: 0.3885473017 | AD20: 0.1614933382 | AE20: 0.2930365488 | AF20: 0.3296401947 | AG20: 0.2932949097 | AI20: 0.1939285313 | AJ20: 0.3237161391 | AK20: 0.4402647331 | AL20: 0.2676606705 | AN20: =AN19/AN13 -> 0.2269707902 | AO20: =AO19/AO13 -> 0.4752600286 | AP20: =AP19/AP13 -> 0.325057086 | AQ20: =AQ19/AQ13 -> 0.3125732953 | AS20: =AS19/AS13 -> 0.3303624843 | AT20: =AT19/AT13 -> 0.4564036796 | AU20: =AU19/AU13 -> 0.3902843087 | AV20: =AV19/AV13 -> 0.3147055706 | AX20: =AX19/AX13 -> 0.2423696316 | AY20: =AY19/AY13 -> 0.3772346348 | BC20: 0.4704102984 | BD20: 0.4451652841 | BE20: 0.3845582358 | BF20: 0.3910076601 | BG20: =BG19/BG13 -> 0.304510664 | BH20: =BH19/BH13 -> 0.2698525876 | BI20: 0.2999972972 | BJ20: 0.3281093654 | BK20: =BK19/BK13 -> 0.3685294137
B21: SG&A (Cash) | E21: -106.718 | F21: -124.413 | G21: -121.21 | H21: -90.926 | J21: -116.478 | K21: -148.23 | L21: -129.817 | M21: -119.123 | O21: -127.287 | P21: -175.686 | Q21: -127.874 | R21: -94.319 | T21: -127.032 | U21: -145.872 | V21: -117.586 | W21: -120.734 | Y21: -129.314 | Z21: -156.179 | AA21: -148.112 | AB21: -116.448 | AD21: -143.574 | AE21: -192.885 | AF21: -140.139 | AG21: -94.091 | AI21: -180.997 | AJ21: -179.165 | AK21: -129.395 | AL21: -101.475 | AN21: -124.633 | AO21: =-139527/1000 -> -139.527 | AP21: -88.042 | AQ21: -90.201 | AS21: -103.426 | AT21: -145.586 | AU21: -122.668414 | AV21: -60.61902 | AX21: -149.161 | AY21: -170.335 | BC21: -443.267 | BD21: -513.648 | BE21: -525.166 | BF21: -511.223 | BG21: -550.053 | BH21: -570.689 | BI21: -591.032 | BJ21: -442.403 | BK21: -432.299434
B22: Selling | E22: -45.493 | F22: -69.391 | G22: -31.283 | H22: -25.7 | J22: -55.786 | K22: -85.169 | L22: -51.763 | M22: -49.222 | O22: -55.786 | P22: -85.169 | Q22: -42.959 | R22: -26.831 | T22: -37.917 | U22: -44.961 | V22: -43.136 | W22: -41.36 | Y22: -41.907 | Z22: -64.31 | AA22: -66.995 | AB22: -45.402 | AD22: -71.289 | AE22: -100.117 | AF22: -61.307 | AG22: -42.682 | AI22: -91.692 | AJ22: -88.949 | AK22: -63.999 | AL22: -26.921 | AN22: -66.577 | AO22: -77.634 | AP22: -37.689 | AQ22: -27.492 | AS22: -35.249 | AT22: -76.657 | AU22: -42.282 | AV22: -20.931 | AX22: -80.95 | AY22: -113.45 | BC22: -171.867 | BD22: -241.94 | BE22: -210.745 | BF22: -167.374 | BG22: -218.614 | BH22: -275.395 | BI22: -271.561 | BJ22: -209.393 | BK22: -175.119
B23: G&A | E23: -61.225 | F23: -55.022 | G23: -89.927 | H23: -65.226 | J23: -60.692 | K23: -63.061 | L23: -78.054 | M23: -69.901 | O23: -71.501 | P23: -90.517 | Q23: -84.915 | R23: -67.488 | T23: -89.115 | U23: -100.911 | V23: -74.45 | W23: -79.374 | Y23: -87.407 | Z23: -91.869 | AA23: -81.117 | AB23: -71.046 | AD23: -72.285 | AE23: -92.768 | AF23: -78.832 | AG23: -51.409 | AI23: -89.305 | AJ23: -90.216 | AK23: -65.396 | AL23: -74.554 | AN23: -58.056 | AO23: -61.893 | AP23: -50.353 | AQ23: -62.709 | AS23: -68.177 | AT23: -68.929 | AU23: -80.386414 | AV23: -39.68802 | AX23: -68.211 | AY23: -56.885 | BC23: -271.4 | BD23: -271.708 | BE23: -314.421 | BF23: -343.849 | BG23: -331.439 | BH23: -295.294 | BI23: -319.471 | BJ23: -233.01 | BK23: -257.180434
B24: Other Revenue (Expenses) | E24: -24.617 | F24: -34.975 | G24: 39.841 | H24: -1.401 | J24: -24.18354228 | K24: -17.084 | L24: -16.577 | M24: 66.504 | O24: 5.758 | P24: 9.725 | Q24: -15.065 | R24: -399.484 | T24: -28.577 | U24: -30.128 | V24: 64.731 | W24: 70.689 | Y24: 64.852 | Z24: -10.969 | AA24: -18.823 | AB24: 55.647 | AD24: 14.317 | AE24: -2.331 | AF24: 23.138 | AG24: 1.699 | AI24: -15.548 | AJ24: -31.669 | AK24: -138.192 | AL24: -70.758 | AN24: -47 | AO24: -44.142 | AP24: -31.613 | AQ24: -2.973 | AS24: -105.125 | AT24: 120.674 | AU24: 8.89 | AV24: 46.314 | AX24: -28.018 | AY24: -16.623 | BC24: -21.152 | BD24: 8.65945772 | BE24: -399.066 | BF24: 76.714 | BG24: 90.707 | BH24: 36.823 | BI24: -256.167 | BJ24: -125.74 | BK24: 70.753
B25: TEAG Profit /(Loss) - Consolidation of Biosev Interest | E25: 0 | F25: 0 | G25: 0 | H25: -1.762 | J25: 0.351 | K25: 2.505 | L25: 1.659 | M25: 1.806 | O25: 1.289 | P25: 1.67377035 | Q25: 3.81177035 | R25: 0.01177035 | T25: 0.99577035 | U25: 0.85977035 | V25: -2.025 | W25: -2.43222965 | Y25: 0 | Z25: 0.82777035 | AA25: 11.96277035 | AB25: 2.09377035 | AD25: -0.89522965 | AE25: 0.453 | AF25: 1.73077035 | AG25: -0.77822965 | AI25: 0.15577035 | AJ25: 2.87 | AK25: -0.12 | AL25: 0.41431105 | AN25: -3.129 | AO25: 0.65777035 | AP25: -1.99822965 | AQ25: 1.49477035 | AS25: -1.375 | AT25: -1.067 | AU25: -1.313 | AV25: 3.2020814 | AX25: -0.83522965 | AY25: 1.12777035 | BC25: -1.762 | BD25: 6.321 | BE25: 6.78631105 | BF25: -2.43222965 | BG25: 14.88431105 | BH25: 0.51031105 | BI25: 3.3200814 | BJ25: -2.9739186 | BK25: -0.5529186
B26: Non-recurring items | E26: 0 | F26: 0 | G26: 0 | H26: 0 | J26: 9.954 | K26: -5.32177262 | L26: 16.032 | M26: -84.3879019 | O26: 0 | P26: 0 | Q26: 13.32646829 | R26: 410.821974 | T26: 0 | U26: -10.22114048 | V26: 19.67875889 | W26: -1.63219902 | Y26: -0.2552125 | Z26: 2.17718037 | AA26: 2.29483782 | AB26: 4.6566525 | AD26: 0.04448154 | AE26: -1.35033702 | AF26: -0.14192796 | AG26: -0.38879027 | AI26: 0.04098636 | AJ26: 5.49569141 | AK26: 158.7707124 | AL26: 134.7126042 | AN26: -1.842 | AO26: 3.283910255 | AP26: 23.65080917 | AQ26: 27.5260469 | AS26: 78.168 | AT26: -47.391 | AU26: 15.943 | AV26: 2.912582435 | AX26: 11.66532609 | AY26: 6.10020054 | BC26: 0 | BD26: -63.72367452 | BE26: 424.1484423 | BF26: 7.82541939 | BG26: 8.87345819 | BH26: -1.83657371 | BI26: 299.0199944 | BJ26: 52.61840093 | BK26: 49.63258244
B27: Adjusted EBITDA | E27: 276.7587304 | F27: 399.789 | G27: 332.241 | H27: 125.7869911 | J27: 182.6394631 | K27: 444.3267609 | L27: 405.815 | M27: 253.2470981 | O27: 220.269 | P27: 399.6869592 | Q27: 258.5782386 | R27: 269.2797444 | T27: 219.1997704 | U27: 273.1186398 | V27: 334.4327589 | W27: 508.6521237 | Y27: 182.2877875 | Z27: 344.0899999 | AA27: 437.6016082 | AB27: 477.0244228 | AD27: 140.0192519 | AE27: 457.223663 | AF27: 395.7058424 | AG27: 367.5879801 | AI27: 158.9757567 | AJ27: 373.7596914 | AK27: 567.0607124 | AL27: 486.4189153 | AN27: 258.353 | AO27: 525.1336806 | AP27: 409.0625795 | AQ27: 333.7848172 | AS27: 435.925 | AT27: 635.177 | AU27: 443.745 | AV27: 583.2796638 | AX27: 479.2370964 | AY27: 946.1659709 | BC27: 1134.575721 | BD27: 1286.028322 | BE27: 1147.813942 | BF27: 1335.402752 | BG27: =SUM(Y27:AB27) -> 1441.003818 | BH27: 1360.536737 | BI27: 1586.215076 | BJ27: 1526.335482 | BK27: 2098.126664
B28: Adjusted EBITDA Margin | E28: 0.3235401325 | F28: 0.3596573535 | G28: 0.3968710543 | H28: 0.2100816079 | J28: 0.2035159218 | K28: 0.3390038477 | L28: 0.413840611 | M28: 0.2628413324 | O28: 0.2067849659 | P28: 0.2996288459 | Q28: 0.2545319443 | R28: 0.3158788196 | T28: 0.2405885759 | U28: 0.2457842352 | V28: 0.3241965762 | W28: 0.3485598064 | Y28: 0.1337964686 | Z28: 0.1977252546 | AA28: 0.2584530603 | AB28: 0.3490025935 | AD28: 0.08370942707 | AE28: 0.2050752433 | AF28: 0.2552063338 | AG28: 0.2337902739 | AI28: 0.08676569837 | AJ28: 0.2099725183 | AK28: 0.369316481 | AL28: 0.2486895813 | AN28: =+AN27/AN13 -> 0.1348106411 | AO28: =+AO27/AO13 -> 0.3540769713 | AP28: =+AP27/AP13 -> 0.2622320415 | AQ28: =AQ27/AQ13 -> 0.2621820994 | AS28: =+AS27/AS13 -> 0.2536860642 | AT28: =+AT27/AT13 -> 0.4091425281 | AU28: =+AU27/AU13 -> 0.3193453113 | AV28: =AV27/AV13 -> 0.3106323604 | AX28: =+AX27/AX13 -> 0.1799179637 | AY28: =+AY27/AY13 -> 0.3170155809 | BC28: 0.333414876 | BD28: 0.3097214411 | BE28: 0.2689648987 | BF28: 0.2958894371 | BG28: =BG27/BG13 -> 0.2338286735 | BH28: =+BH27/BH13 -> 0.1936692212 | BI28: 0.2232959698 | BJ28: 0.2449122846 | BK28: =BK27/BK13 -> 0.3209083918
B30: EBITDA Reconciliation (R$ Million)
B32: NET INCOME (LOSS) | E32: 22.679 | F32: -52.224 | G32: -301.772 | H32: 51.86269576 | J32: -351.577 | K32: 81.185 | L32: -163.72 | M32: -185.44 | O32: -325.811 | P32: 80.434 | Q32: -203.7378362 | R32: -1017.684 | T32: -148.33 | U32: -42.419 | V32: -81.567 | W32: -234.543 | Y32: -265.557 | Z32: -219.568 | AA32: 162.806 | AB32: 49.663 | AD32: -353.307 | AE32: 23.518 | AF32: 42.787 | AG32: -313.427 | AI32: -577.303 | AJ32: 32.848 | AK32: -278.686 | AL32: -446.734 | AN32: -506.462 | AO32: -155.567 | AP32: -230.552 | AQ32: -306.549 | AS32: -168.894 | AT32: -304.335 | AU32: 2.857 | AV32: -1080.876 | AX32: -281.29 | AY32: 423.574 | BC32: -279.4543042 | BD32: -619.552 | BE32: -1466.798836 | BF32: -498.717 | BG32: =SUM(Y32:AB32) -> -272.656 | BH32: =SUM(AD32:AG32) -> -600.429 | BI32: -1269.875 | BJ32: -1199.13 | BK32: =SUM(AS32:AV32) -> -1551.248
B33: Income Tax and Social Contribution | E33: -7.374 | F33: -52.828 | G33: 4.86 | H33: -77.366 | J33: -153.881 | K33: 23.687 | L33: -81.312 | M33: -104.571 | O33: -108.591 | P33: 137.113 | Q33: 44.349 | R33: 291.604 | T33: 42.227 | U33: 40.893 | V33: -91.335 | W33: -161.975 | Y33: 241.655 | Z33: -38.309 | AA33: 152.932 | AB33: -37.829 | AD33: 305.437 | AE33: -25.847 | AF33: -91.777 | AG33: 23.613 | AI33: -283.94 | AJ33: 139.538 | AK33: -57.117 | AL33: -219.473 | AN33: -151.107 | AO33: -31.779 | AP33: 68.603 | AQ33: -71.915 | AS33: 130.792 | AT33: -206.707 | AU33: 95.623 | AV33: -481.527 | AX33: 21.081 | AY33: 87.261 | BC33: -132.708 | BD33: -316.077 | BE33: 364.475 | BF33: -170.19 | BG33: =SUM(Y33:AB33) -> 318.449 | BH33: =SUM(AD33:AG33) -> 211.426 | BI33: -420.992 | BJ33: -186.198 | BK33: -461.819
B34: Financial Result | E34: -25.202 | F34: 403.975 | G34: 98.236 | H34: 4.26630424 | J34: 329.35 | K34: 121.161 | L34: 116.506 | M34: 74.007 | O34: 241.788 | P34: 119.043 | Q34: 159.3678362 | R34: 56.578 | T34: 87.762 | U34: 295.609 | V34: 215.081 | W34: 520.72 | Y34: 91.242 | Z34: 859.523 | AA34: 106.582 | AB34: 175.743 | AD34: -27.02 | AE34: 234.848 | AF34: 168.257 | AG34: 74.041 | AI34: 474.28 | AJ34: -36.027 | AK34: 440.008 | AL34: 240.068 | AN34: 538.338 | AO34: 301.36 | AP34: 71.204 | AQ34: 462.178 | AS34: 51.001 | AT34: 738.595 | AU34: -48.847 | AV34: 1636.835 | AX34: 485.761 | AY34: 312.443 | BC34: 481.2753042 | BD34: 641.024 | BE34: 576.7768362 | BF34: 1123.846 | BG34: 1233.09 | BH34: 450.126 | BI34: 1118.329 | BJ34: 1373.08 | BK34: 2377.584
B35: Amortization of Concession - TEAG | E35: 0 | F35: 0 | G35: 0 | H35: 0 | J35: 2.799 | K35: 2.1 | L35: 2.1 | M35: 2.09977035 | O35: 2.1 | P35: 2.09977035 | Q35: 2.09977035 | R35: 2.09977035 | T35: 2.09977035 | U35: 2.09977035 | V35: 2.1 | W35: 2.09977035 | Y35: 2.09977035 | Z35: 2.09977035 | AA35: 2.09977035 | AB35: 2.09977035 | AD35: 2.09977035 | AE35: 2.1 | AF35: 2.09977035 | AG35: 2.09977035 | AI35: 2.09977035 | AJ35: 2.1 | AK35: 2.1 | AL35: 2.09931105 | AN35: 2.1 | AO35: 2.1 | AP35: 2.09977035 | AQ35: 2.09877035 | AS35: 2.1 | AT35: 2.1 | AU35: 2.099 | AV35: 2.1000814 | AX35: 2.09977035 | AY35: 2.09977035 | BC35: 0 | BD35: 9.09877035 | BE35: 8.39931105 | BF35: 8.3990814 | BG35: 8.3990814 | BH35: 8.39931105 | BI35: 8.3990814 | BJ35: 8.3990814 | BK35: 8.3990814
B36: Depreciation and Amortization | E36: 307.225 | F36: 348.326 | G36: 252.089 | H36: 200.928 | J36: 281.519 | K36: 413.694 | L36: 338.245 | M36: 334.523 | O36: 191.062 | P36: 296.889 | Q36: 257.966 | R36: 199.7922584 | T36: 153.765 | U36: 262.953 | V36: 267.747 | W36: 359.779 | Y36: 225.807 | Z36: 259.199 | AA36: 280.037 | AB36: 372.456 | AD36: 270.539 | AE36: 369.424 | AF36: 370.803 | AG36: 527.545 | AI36: 349.516 | AJ36: 382.966 | AK36: 382.748 | AL36: 383.6 | AN36: 320.649 | AO36: 450.634 | AP36: 374.779 | AQ36: 309.07 | AS36: 436.155 | AT36: 554.881 | AU36: 428.013 | AV36: 478.978 | AX36: 453.749 | AY36: 635.403 | BC36: 1108.568 | BD36: 1367.981 | BE36: 945.7092584 | BF36: 1044.245 | BG36: 1137.499 | BH36: 1538.311 | BI36: 1498.83 | BJ36: 1455.132 | BK36: 1898.027
B37: Losses (gains) from changes in the Fair Value minus estimated costs of selling Biological Assets | E37: -20.56869573 | F37: -247.462 | G37: 278.83 | H37: -53.903 | J37: 64.475 | K37: -192.18 | L37: 177.964 | M37: 217.016 | O37: 219.721 | P37: -235.892 | Q37: -14.792 | R37: 326.0689536 | T37: 81.676 | U37: -275.796 | V37: 2.728 | W37: 11.385 | Y37: -113.094 | Z37: -521.032 | AA37: -269.15 | AB37: -89.765 | AD37: -57.774 | AE37: -145.469 | AF37: -96.322 | AG37: 54.105 | AI37: 194.282 | AJ37: -153.161 | AK37: -80.763 | AL37: 392.146 | AN37: 56.678 | AO37: -44.898 | AP37: 99.278 | AQ37: -88.624 | AS37: -93.397 | AT37: -101.965 | AU37: -51.943 | AV37: 24.857 | AX37: -213.829 | AY37: -520.715 | BC37: -43.10369573 | BD37: 267.275 | BE37: 295.1059535 | BF37: -180.007 | BG37: -993.041 | BH37: -245.46 | BI37: 352.504 | BJ37: 22.434 | BK37: -222.448
B38: Non-recurring items | E38: 0 | F38: 0 | G38: 0 | H38: 0 | J38: 9.954 | K38: -5.32177262 | L38: 16.032 | M38: -84.3879019 | O38: 0 | P38: 0 | Q38: 13.32646829 | R38: 410.821974 | T38: 0 | U38: -10.22114048 | V38: 19.67875889 | W38: -1.63219902 | Y38: -0.2552125 | Z38: 2.17718037 | AA38: 2.29483782 | AB38: 4.6566525 | AD38: 0.04448154 | AE38: -1.35033702 | AF38: -0.14192796 | AG38: -0.38879027 | AI38: 0.04098636 | AJ38: 5.49569141 | AK38: 158.7707124 | AL38: 134.7126042 | AN38: -1.842 | AO38: 3.283910255 | AP38: 23.65080917 | AQ38: 27.5260469 | AS38: 78.168 | AT38: -47.391 | AU38: 15.943 | AV38: 2.912582435 | AX38: 11.66532609 | AY38: 6.10020054 | BC38: 0 | BD38: -63.72367452 | BE38: 424.1484423 | BF38: 7.82541939 | BG38: 8.87345819 | BH38: -1.83657371 | BI38: 299.0199944 | BJ38: 52.61840093 | BK38: 49.63258244
B39: Adjusted EBITDA | E39: 276.7593043 | F39: 399.787 | G39: 332.243 | H39: 125.788 | J39: 182.639 | K39: 444.3252274 | L39: 405.815 | M39: 253.2468684 | O39: 220.269 | P39: 399.6867704 | Q39: 258.5792386 | R39: 269.2809564 | T39: 219.1997703 | U39: 273.1186299 | V39: 334.4327589 | W39: 495.8335713 | Y39: 181.8975578 | Z39: 344.0899507 | AA39: 437.6016082 | AB39: 477.0244229 | AD39: 140.0192519 | AE39: 457.223663 | AF39: 395.7058424 | AG39: 367.5879801 | AI39: 158.9757567 | AJ39: 373.7596914 | AK39: 567.0607124 | AL39: 486.4189153 | AN39: =SUM(AN32:AN38) -> 258.354 | AO39: =SUM(AO32:AO38) -> 525.1339103 | AP39: =SUM(AP32:AP38) -> 409.0625795 | AQ39: =SUM(AQ32:AQ38) -> 333.7848172 | AS39: =SUM(AS32:AS38) -> 435.925 | AT39: =SUM(AT32:AT38) -> 635.178 | AU39: =SUM(AU32:AU38) -> 443.745 | AV39: =SUM(AV32:AV38) -> 583.2796638 | AX39: =SUM(AX32:AX38) -> 479.2370964 | AY39: =SUM(AY32:AY38) -> 946.1659709 | BC39: =SUM(BC32:BC38) -> 1134.577304 | BD39: 1286.026096 | BE39: 1147.815965 | BF39: 1335.401501 | BG39: 1440.61354 | BH39: 1360.536737 | BI39: 1586.215076 | BJ39: =SUM(BJ32:BJ38) -> 1526.335482 | BK39: 2098.127664
B41: * From 1Q20, includes IFRS16 impacts.

Sheet 6.INDEBTEDNESS
E5: 2011/12 Crop Year | J5: 2012/13 Crop Year | O5: 2013/14 Crop Year | T5: 2014/15 Crop Year | Y5: 2015/16 Crop Year | AD5: 2016/17 Crop Year | AI5: 2017/18 Crop Year | AN5: 2018/19 Crop Year | AS5: 2019/20 Crop Year | AX5: 2020/21 Crop Year | BC5: TOTAL CROP YEAR
B9: Crop Year | E9: 1Q12 | F9: 2Q12 | G9: 3Q12 | H9: 4Q12 | J9: 1Q13 | K9: 2Q13 | L9: 3Q13 | M9: 4Q13 | O9: 1Q14 | P9: 2Q14 | Q9: 3Q14 | R9: 4Q14 | T9: 1Q15 | U9: 2Q15 | V9: 3Q15 | W9: 4Q15 | Y9: 1Q16 | Z9: 2Q16 | AA9: 3Q16 | AB9: 4Q16 | AD9: 1Q17 | AE9: 2Q17 | AF9: 3Q17 | AG9: 4Q17 | AI9: 1Q18 | AJ9: 2Q18 | AK9: 3Q18 | AL9: 4Q18 | AN9: 1Q19 | AO9: 2Q19 | AP9: 3Q19 | AQ9: 4Q19 | AS9: 1Q20 | AT9: 2Q20 | AU9: 3Q20 | AV9: 4Q20 | AX9: 1Q21 | AY9: 2Q21 | AZ9: 3Q21 | BA9: 4Q21 | BC9: 2011/12 | BD9: 2012/13 | BE9: 2013/14 | BF9: 2014/15 | BG9: 2015/16 | BH9: 2016/17 | BI9: 2017/18 | BJ9: 2018/19 | BK9: 2019/20
B11: Debt (R$ Million)
B13: Gross Debt | E13: 0 | F13: 0 | G13: 0 | H13: -5471.164 | J13: -4657.004878 | K13: -4785.393001 | L13: -4863.551508 | M13: -5221.812 | O13: -4695 | P13: -4692.484839 | Q13: -4532.834755 | R13: -5321.740636 | T13: -5301.462 | U13: -5456.339719 | V13: -5486.211423 | W13: -6327.244 | Y13: -6540.624 | Z13: -7666.858 | AA13: -7252.018 | AB13: -6711.929 | AD13: -6051.805 | AE13: -6005.526 | AF13: -5906.727325 | AG13: -6288.653373 | AI13: -6076.484 | AJ13: -5431.68613 | AK13: =AK14+AK15 -> -5453.155088 | AL13: -5302.336423 | AN13: -6282 | AO13: -6070.195 | AP13: -5945.734 | AQ13: -5979.328 | AS13: =-5891 -> -5891 | AT13: -6073 | AU13: -5906.155 | AV13: -7321.425 | AX13: -7761.908 | AY13: -7640.041 | BC13: -5471.164 | BD13: -5221.812 | BE13: -5321.740636 | BF13: -6327.244 | BG13: =AB13 -> -6711.929 | BH13: =AG13 -> -6288.653373 | BI13: -5302.336423 | BJ13: -5979.328 | BK13: -7321.425
B14: Short Term | J14: -1888.506 | K14: -2029.096 | L14: -1961.851 | M14: -1254.433 | O14: -1241.327 | P14: -1398.445 | Q14: -1720.304 | R14: -1907.036 | T14: -2103.03 | U14: -1877.055 | V14: -1748.127878 | W14: -1615.579 | Y14: -1831.397 | Z14: -2295.954 | AA14: -2126.672 | AB14: -1830.913 | AD14: -3358.562 | AE14: -2461.076 | AF14: -2354.233657 | AG14: -1944.006825 | AI14: -2091.119 | AJ14: -2125.688842 | AK14: -2097.894 | AL14: -536.5515327 | AN14: -567 | AO14: -511.165 | AP14: -562.689 | AQ14: -542.971 | AS14: -436 | AT14: -463 | AU14: -482.732 | AV14: -7225.234 | AX14: -1168.611 | AY14: -2899.005 | BC14: 0 | BD14: -1254.433 | BE14: -1907.036 | BF14: -1615.579 | BG14: =AB14 -> -1830.913 | BH14: =AG14 -> -1944.006825 | BI14: -536.5515327 | BJ14: -542.971 | BK14: -7225.234
B15: Long Term | J15: -2769.499 | K15: -2756.393 | L15: -2901.701 | M15: -3967.379 | O15: -3453.571 | P15: -3294.04 | Q15: -2812.53 | R15: -3414.704 | T15: -3198.432 | U15: -3579.285 | V15: -3738.083545 | W15: -4711.665 | Y15: -4709.227 | Z15: -5370.904 | AA15: -5125.346 | AB15: -4881.016 | AD15: -2693.243 | AE15: -3545.45 | AF15: -3552.493668 | AG15: -4344.646548 | AI15: -3985.365 | AJ15: -3305.997288 | AK15: -3355.261088 | AL15: -4765.78489 | AN15: -5715 | AO15: -5559.03 | AP15: -5383.045 | AQ15: -5436.357 | AS15: -5455 | AT15: -5610 | AU15: -5423.423 | AV15: -96.191 | AX15: -6593.297 | AY15: -4741.036 | BC15: 0 | BD15: -3967.379 | BE15: -3414.704 | BF15: -4711.665 | BG15: -4881.016 | BH15: -4344.646548 | BI15: -4765.78489 | BJ15: -5436.357 | BK15: -96.191
B16: Cash and Short-Term Investments | E16: 0 | F16: 0 | G16: 0 | H16: 1207.626 | J16: 300.2561641 | K16: 239 | L16: 192.9417228 | M16: 1363.939 | O16: 1026.805 | P16: 906.842 | Q16: 421.923 | R16: 1848.137 | T16: 1245.845 | U16: 529.899 | V16: 189.98 | W16: 2021.51 | Y16: 1510.69 | Z16: 1240.041 | AA16: 987.753 | AB16: 2239.22 | AD16: 549.076 | AE16: 811.487 | AF16: 520.837 | AG16: 1590.127 | AI16: 858.669 | AJ16: 497.437 | AK16: 407.474 | AL16: 1983.97 | AN16: 1316 | AO16: 859.366 | AP16: 903.551 | AQ16: 1329.012 | AS16: 498 | AT16: 458 | AU16: 269.429 | AV16: 1227.188 | AX16: 429.241 | AY16: 681.301 | BC16: 1207.626 | BD16: 1363.939 | BE16: 1848.137 | BF16: 2021.51 | BG16: 2239.22 | BH16: 1590.127 | BI16: 1983.97 | BJ16: 1329.012 | BK16: 1227.188
B17: Adjusted Net Debt * | E17: 0 | F17: 0 | G17: 0 | H17: -3845.475 | J17: -4111.013147 | K17: -3890.136817 | L17: -3835.215662 | M17: -3659.690245 | O17: -3430.401 | P17: -3266.999839 | Q17: -3498.080755 | R17: -3301.910636 | T17: -3682.937 | U17: -4079.646719 | V17: -4473.801423 | W17: -4139.365 | Y17: -4714.65 | Z17: -5682.729 | AA17: -5507.006 | AB17: -4247.64 | AD17: -5168.334 | AE17: -4512.307 | AF17: -4576.139325 | AG17: -4535.138373 | AI17: -5217.815 | AJ17: -4934.24913 | AK17: =SUM(AK14:AK16) -> -5045.681088 | AL17: -3318.366423 | AN17: -4966 | AO17: -5210.829 | AP17: -5042.183 | AQ17: -4650.316 | AS17: =SUM(AS14:AS16) -> -5393 | AT17: -5615 | AU17: -5636.726 | AV17: -6094.237 | AX17: =SUM(AX14:AX16) -> -7332.667 | AY17: -6958.74 | BC17: -3845.475 | BD17: -3659.690245 | BE17: -3301.910636 | BF17: -4139.365 | BG17: -4247.64 | BH17: -4535.138373 | BI17: -3318.366423 | BJ17: -4650.316 | BK17: -6094.237
B19: FX rate EoP (BRL/USD) | E19: 1.5611 | F19: 1.8544 | G19: 1.8758 | H19: 1.8221 | J19: 2.0213 | K19: 2.0306 | L19: 2.0435 | M19: 2.0138 | O19: 2.2156 | P19: 2.23 | Q19: 2.3426 | R19: 2.263 | T19: 2.2025 | U19: 2.451 | V19: 2.6562 | W19: 3.208 | Y19: 3.1 | Z19: 3.9729 | AA19: 3.9048 | AB19: 3.5589 | AD19: 3.2098 | AE19: 3.2462 | AF19: 3.2591 | AG19: 3.1684 | AI19: 3.3082 | AJ19: 3.168 | AK19: 3.308 | AL19: 3.3238 | AN19: 3.8558 | AO19: 4.0039 | AP19: 3.8748 | AQ19: 3.8967 | AS19: 3.8322 | AT19: 4.1644 | AU19: 4.0307 | AV19: 5.1987 | AX19: 5.476 | AY19: 5.6407 | BC19: 1.8221 | BD19: 2.0138 | BE19: 2.263 | BF19: 3.208 | BG19: =AB19 -> 3.5589 | BH19: =AG19 -> 3.1684 | BI19: 3.3238 | BJ19: 3.8967 | BK19: 5.1987
B21: * Until 16/17, Net Debt considers RMI (readily marketable inventories) adjustment

Sheet 7.CAPEX
E5: 2011/12 Crop Year | J5: 2012/13 Crop Year | O5: 2013/14 Crop Year | T5: 2014/15 Crop Year | Y5: 2015/16 Crop Year | AD5: 2016/17 Crop Year | AI5: 2017/18 Crop Year | AN5: 2018/19 Crop Year | AS5: 2019/20 Crop Year | AX5: 2020/21 Crop Year | BC5: TOTAL CROP YEAR
B9: Crop Year | E9: 1Q12 | F9: 2Q12 | G9: 3Q12 | H9: 4Q12 | J9: 1Q13 | K9: 2Q13 | L9: 3Q13 | M9: 4Q13 | O9: 1Q14 | P9: 2Q14 | Q9: 3Q14 | R9: 4Q14 | T9: 1Q15 | U9: 2Q15 | V9: 3Q15 | W9: 4Q15 | Y9: 1Q16 | Z9: 2Q16 | AA9: 3Q16 | AB9: 4Q16 | AD9: 1Q17 | AE9: 2Q17 | AF9: 3Q17 | AG9: 4Q17 | AI9: 1Q18 | AJ9: 2Q18 | AK9: 3Q18 | AL9: 4Q18 | AN9: 1Q19 | AO9: 2Q19 | AP9: 3Q19 | AQ9: 4Q19 | AS9: 1Q20 | AT9: 2Q20 | AU9: 3Q20 | AV9: 4Q20 | AX9: 1Q21 | AY9: 2Q21 | AZ9: 3Q21 | BA9: 4Q21 | BC9: 2011/12 | BD9: 2012/13 | BE9: 2013/14 | BF9: 2014/15 | BG9: 2015/16 | BH9: 2016/17 | BI9: 2017/18 | BJ9: 2018/19 | BK9: 2019/20
B11: TOTAL (R$ Million) | E11: 314.1788614 | F11: 225.7015882 | G11: 351.8157175 | H11: 444.4887239 | J11: 359.1835048 | K11: 253.59332 | L11: 286.8103438 | M11: 504.1705151 | O11: 239.4183979 | P11: 200.7587204 | Q11: 246.828752 | R11: 484.9054697 | T11: 242.1780486 | U11: 203.0740835 | V11: 270.4328106 | W11: 415.678799 | Y11: 225.6275894 | Z11: 219.8161583 | AA11: 236.6847037 | AB11: 474.6024233 | AD11: 250.5037669 | AE11: 261.500539 | AF11: 334.653336 | AG11: 531.4461715 | AI11: 266.7047915 | AJ11: =+AJ13+AJ15 -> 185.0080311 | AK11: =AK13+AK15 -> 280.8441773 | AL11: 430.49 | AN11: 199.597 | AO11: 185.8443068 | AP11: 315.341111 | AQ11: 568.559931 | AS11: =+AS13+AS15 -> 278.808 | AT11: 176.042 | AU11: =+AU13+AU15 -> 306.1137619 | AV11: =+AV13+AV15 -> 412.2178055 | AX11: =+AX13+AX15 -> 242.804 | AY11: 198.439484 | BC11: =+BC13+BC15 -> 1336.184891 | BD11: 1344.527515 | BE11: 1205.813 | BF11: 1131.393384 | BG11: 1156.730875 | BH11: 1378.103813 | BI11: 1163.046776 | BJ11: 1269.340349 | BK11: 1171.899465
B13: EXPANSION (R$ Million) | E13: 59.04271493 | F13: 29.60981791 | G13: 31.43219414 | H13: 52.69642639 | J13: 64.6855048 | K13: 39.73142333 | L13: 52.53486746 | M13: 31.98821171 | O13: 19.83633048 | P13: 8.42384254 | Q13: 7.20665507 | R13: 18.21265764 | T13: 3.32749786 | U13: 2.61208036 | V13: 1.20711174 | W13: 5.63565268 | Y13: 3.20392746 | Z13: 8.42401716 | AA13: 3.20256514 | AB13: 2.79957221 | AD13: 4.627089 | AE13: 4.68099174 | AF13: 7.37216641 | AG13: 1.34348209 | AI13: 1.6647427 | AJ13: 1.2786057 | AK13: 0.50434576 | AL13: 5.748430921 | AN13: 2.346 | AO13: 7.55297114 | AP13: 1.69059375 | AQ13: 28.86692345 | AS13: =2629/1000 -> 2.629 | AT13: 1.281 | AU13: 3.35176192 | AV13: 10.0405984 | AX13: 3.254 | AY13: 5.73882806 | BC13: 172.7811534 | BD13: 188.9400073 | BE13: 53.923 | BF13: 12.78234264 | BG13: =SUM(Y13:AB13) -> 17.63008197 | BH13: =SUM(AD13:AG13) -> 18.02372924 | BI13: =SUM(AI13:AL13) -> 9.196125081 | BJ13: 40.45648834 | BK13: 17.30230243
B15: OPERATIONS (R$ Million) | E15: 255.1361465 | F15: 196.0917703 | G15: 320.3835234 | H15: 391.7922975 | J15: 294.498 | K15: 213.8618967 | L15: 234.2754764 | M15: 472.1823034 | O15: 219.5820675 | P15: 192.3348779 | Q15: 239.6220969 | R15: 466.6928121 | T15: 238.8505507 | U15: 200.4620032 | V15: 269.2256989 | W15: 410.0431463 | Y15: 222.4236619 | Z15: 211.3921412 | AA15: 233.4821386 | AB15: 471.8028511 | AD15: 245.8766779 | AE15: 256.8195472 | AF15: 327.2811696 | AG15: 530.1026894 | AI15: 265.0400488 | AJ15: =SUM(AJ17:AJ22) -> 183.7294254 | AK15: =SUM(AK17:AK22) -> 280.3398316 | AL15: =SUM(AL17:AL22) -> 424.7413451 | AN15: =SUM(AN17:AN22) -> 197.249 | AO15: =SUM(AO17:AO22) -> 178.2913356 | AP15: =SUM(AP17:AP22) -> 313.6505172 | AQ15: =SUM(AQ17:AQ22) -> 539.6930075 | AS15: =SUM(AS17:AS22) -> 276.179 | AT15: =SUM(AT17:AT22) -> 174.761 | AU15: =SUM(AU17:AU22) -> 302.762 | AV15: =SUM(AV17:AV22) -> 402.1772071 | AX15: =SUM(AX17:AX22) -> 239.55 | AY15: =SUM(AY17:AY22) -> 192.700656 | BC15: =SUM(BC17:BC22) -> 1163.403738 | BD15: =SUM(BD17:BD22) -> 1155.587508 | BE15: =SUM(BE17:BE22) -> 1151.89 | BF15: =SUM(BF17:BF22) -> 1118.611042 | BG15: =SUM(BG17:BG22) -> 1139.100793 | BH15: =SUM(BH17:BH22) -> 1360.080084 | BI15: =SUM(BI17:BI22) -> 1153.850651 | BJ15: =SUM(BJ17:BJ22) -> 1228.88386 | BK15: =SUM(BK17:BK22) -> 1154.597162
B17: Industrial | E17: 21.32932686 | F17: 16.65879782 | G17: 13.94027784 | H17: 33.98530671 | J17: 19.078 | K17: 7.37436849 | L17: 5.53982823 | M17: 32.70279396 | O17: 20.98485899 | P17: 10.5107286 | Q17: 3.6140165 | R17: 49.11879128 | T17: 8.76236605 | U17: 8.55662298 | V17: 8.02928872 | W17: 32.20676398 | Y17: 5.873714 | Z17: 9.40961668 | AA17: 13.46317613 | AB17: 39.02438757 | AD17: 18.02051 | AE17: 21.33665077 | AF17: 26.81310403 | AG17: 50.27835345 | AI17: 33.30512491 | AJ17: 15.41639021 | AK17: 20.94410934 | AL17: 79.90475813 | AN17: 12.078 | AO17: 11.81949196 | AP17: 24.39567024 | AQ17: 82.25001077 | AS17: =4462/1000 -> 4.462 | AT17: 4.994 | AU17: 20.309 | AV17: 71.34898083 | AX17: 11.361 | AY17: 11.0713864 | BC17: 85.91370923 | BD17: 64.69499068 | BE17: 84.187 | BF17: 57.55504173 | BG17: =SUM(Y17:AB17) -> 67.77089438 | BH17: =SUM(AD17:AG17) -> 116.4486183 | BI17: =SUM(AI17:AL17) -> 149.5703826 | BJ17: 130.543173 | BK17: 101.1143074
B18: Agriculture | E18: 14.20850652 | F18: 6.47737722 | G18: 6.66795226 | H18: 2.56682715 | J18: 30.771 | K18: 4.67660414 | L18: 2.22147243 | M18: 19.62844079 | O18: 17.34131056 | P18: 1.5098426 | Q18: 3.70963248 | R18: 11.56179518 | T18: 20.11624537 | U18: 2.40477094 | V18: 2.51417268 | W18: 0.66899646 | Y18: 0.24163018 | Z18: 4.5014476 | AA18: 7.73723888 | AB18: 7.54381716 | AD18: 6.083501 | AE18: 3.0318059 | AF18: 4.66885957 | AG18: 1.64922289 | AI18: 10.67929333 | AJ18: 0.48666244 | AK18: 0.1593346 | AL18: 1.328964189 | AN18: 0.119 | AO18: 0.235 | AP18: 0.34114362 | AQ18: 61.75143441 | AS18: =18469/1000 -> 18.469 | AT18: 1.654 | AU18: 2.509 | AV18: 1.33733926 | AX18: 0.665 | AY18: 0.52053178 | BC18: 29.92066315 | BD18: 57.29751736 | BE18: 34.158 | BF18: 25.701 | BG18: 20.02413382 | BH18: =SUM(AD18:AG18) -> 15.43338936 | BI18: =SUM(AI18:AL18) -> 12.65425456 | BJ18: 62.44657803 | BK18: 23.96914121
B19: Planting | E19: 49.05456801 | F19: 73.87961332 | G19: 75.39097516 | H19: 73.18438381 | J19: 71.064 | K19: 72.42076514 | L19: 77.16997696 | M19: 76.13671396 | O19: 68.338 | P19: 64.11555657 | Q19: 62.95747178 | R19: 100.0918447 | T19: 68.72764389 | U19: 67.85127557 | V19: 70.35680299 | W19: 88.70618198 | Y19: 80.94710835 | Z19: 71.78878619 | AA19: 65.76508972 | AB19: 116.6402328 | AD19: 90.29279657 | AE19: 87.20357917 | AF19: 96.04834203 | AG19: 111.5296895 | AI19: 73.85884971 | AJ19: 18.47526299 | AK19: 19.29234803 | AL19: 30.76757622 | AN19: 36.429 | AO19: 18.65539077 | AP19: 17.62383883 | AQ19: 60.83934457 | AS19: =99599/1000 -> 99.599 | AT19: 36.794 | AU19: 47.148 | AV19: 35.50285963 | AX19: 115.596 | AY19: 57.96038509 | BC19: 271.5095403 | BD19: 295.995 | BE19: 322.128 | BF19: 295.642 | BG19: 335.141217 | BH19: 385.0744073 | BI19: 142.3940369 | BJ19: 133.5475742 | BK19: 229.3075155
B20: Treatment | E20: 58.87530178 | F20: 81.47324937 | G20: 80.98411452 | H20: 50.72308946 | J20: 50.004 | K20: 88.11901977 | L20: 99.22460295 | M20: 52.3613703 | O20: 66.228 | P20: 77.54329228 | Q20: 94.63652288 | R20: 49.67746049 | T20: 66.66649623 | U20: 85.4577217 | V20: 85.42417439 | W20: 50.01417033 | Y20: 71.22422123 | Z20: 100.2620038 | AA20: 121.1386729 | AB20: 95.95786755 | AD20: 79.21972948 | AE20: 112.7585776 | AF20: 129.3150301 | AG20: 75.5985536 | AI20: 110.9186908 | AJ20: 127.4824031 | AK20: 118.5478302 | AL20: 72.7930466 | AN20: 117.679 | AO20: 133.4456568 | AP20: 125.9028273 | AQ20: 89.18046668 | AS20: =96169/1000 -> 96.169 | AT20: 113.621 | AU20: 105.903 | AV20: 80.5369916 | AX20: 106.114 | AY20: 121.7792408 | BC20: 272.0557551 | BD20: 288.158 | BE20: 290.813 | BF20: 287.563 | BG20: 388.5827655 | BH20: 396.8918908 | BI20: 429.7419707 | BJ20: 466.2079509 | BK20: 396.2288315
B21: Intercrop maintenance (Agr/Ind) | E21: 91.4243862 | F21: 0.01805880042 | G21: 124.1426131 | H21: 213.8476996 | J21: 87.948 | K21: 18.66816898 | L21: 35.53185012 | M21: 284.4691564 | O21: 31.88111812 | P21: 23.44254093 | Q21: 67.29828549 | R21: 250.9314504 | T21: 66.67290456 | U21: 17.94025894 | V21: 99.60387369 | W21: 224.6257532 | Y21: 59.44962965 | Z21: 21.28390337 | AA21: 16.71243451 | AB21: 197.0944671 | AD21: 41.0286143 | AE21: 17.79821445 | AF21: 64.7188268 | AG21: 288.8272517 | AI21: 33.35690303 | AJ21: 20.35895852 | AK21: 120.3963586 | AL21: 232.696 | AN21: 29.031 | AO21: 12.30308137 | AP21: 144.1335515 | AQ21: 241.062749 | AS21: =40974/1000 -> 40.974 | AT21: 14.904 | AU21: 121.894 | AV21: 208.785154 | AX21: 3.413 | AY21: 0 | BC21: 429.4327577 | BD21: 375.981 | BE21: 382.597 | BF21: 408.843 | BG21: 294.5404347 | BH21: 412.3729072 | BI21: 406.8082202 | BJ21: 426.5303819 | BK21: 386.5581859
B22: Other | E22: 20.2440571 | F22: 17.58467378 | G22: 19.25759045 | H22: 17.48499082 | J22: 35.633 | K22: 22.60297017 | L22: 14.58774567 | M22: 6.883828 | O22: 14.80877979 | P22: 15.21291691 | Q22: 7.40616778 | R22: 5.31147006 | T22: 7.90489461 | U22: 18.25135306 | V22: 3.29738641 | W22: 13.82128037 | Y22: 4.68735849 | Z22: 4.14638351 | AA22: 8.66552646 | AB22: 15.54207896 | AD22: 11.23152652 | AE22: 14.69071932 | AF22: 5.71700704 | AG22: 2.21961833 | AI22: 2.921187 | AJ22: 1.50974821 | AK22: 0.99985077 | AL22: 7.251 | AN22: 1.913 | AO22: 1.83271469 | AP22: 1.25348565 | AQ22: 4.60900209 | AS22: =16506/1000 -> 16.506 | AT22: 2.794 | AU22: 4.999 | AV22: 4.66588179 | AX22: 2.401 | AY22: 1.36911195 | BC22: 74.57131215 | BD22: 73.461 | BE22: 38.007 | BF22: 43.307 | BG22: 33.04134742 | BH22: 33.85887121 | BI22: 12.68178598 | BJ22: 9.60820243 | BK22: 17.41918089

Sheet 8.INCOME STATEMENT
E5: 2011/12 Crop Year | J5: 2012/13 Crop Year | O5: 2013/14 Crop Year | T5: 2014/15 Crop Year | Y5: 2015/16 Crop Year | AD5: 2016/17 Crop Year | AI5: 2017/18 Crop Year | AN5: 2018/19 Crop Year | AS5: 2019/20 Crop Year | AX5: 2020/21 Crop Year | BC5: TOTAL CROP YEAR
B9: Crop Year | E9: 1Q12 | F9: 2Q12 | G9: 3Q12 | H9: 4Q12 | J9: 1Q13 | K9: 2Q13 | L9: 3Q13 | M9: 4Q13 | O9: 1Q14 | P9: 2Q14 | Q9: 3Q14 | R9: 4Q14 | T9: 1Q15 | U9: 2Q15 | V9: 3Q15 | W9: 4Q15 | Y9: 1Q16 | Z9: 2Q16 | AA9: 3Q16 | AB9: 4Q16 | AD9: 1Q17 | AE9: 2Q17 | AF9: 3Q17 | AG9: 4Q17 | AI9: 1Q18 | AJ9: 2Q18 | AK9: 3Q18 | AL9: 4Q18 | AN9: 1Q19 | AO9: 2Q19 | AP9: 3Q19 | AQ9: 4Q19 | AS9: 1Q20 | AT9: 2Q20 | AU9: 3Q20 | AV9: 4Q20 | AX9: 1Q21 | AY9: 2Q21 | AZ9: 3Q21 | BA9: 4Q21 | BC9: 2011/12 | BD9: 2012/13 | BE9: 2013/14 | BF9: 2014/15 | BG9: 2015/16 | BH9: 2016/17 | BI9: 2017/18 | BJ9: 2018/19 | BK9: 2019/20
B11: INCOME STATEMENT (R$ Million) *
B13: Gross Revenue | E13: 942.259 | F13: 1187.989 | G13: 908.638 | H13: 675.489 | J13: 979.463 | K13: 1396.414 | L13: 1070.789 | M13: 1041.986 | O13: 1122.071 | P13: 1378.602 | Q13: 1055.089 | R13: 924.454 | T13: 970.217 | U13: 1162.596 | V13: 1082.733 | W13: 1548.406 | Y13: 1410.271 | Z13: 1791.216 | AA13: 1781.486 | AB13: 1451.39 | AD13: 1734.042 | AE13: 2304.81 | AF13: 1630.677 | AG13: 1732.734 | AI13: 1935.691 | AJ13: 1870.548 | AK13: 1675.9 | AL13: 2112.934 | AN13: 2051.25 | AO13: =1617191/1000 -> 1617.191 | AP13: 1724.963 | AQ13: 1423.427 | AS13: 1846 | AT13: 1670.06 | AU13: 1502.993 | AV13: 2047.632 | AX13: 2728.766 | AY13: 3048.828 | BC13: 3714.375 | BD13: 4488.652 | BE13: 4480.216 | BF13: 4763.952 | BG13: =SUM(Y13:AB13) -> 6434.363 | BH13: =SUM(AD13:AG13) -> 7402.263 | BI13: =SUM(AI13:AL13) -> 7595.073 | BJ13: =SUM(AN13:AQ13) -> 6816.831 | BK13: =SUM(AS13:AV13) -> 7066.685
B14: Net Revenue | E14: 855.4077304 | F14: 1111.583 | G14: 837.151 | H14: 598.7529911 | J14: 897.4210054 | K14: 1310.683534 | L14: 980.607 | M14: 963.498 | O14: 1065.208 | P14: 1333.940189 | Q14: 1015.897 | R14: 852.478 | T14: 911.098 | U14: 1111.21301 | V14: 1031.574 | W14: 1459.296552 | Y14: 1362.426 | Z14: 1740.243049 | AA14: 1693.157 | AB14: 1366.822 | AD14: 1672.682 | AE14: 2229.541 | AF14: 1550.533 | AG14: 1572.298 | AI14: 1832.242 | AJ14: 1780.041 | AK14: 1535.433 | AL14: 1955.928 | AN14: 1916.037 | AO14: =1483106/1000 -> 1483.106 | AP14: 1559.926 | AQ14: 1273.103 | AS14: =1718364/1000 -> 1718.364 | AT14: 1552.459 | AU14: 1389.546 | AV14: 1877.717 | AX14: 2669.626 | AY14: 2984.603 | BC14: 3402.894721 | BD14: 4152.209539 | BE14: 4267.523189 | BF14: 4513.181562 | BG14: =SUM(Y14:AB14) -> 6162.648049 | BH14: =SUM(AD14:AG14) -> 7025.054 | BI14: =SUM(AI14:AL14) -> 7103.644 | BJ14: =SUM(AN14:AQ14) -> 6232.172 | BK14: =SUM(AS14:AV14) -> 6538.086
B15: Cash COGS | E15: -447.314 | F15: -552.406 | G15: -423.541 | H15: -378.877 | J15: -584.425 | K15: -698.226 | L15: -446.089 | M15: -575.05 | O15: -724.699 | P15: -769.966 | Q15: -631.518 | R15: -500.229 | T15: -537.285 | U15: -652.733 | V15: -661.94 | W15: -896.535 | Y15: -1115.421 | Z15: -1232.01 | AA15: -1102.878 | AB15: -835.747 | AD15: -1402.555 | AE15: -1576.204 | AF15: -1039.415 | AG15: -1111.151 | AI15: -1476.918 | AJ15: -1203.813 | AK15: -859.436 | AL15: -1432.403 | AN15: -1481.067 | AO15: =-778245/1000 -> -778.245 | AP15: =-1052861/1000 -> -1052.861 | AQ15: -875.165 | AS15: -1150.681 | AT15: -843.911 | AU15: -847.228 | AV15: -1286.789 | AX15: -2024.04 | AY15: -1858.707 | BC15: -1802.138 | BD15: -2303.79 | BE15: -2626.412 | BF15: -2748.493 | BG15: -4286.056 | BH15: =SUM(AD15:AG15) -> -5129.325 | BI15: =SUM(AI15:AL15) -> -4972.57 | BJ15: =SUM(AN15:AQ15) -> -4187.338 | BK15: =SUM(AS15:AV15) -> -4128.609
B16: Gross Profit Cash | E16: 408.0937304 | F16: 559.177 | G16: 413.61 | H16: 219.8759911 | J16: 312.9960054 | K16: 612.4575336 | L16: 534.518 | M16: 388.448 | O16: 340.509 | P16: 563.9741889 | Q16: 384.379 | R16: 352.249 | T16: 373.813 | U16: 458.48001 | V16: 369.634 | W16: 562.7615524 | Y16: 247.005 | Z16: 508.2330492 | AA16: 590.279 | AB16: 531.075 | AD16: 270.127 | AE16: 653.337 | AF16: 511.118 | AG16: 461.147 | AI16: 355.324 | AJ16: 576.228 | AK16: 675.997 | AL16: 523.525 | AN16: 434.97 | AO16: =+AO14+AO15 -> 704.861 | AP16: =+AP14+AP15 -> 507.065 | AQ16: =+AQ14+AQ15 -> 397.938 | AS16: =SUM(AS14:AS15) -> 567.683 | AT16: =+AT14+AT15 -> 708.548 | AU16: =+AU14+AU15 -> 542.318 | AV16: =+AV14+AV15 -> 590.928 | AX16: =SUM(AX14:AX15) -> 645.586 | AY16: =SUM(AY14:AY15) -> 1125.896 | BC16: 1600.756721 | BD16: 1848.419539 | BE16: 1642.645212 | BF16: 1766.255404 | BG16: =SUM(Y16:AB16) -> 1876.592049 | BH16: =SUM(AD16:AG16) -> 1895.729 | BI16: =SUM(AI16:AL16) -> 2131.074 | BJ16: =SUM(AN16:AQ16) -> 2044.834 | BK16: =SUM(AS16:AV16) -> 2409.477
B17: Cash Gross Margin | E17: 0.4770751022 | F17: 0.5030456565 | G17: 0.4940685731 | H17: 0.3672232028 | J17: 0.348772765 | K17: 0.4672810163 | L17: 0.5450889092 | M17: 0.4031643034 | O17: 0.3196643285 | P17: 0.4227882131 | Q17: 0.3783641452 | R17: 0.4132059713 | T17: 0.4102884651 | U17: 0.4125941704 | V17: 0.3583203919 | W17: 0.3856389241 | Y17: 0.18129792 | Z17: 0.2920471651 | AA17: 0.3486262644 | AB17: 0.3885473017 | AD17: 0.1614933382 | AE17: 0.2930365488 | AF17: 0.3296401947 | AG17: 0.2932949097 | AI17: 0.1939285313 | AJ17: 0.3237161391 | AK17: 0.4402647331 | AL17: 0.2676606705 | AN17: =AN16/AN14 -> 0.2270154491 | AO17: =AO16/AO14 -> 0.4752600286 | AP17: =AP16/AP14 -> 0.325057086 | AQ17: =AQ16/AQ14 -> 0.3125732953 | AS17: =AS16/AS14 -> 0.3303624843 | AT17: =AT16/AT14 -> 0.4564036796 | AU17: =AU16/AU14 -> 0.3902843087 | AV17: =AV16/AV14 -> 0.3147055706 | AX17: =AX16/AX14 -> 0.2418263832 | AY17: =AY16/AY14 -> 0.3772347612 | BC17: =BC16/BC14 -> 0.4704102984 | BD17: 0.4451652841 | BE17: 0.3849177002 | BF17: 0.3913548303 | BG17: 0.304510664 | BH17: 0.2698525876 | BI17: 0.2999972972 | BJ17: 0.3281093654 | BK17: =BK16/BK14 -> 0.3685294137
B18: SG&A (Cash) | E18: -106.718 | F18: -124.413 | G18: -121.21 | H18: -90.926 | J18: -116.478 | K18: -148.23 | L18: -129.817 | M18: -119.123 | O18: -127.287 | P18: -175.686 | Q18: -127.874 | R18: -94.319 | T18: -127.032 | U18: -145.872 | V18: -117.586 | W18: -120.734 | Y18: -129.314 | Z18: -156.179 | AA18: -148.112 | AB18: -116.448 | AD18: -143.574 | AE18: -192.885 | AF18: -140.139 | AG18: -94.091 | AI18: -180.997 | AJ18: -179.165 | AK18: -129.395 | AL18: -101.475 | AN18: -124.633 | AO18: =-139527/1000 -> -139.527 | AP18: -88.042 | AQ18: -90 | AS18: -103.426 | AT18: -145.586 | AU18: -122.668414 | AV18: -60.61902 | AX18: -149.161 | AY18: -170.335 | BC18: -443.267 | BD18: -513.648 | BE18: -525.166 | BF18: -511.224 | BG18: -550.053 | BH18: =SUM(AD18:AG18) -> -570.689 | BI18: =SUM(AI18:AL18) -> -591.032 | BJ18: =SUM(AN18:AQ18) -> -442.202 | BK18: =SUM(AS18:AV18) -> -432.299434
B19: Other Revenue (Expenses) | E19: -24.617 | F19: -34.975 | G19: 39.841 | H19: -1.401 | J19: -24.18354228 | K19: -17.084 | L19: -16.577 | M19: 66.504 | O19: 5.758 | P19: 9.725 | Q19: -15.065 | R19: -399.484 | T19: -28.577 | U19: -30.128 | V19: 64.731 | W19: 70.689 | Y19: 64.852 | Z19: -10.969 | AA19: -18.823 | AB19: 55.647 | AD19: 14.317 | AE19: -2.331 | AF19: 23.138 | AG19: 1.699 | AI19: -15.548 | AJ19: -31.669 | AK19: -138.192 | AL19: -70.758 | AN19: -47.012 | AO19: =-44142/1000 -> -44.142 | AP19: -31.613 | AQ19: -3 | AS19: -105.125 | AT19: 120.674 | AU19: 8.89 | AV19: 46.314 | AX19: -28.018 | AY19: -16.623 | BC19: -21.152 | BD19: 8.65945772 | BE19: -399.066 | BF19: 76.715 | BG19: 90.707 | BH19: 36.823 | BI19: =SUM(AI19:AL19) -> -256.167 | BJ19: -125.767 | BK19: 70.753
B20: Equity in subsidiaries | E20: 0 | F20: 0 | G20: 0 | H20: -1.762 | J20: -2.448 | K20: 0.405 | L20: -0.441 | M20: -0.294 | O20: -0.811 | P20: -0.426 | Q20: 1.712 | R20: -2.088 | T20: -1.104 | U20: -1.24 | V20: -4.125 | W20: -4.532 | Y20: -2.49 | Z20: -1.272 | AA20: 9.863 | AB20: -0.006 | AD20: -2.995 | AE20: -1.647 | AF20: -0.369 | AG20: -2.878 | AI20: -1.944 | AJ20: 0.77 | AK20: -2.22 | AL20: -1.685 | AN20: -5.229 | AO20: =-1442/1000 -> -1.442 | AP20: -4.098 | AQ20: =-604/1000 -> -0.604 | AS20: -3.475 | AT20: -3.167 | AU20: -3.412 | AV20: 1.102 | AX20: -2.935 | AY20: -0.972 | BC20: -1.762 | BD20: -2.778 | BE20: -1.613 | BF20: -11.001 | BG20: 6.095 | BH20: -7.889 | BI20: -5.079 | BJ20: -11.373 | BK20: -8.952
B21: Depreciation and Amortization | E21: -307.225 | F21: -348.326 | G21: -252.089 | H21: -200.928 | J21: -281.519 | K21: -413.694 | L21: -338.245 | M21: -334.523 | O21: -191.062 | P21: -296.889 | Q21: -257.966 | R21: -199.7922584 | T21: -153.765 | U21: -262.953 | V21: -267.747 | W21: -359.779 | Y21: -225.807 | Z21: -259.199 | AA21: -280.037 | AB21: -372.456 | AD21: -270.539 | AE21: -369.424 | AF21: -370.803 | AG21: -527.545 | AI21: -349.516 | AJ21: -382.966 | AK21: -382.748 | AL21: -383.6 | AN21: -320.649 | AO21: =-450634/1000 -> -450.634 | AP21: -374.779 | AQ21: -309 | AS21: -436.155 | AT21: -554.881 | AU21: -428.013 | AV21: -478.978 | AX21: -453.749 | AY21: -635.403 | BC21: -1108.568 | BD21: -1367.981 | BE21: -945.7092584 | BF21: -1044.244 | BG21: -1137.499 | BH21: -1538.311 | BI21: -1498.83 | BJ21: -1455.062 | BK21: -1898.027
B22: Changes in FV Biological Assets | E22: 20.56869573 | F22: 247.462 | G22: -278.83 | H22: 53.903 | J22: -64.475 | K22: 192.18 | L22: -177.964 | M22: -217.016 | O22: -219.721 | P22: 235.892 | Q22: 14.792 | R22: -326.0689536 | T22: -81.676 | U22: 275.796 | V22: -2.728 | W22: -11.385 | Y22: 113.094 | Z22: 521.032 | AA22: 269.15 | AB22: 89.765 | AD22: 57.774 | AE22: 145.469 | AF22: 96.322 | AG22: -54.105 | AI22: -194.282 | AJ22: 153.161 | AK22: 80.763 | AL22: -392.146 | AN22: -56.678 | AO22: =44898/1000 -> 44.898 | AP22: -99.278 | AQ22: 88.624 | AS22: 93.397 | AT22: 101.965 | AU22: 51.943 | AV22: -24.857 | AX22: 213.829 | AY22: 520.715 | BC22: 43.10369573 | BD22: -267.275 | BE22: -295.1059535 | BF22: 180.007 | BG22: 993.041 | BH22: 245.46 | BI22: -352.504 | BJ22: -22.434 | BK22: 222.448
B23: EBIT | E23: -9.897573858 | F23: 298.925 | G23: -198.678 | H23: -21.23800892 | J23: -176.1075369 | K23: 226.0345336 | L23: -128.526 | M23: -216.004 | O23: -192.614 | P23: 336.5901889 | Q23: -0.022 | R23: -669.503212 | T23: -18.341 | U23: 294.08301 | V23: 42.179 | W23: 137.0205524 | Y23: 67.34 | Z23: 601.6460492 | AA23: 422.32 | AB23: 187.577 | AD23: -74.89 | AE23: 232.519 | AF23: 119.267 | AG23: -215.773 | AI23: -386.963 | AJ23: 136.359 | AK23: 104.205 | AL23: -426.139 | AN23: =+AN16+AN18+AN19+AN20+AN21+AN22 -> -119.231 | AO23: =+AO16+AO18+AO19+AO20+AO21+AO22 -> 114.014 | AP23: =+AP16+AP18+AP19+AP20+AP21+AP22 -> -90.745 | AQ23: =AQ16+SUM(AQ18:AQ22) -> 83.958 | AS23: =+AS16+AS18+AS19+AS20+AS21+AS22 -> 12.899 | AT23: =+AT16+AT18+AT19+AT20+AT21+AT22 -> 227.553 | AU23: =+AU16+AU18+AU19+AU20+AU21+AU22 -> 49.057586 | AV23: =AV16+SUM(AV18:AV22) -> 73.88998 | AX23: =+AX16+AX18+AX19+AX20+AX21+AX22 -> 225.552 | AY23: =+AY16+AY18+AY19+AY20+AY21+AY22 -> 823.278 | BC23: 69.11141722 | BD23: -294.6030033 | BE23: -525.5490231 | BF23: 454.9415624 | BG23: 1278.883049 | BH23: 61.123 | BI23: -572.538 | BJ23: -12.004 | BK23: =SUM(AS23:AV23) -> 363.399566
B24: Financial Result, net | E24: 25.202 | F24: -403.975 | G24: -98.236 | H24: -4.26630424 | J24: -329.35 | K24: -121.161 | L24: -116.506 | M24: -74.007 | O24: -241.788 | P24: -119.043 | Q24: -159.3678362 | R24: -56.578 | T24: -87.762 | U24: -295.609 | V24: -219.756 | W24: -520.721 | Y24: -91.242 | Z24: -859.523 | AA24: -106.582 | AB24: -175.743 | AD24: 27.02 | AE24: -234.848 | AF24: -168.257 | AG24: -74.041 | AI24: -474.28 | AJ24: 36.027 | AK24: -440.008 | AL24: -240.068 | AN24: -538.338 | AO24: =-301360/1000 -> -301.36 | AP24: -71.204 | AQ24: -462.178 | AS24: =-51001/1000 -> -51.001 | AT24: -738.595 | AU24: 48.847 | AV24: -1636.835 | AX24: -485.761 | AY24: -312.443 | BC24: -481.2753042 | BD24: -641.024 | BE24: -576.7768362 | BF24: -1123.846 | BG24: -1233.09 | BH24: -450.126 | BI24: -1118.329 | BJ24: -1373.08 | BK24: -2377.584
B25: Interest Revenues | E25: 122.366 | F25: 208.689 | G25: 99.556 | H25: 12.291 | J25: 183.701 | K25: 35.003 | L25: 69.018 | M25: -6.644 | O25: 303.987 | P25: 192.496 | Q25: 35.899 | R25: -46.546 | T25: 84.179 | U25: 93.945 | V25: 88.571 | W25: 195.121 | Y25: 162.977 | Z25: 181.333 | AA25: 596.611 | AB25: -460.882 | AD25: 1136.176 | AE25: 156.835 | AF25: 19.047 | AG25: 14.712 | AI25: 15.377 | AJ25: 8.368 | AK25: 4.609 | AL25: 23.677 | AN25: 21.35 | AO25: =16242/1000 -> 16.242 | AP25: 12.419 | AQ25: 10 | AS25: =12967/1000 -> 12.967 | AT25: 8.731 | AU25: 10.302 | AV25: 1.385 | AX25: 8.512 | AY25: 7.053 | BC25: 272.968 | BD25: 212.032 | BE25: 201.58 | BF25: 332.824 | BG25: =SUM(Y25:AB25) -> 480.039 | BH25: 1326.77 | BI25: 52.031 | BJ25: 60.011 | BK25: 33.385
B26: Interest Expenses | E26: -138.809 | F26: -501.049 | G26: -185.057 | H26: -29.99530424 | J26: -378.489 | K26: -153.202 | L26: -175.958 | M26: -94.469 | O26: -408.747 | P26: -273.772 | Q26: -158.457 | R26: -37.612 | T26: -219.95 | U26: -208.282 | V26: -187.064 | W26: -355.542 | Y26: -284.692 | Z26: -249.953 | AA26: -768.263 | AB26: 47.382 | AD26: -1426.309 | AE26: -363.111 | AF26: -169.156 | AG26: -190.105 | AI26: -251.775 | AJ26: -199.439 | AK26: -208.089 | AL26: -227.458 | AN26: -166.344 | AO26: =-114950/1000 -> -114.95 | AP26: -108.681 | AQ26: -83 | AS26: =-149531/1000 -> -149.531 | AT26: -226.493 | AU26: -143.179 | AV26: -148.499 | AX26: -160.221 | AY26: -153.29 | BC26: -684.9753042 | BD26: -733.073 | BE26: -594.319 | BF26: -841.844 | BG26: -1255.526 | BH26: -2148.681 | BI26: -886.761 | BJ26: -472.975 | BK26: -667.702
B27: FX Variation & Deravitives | E27: 41.645 | F27: -111.615 | G27: -12.735 | H27: 13.438 | J27: -134.562 | K27: -2.962 | L27: -9.566 | M27: 27.106 | O27: -137.028 | P27: -37.767 | Q27: -36.80983624 | R27: 27.58 | T27: 48.009 | U27: -181.272 | V27: -121.263 | W27: -360.3 | Y27: 30.473 | Z27: -790.903 | AA27: 65.07 | AB27: 237.755 | AD27: 317.153 | AE27: -28.572 | AF27: -18.148 | AG27: 101.352 | AI27: -237.882 | AJ27: 227.098 | AK27: -236.528 | AL27: -36.287 | AN27: =132.13-525.474 -> -393.344 | AO27: =-202652/1000 -> -202.652 | AP27: 25.058 | AQ27: -389 | AS27: =85563/1000 -> 85.563 | AT27: -520.833 | AU27: 181.724 | AV27: -1489.721 | AX27: -334.052 | AY27: -166.206 | BC27: -69.268 | BD27: -119.985 | BE27: -184.04 | BF27: -614.826 | BG27: -457.605 | BH27: 371.785 | BI27: -283.599 | BJ27: -959.938 | BK27: =SUM(AS27:AV27) -> -1743.267
B28: EBT | E28: 15.30442614 | F28: -105.05 | G28: -296.914 | H28: -25.50431316 | J28: -505.4575369 | K28: 104.8735336 | L28: -245.032 | M28: -290.011 | O28: -434.402 | P28: 217.5471889 | Q28: -159.3898362 | R28: -726.081212 | T28: -106.103 | U28: -1.52599004 | V28: -177.577 | W28: -383.7004476 | Y28: -23.902 | Z28: -257.8769508 | AA28: 315.738 | AB28: 11.834 | AD28: -47.87 | AE28: -2.329 | AF28: -48.99 | AG28: -289.814 | AI28: -861.243 | AJ28: 172.386 | AK28: -335.803 | AL28: -666.207 | AN28: =AN23+AN24 -> -657.569 | AO28: =AO23+AO24 -> -187.346 | AP28: =AP23+AP24 -> -161.949 | AQ28: =AQ23+AQ24 -> -378.22 | AS28: =AS23+AS24 -> -38.102 | AT28: =AT23+AT24 -> -511.042 | AU28: =AU23+AU24 -> 97.904586 | AV28: =AV23+AV24 -> -1562.94502 | AX28: =AX23+AX24 -> -260.209 | AY28: =AY23+AY24 -> 510.835 | BC28: -412.163887 | BD28: -935.6270033 | BE28: -1102.325859 | BF28: -668.9064376 | BG28: 45.79304916 | BH28: =SUM(AD28:AG28) -> -389.003 | BI28: -1690.867 | BJ28: -1385.084 | BK28: =SUM(AS28:AV28) -> -2014.184434
B29: Income Tax and Social Contribution | E29: 7.374 | F29: 52.828 | G29: -4.86 | H29: 77.366 | J29: 153.881 | K29: -23.687 | L29: 81.312 | M29: 104.571 | O29: 108.591 | P29: -137.113 | Q29: -44.349 | R29: -291.604 | T29: -42.227 | U29: -40.893 | V29: 91.335 | W29: 161.975 | Y29: -241.655 | Z29: 38.309 | AA29: -15.2932 | AB29: 37.829 | AD29: -305.437 | AE29: 25.847 | AF29: 91.777 | AG29: -23.613 | AI29: 283.94 | AJ29: -139.538 | AK29: 57.117 | AL29: 219.473 | AN29: 151.107 | AO29: =31779/1000 -> 31.779 | AP29: -68.603 | AQ29: 71.9 | AS29: =-130792/1000 -> -130.792 | AT29: 206.707 | AU29: -95.623 | AV29: 481.527 | AX29: -21.081 | AY29: -87.261 | BC29: 132.708 | BD29: 316.077 | BE29: -364.475 | BF29: 170.19 | BG29: -180.8102 | BH29: -211.426 | BI29: 420.992 | BJ29: 186.183 | BK29: 461.819
B30: NET INCOME (LOSS) | E30: 22.67842614 | F30: -52.222 | G30: -301.774 | H30: 51.86168684 | J30: -351.5765369 | K30: 81.18653356 | L30: -163.72 | M30: -185.44 | O30: -325.811 | P30: 80.43418889 | Q30: -203.7388362 | R30: -1017.685212 | T30: -148.33 | U30: -42.41899004 | V30: -86.242 | W30: -221.7254476 | Y30: -265.557 | Z30: -219.5679508 | AA30: 162.806 | AB30: 49.663 | AD30: -353.307 | AE30: 23.518 | AF30: 42.787 | AG30: -313.427 | AI30: -577.303 | AJ30: 32.848 | AK30: -278.686 | AL30: -446.734 | AN30: -506.462 | AO30: =+AO28+AO29 -> -155.567 | AP30: =+AP28+AP29 -> -230.552 | AQ30: =+AQ28+AQ29 -> -306.32 | AS30: =+AS28+AS29 -> -168.894 | AT30: =+AT28+AT29 -> -304.335 | AU30: =+AU28+AU29 -> 2.281586 | AV30: =+AV28+AV29 -> -1081.41802 | AX30: =+AX28+AX29 -> -281.29 | AY30: =+AY28+AY29 -> 423.574 | BC30: -279.455887 | BD30: -619.5500033 | BE30: -1468.440774 | BF30: -499.1529571 | BG30: -272.6559508 | BH30: -599.8014217 | BI30: -1269.875 | BJ30: -1198.901 | BK30: =SUM(AS30:AV30) -> -1552.365434
B31: Net margin (%) | E31: 0.02651183212 | F31: -0.04697984766 | G31: -0.360477381 | H31: 0.08661616328 | J31: -0.3917632134 | K31: 0.06194213285 | L31: -0.1669578129 | M31: -0.192465371 | O31: -0.3058660844 | P31: 0.06029819745 | Q31: -0.200550682 | R31: -1.193796452 | T31: -0.1628035623 | U31: -0.03817359018 | V31: -0.08360233973 | W31: -0.1519399516 | Y31: -0.1949148064 | Z31: -0.1261708535 | AA31: 0.09615528861 | AB31: 0.03633465074 | AD31: -0.2112218581 | AE31: 0.01054835951 | AF31: 0.027595027 | AG31: -0.1993432543 | AI31: -0.315080104 | AJ31: 0.01845350753 | AK31: -0.1815031981 | AL31: -0.2284000229 | AN31: =AN30/AN14 -> -0.2643278809 | AO31: =AO30/AO14 -> -0.1048927049 | AP31: =AP30/AP14 -> -0.1477967545 | AQ31: =AQ30/AQ14 -> -0.2406089688 | AS31: =AS30/AS14 -> -0.09828767362 | AT31: =AT30/AT14 -> -0.1960341626 | AU31: =AU30/AU14 -> 0.001641965073 | AV31: =AV30/AV14 -> -0.5759217284 | AX31: =AX30/AX14 -> -0.1053668192 | AY31: =AY30/AY14 -> 0.1419197126 | BC31: =BC30/BC14 -> -0.08212298936 | BD31: =BD30/BD14 -> -0.1492097153 | BE31: -0.34409673 | BF31: -0.110598909 | BG31: =BG30/BG14 -> -0.04424331045 | BH31: =BH30/BH14 -> -0.08538032899 | BI31: =BI30/BI14 -> -0.1787638851 | BJ31: =BJ30/BJ14 -> -0.1923728998 | BK31: =BK30/BK14 -> -0.2374342329
B33: * From 1Q20, includes IFRS16 impacts.

Sheet 9.BALANCE SHEET
E5: 2011/12 Crop Year | J5: 2012/13 Crop Year | O5: 2013/14 Crop Year | T5: 2014/15 Crop Year | Y5: 2015/16 Crop Year | AD5: 2016/17 Crop Year | AI5: 2017/18 Crop Year | AN5: 2018/19 Crop Year | AS5: 2019/20 Crop Year | AX5: 2020/21 Crop Year | BC5: TOTAL CROP YEAR
B9: Crop Year | E9: 1Q12 | F9: 2Q12 | G9: 3Q12 | H9: 4Q12 | J9: 1Q13 | K9: 6M13 | L9: 9M13 | M9: FY13 | O9: 1Q14 | P9: 6M14 | Q9: 9M14 | R9: FY14 | T9: 1Q15 | U9: 6M15 | V9: 9M15 | W9: FY15 | Y9: 1Q16 | Z9: 6M16 | AA9: 9M16 | AB9: FY16 | AD9: 1Q17 | AE9: 6M17 | AF9: 9M17 | AG9: FY17 | AI9: 1Q18 | AJ9: 6M18 | AK9: 9M18 | AL9: FY18 | AN9: 1Q19 | AO9: 6M19 | AP9: 9M19 | AQ9: FY19 | AS9: 1Q20 | AT9: 2Q20 | AU9: 3Q20 | AV9: 4Q20 | AX9: 1Q21 | AY9: 2Q21 | AZ9: 3Q21 | BA9: 4Q21 | BC9: 2011/12 | BD9: 2012/13 | BE9: 2013/14 | BF9: 2014/15 | BG9: 2015/16 | BH9: 2016/17 | BI9: 2017/18 | BJ9: 2018/19 | BK9: 2019/20
B11: ASSETS (R$ Million) * | E11: 0 | F11: 0 | G11: 0 | H11: 9716.827 | J11: 8870.446081 | K11: 9158.933 | L11: 9045.048689 | M11: 9737.403 | O11: 9388.642 | P11: 9477.385 | Q11: 8978.475 | R11: 9529.208 | T11: 9221.769 | U11: 9477.385 | V11: 8500.067 | W11: 10262.595 | Y11: 10139.127 | Z11: 10679.115 | AA11: 10256.684 | AB11: 11566.748 | AD11: 9656.13 | AE11: 9555.72 | AF11: 9293.29 | AG11: 10288.597 | AI11: 9202.469 | AJ11: 8877.161 | AK11: 8635.436 | AL11: 9731.228 | AN11: 9315.778 | AO11: 8923.739 | AP11: 8381.829 | AQ11: 8842.169 | AS11: =AS13+AS23 -> 10651.928 | AT11: =AT13+AT23 -> 10896.327 | AU11: =AU13+AU23 -> 10269.609 | AV11: =AV13+AV23 -> 13445.217 | AX11: =AX13+AX23 -> 12431.224 | AY11: =AY13+AY23 -> 11942.272 | BC11: 9716.827 | BD11: 9737.403 | BE11: 9529.208 | BF11: 10262.595 | BG11: 11566.748 | BH11: 10288.597 | BI11: 9731.228 | BJ11: 8842.169 | BK11: =BK13+BK23 -> 13445.217
B13: CURRENT ASSETS | E13: 0 | F13: 0 | G13: 0 | H13: 2480.99 | J13: 1570.258 | K13: 2008.604 | L13: 2077.332945 | M13: 2540.94 | O13: 2262.433 | P13: 2412.021 | Q13: 1942.959 | R13: 2894.073 | T13: 2633.065 | U13: 2412.021 | V13: 1855.97 | W13: 3157.599 | Y13: 3187.016 | Z13: 3194.65 | AA13: 2619.201 | AB13: 3418.493 | AD13: 3489.452 | AE13: 3508.354 | AF13: 3335.75 | AG13: 4109.415 | AI13: 2961.877 | AJ13: 3072.656 | AK13: 2949.887 | AL13: 3762.212 | AN13: 3330.92 | AO13: 3415.262 | AP13: 3093.744 | AQ13: 3157 | AS13: =SUM(AS14:AS22) -> 3779.274 | AT13: =SUM(AT14:AT22) -> 4014.595 | AU13: =SUM(AU14:AU22) -> 3330.086 | AV13: =SUM(AV14:AV22) -> 5559.678 | AX13: =SUM(AX14:AX22) -> 4798.288 | AY13: =SUM(AY14:AY22) -> 4608.604 | BC13: 2480.99 | BD13: 2540.94 | BE13: 2894.073 | BF13: 3157.599 | BG13: 3418.493 | BH13: 4109.415 | BI13: 3762.212 | BJ13: 3157 | BK13: =SUM(BK14:BK22) -> 5559.678
B14: Cash and cash equivalents | E14: 0 | F14: 0 | G14: 0 | H14: 794.397 | J14: 226.427 | K14: 155.567 | L14: 138.5376552 | M14: 791.728 | O14: 683.245 | P14: 632.853 | Q14: 377.798 | R14: 1729.602 | T14: 1219.521 | U14: 632.853 | V14: 141.525 | W14: 1946.971 | Y14: 638.298 | Z14: 203.804 | AA14: 366.311 | AB14: 1826.121 | AD14: 242.382 | AE14: 445.165 | AF14: 260.939 | AG14: 1463.438 | AI14: 531.664 | AJ14: 226.937 | AK14: 170.019 | AL14: 1530.092 | AN14: 1041.786 | AO14: 677.612 | AP14: 719.966 | AQ14: 1189 | AS14: 424.607 | AT14: 416.02 | AU14: 202.859 | AV14: 1174.943 | AX14: 359.383 | AY14: 583.647 | BC14: 794.397 | BD14: 791.728 | BE14: 1729.602 | BF14: 1946.971 | BG14: 1826.121 | BH14: 1463.438 | BI14: 1530.092 | BJ14: 1189 | BK14: 1174.943
B15: Short-term investments | E15: 0 | F15: 0 | G15: 0 | H15: 413.229 | J15: 73.829 | K15: 83.001 | L15: 54.40406763 | M15: 572.211 | O15: 343.56 | P15: 273.989 | Q15: 44.125 | R15: 118.535 | T15: 26.324 | U15: 273.989 | V15: 48.455 | W15: 74.539 | Y15: 872.392 | Z15: 1036.237 | AA15: 616.748 | AB15: 408.268 | AD15: 306.694 | AE15: 348.907 | AF15: 241.193 | AG15: 106.798 | AI15: 304.268 | AJ15: 255.5 | AK15: 215.535 | AL15: 443.283 | AN15: 258.143 | AO15: 174.549 | AP15: 178.734 | AQ15: 140 | AS15: 72.967 | AT15: 41.919 | AU15: 66.57 | AV15: 52.245 | AX15: 69.858 | AY15: 83.444 | BC15: 413.229 | BD15: 572.211 | BE15: 118.535 | BF15: 74.539 | BG15: 408.268 | BH15: 106.798 | BI15: 443.283 | BJ15: 140 | BK15: 52.245
B16: Derivative financial instruments | E16: 0 | F16: 0 | G16: 0 | H16: 6.173 | J16: 94.192 | K16: 25.222 | L16: 46.94622175 | M16: 62.711 | O16: 118.381 | P16: 29.72 | Q16: 46.851 | R16: 31.867 | T16: 34.621 | U16: 29.72 | V16: 37.947 | W16: 21.998 | Y16: 12.732 | Z16: 145.49 | AA16: 20.702 | AB16: 46.077 | AD16: 132.603 | AE16: 78.591 | AF16: 67.059 | AG16: 185.708 | AI16: 17.099 | AJ16: 75.622 | AK16: 37.687 | AL16: 42.604 | AN16: 155.066 | AO16: 185.105 | AP16: 147.661 | AQ16: 39 | AS16: 69.184 | AT16: 77.975 | AU16: 92.477 | AV16: 225.787 | AX16: 97.252 | AY16: 143.55 | BC16: 6.173 | BD16: 62.711 | BE16: 31.867 | BF16: 21.998 | BG16: 46.077 | BH16: 185.708 | BI16: 42.604 | BJ16: 39 | BK16: 225.787
B17: Trade receivables | E17: 0 | F17: 0 | G17: 0 | H17: 262.253 | J17: 318.277 | K17: 402.564 | L17: 263.262 | M17: 257.586 | O17: 297.738 | P17: 373.051 | Q17: 371.148 | R17: 278.206 | T17: 457.442 | U17: 373.051 | V17: 227.267 | W17: 273.679 | Y17: 285.108 | Z17: 289.81 | AA17: 242.248 | AB17: 156 | AD17: 250.751 | AE17: 308.895 | AF17: 256.309 | AG17: 272.626 | AI17: 354.658 | AJ17: 351.437 | AK17: 335.012 | AL17: 356.377 | AN17: 299.889 | AO17: 318.331 | AP17: 227.618 | AQ17: 118 | AS17: 288.848 | AT17: 401.655 | AU17: 178.643 | AV17: 202.05 | AX17: 448.749 | AY17: 384.475 | BC17: 262.253 | BD17: 257.586 | BE17: 278.206 | BF17: 273.679 | BG17: 156 | BH17: 272.626 | BI17: 356.377 | BJ17: 118 | BK17: 202.05
B18: Inventories | E18: 0 | F18: 0 | G18: 0 | H18: 755.437 | J18: 605.532 | K18: 996.384 | L18: 1192.683 | M18: 593.421 | O18: 575.8 | P18: 839.724 | Q18: 871.128 | R18: 505.021 | T18: 670.697 | U18: 839.724 | V18: 1029.725 | W18: 452.147 | Y18: 977.694 | Z18: 1059.274 | AA18: 1051.261 | AB18: 807.533 | AD18: 1353.018 | AE18: 1046.512 | AF18: 1131.511 | AG18: 801.391 | AI18: 634.24 | AJ18: 1028.537 | AK18: 827.98 | AL18: 555.121 | AN18: 799.96 | AO18: 1139.274 | AP18: 896.557 | AQ18: 671 | AS18: 1911.076 | AT18: 2224.464 | AU18: 1897.174 | AV18: 2948.633 | AX18: 2755.825 | AY18: 2056.928 | BC18: 755.437 | BD18: 593.421 | BE18: 505.021 | BF18: 452.147 | BG18: 807.533 | BH18: 801.391 | BI18: 555.121 | BJ18: 671 | BK18: 2948.633
B19: Biological Assets | J19: 0 | K19: 0 | L19: 0 | M19: 0 | O19: 0 | P19: 0 | Q19: 0 | R19: 0 | T19: 0 | U19: 0 | V19: 0 | W19: 0 | Y19: 0 | Z19: 0 | AA19: 0 | AB19: 0 | AD19: 979.64 | AE19: 1054.314 | AF19: 1089.462 | AG19: 943.488 | AI19: 805.25 | AJ19: 830.035 | AK19: 941.844 | AL19: 521.948 | AN19: 511.358 | AO19: 428.76 | AP19: 386.723 | AQ19: 501 | AS19: 568.296 | AT19: 548.191 | AU19: 686.823 | AV19: 663.908 | AX19: 775.238 | AY19: 1098.499 | BC19: 0 | BD19: 0 | BE19: 0 | BF19: 0 | BG19: 0 | BH19: 943.488 | BI19: 521.948 | BJ19: 501 | BK19: 663.908
B20: Recoverable taxes | E20: 0 | F20: 0 | G20: 0 | H20: 100.907 | J20: 117.676 | K20: 197.58 | L20: 189.474 | M20: 132.214 | O20: 132.58 | P20: 149.804 | Q20: 107.629 | R20: 103.445 | T20: 120.544 | U20: 149.804 | V20: 150.246 | W20: 156.324 | Y20: 182.483 | Z20: 216.945 | AA20: 259.915 | AB20: 117.529 | AD20: 117.956 | AE20: 121.138 | AF20: 183.004 | AG20: 229.911 | AI20: 218.198 | AJ20: 231.925 | AK20: 339.847 | AL20: 250.164 | AN20: 190.381 | AO20: 248.149 | AP20: 228.245 | AQ20: 181 | AS20: 174.862 | AT20: 199.389 | AU20: 117.515 | AV20: 158.777 | AX20: 153.299 | AY20: 149.766 | BC20: 100.907 | BD20: 132.214 | BE20: 103.445 | BF20: 156.324 | BG20: 117.529 | BH20: 229.911 | BI20: 250.164 | BJ20: 181 | BK20: 158.777
B21: Other receivables | E21: 0 | F21: 0 | G21: 0 | H21: 33.401 | J21: 32.616 | K21: 46.577 | L21: 85.004 | M21: 67.836 | O21: 59.005 | P21: 62.847 | Q21: 77.287 | R21: 89.257 | T21: 70.54 | U21: 62.847 | V21: 214.169 | W21: 229.162 | Y21: 214.803 | Z21: 239.584 | AA21: 58.51 | AB21: 53.459 | AD21: 102.902 | AE21: 101.326 | AF21: 102.767 | AG21: 102.549 | AI21: 92.994 | AJ21: 69.157 | AK21: 78.457 | AL21: 59.117 | AN21: 70.831 | AO21: 65.232 | AP21: 79.331 | AQ21: 97 | AS21: 52.484 | AT21: 59.817 | AU21: 42.86 | AV21: 88.17 | AX21: 100.907 | AY21: 79.997 | BC21: 33.401 | BD21: 67.836 | BE21: 89.257 | BF21: 229.162 | BG21: 53.459 | BH21: 102.549 | BI21: 59.117 | BJ21: 97 | BK21: 88.17
B22: Assets held for sale | E22: 0 | F22: 0 | G22: 0 | H22: 115.193 | J22: 101.709 | K22: 101.709 | L22: 107.022 | M22: 63.233 | O22: 52.124 | P22: 50.033 | Q22: 46.993 | R22: 38.14 | T22: 33.376 | U22: 50.033 | V22: 6.636 | W22: 2.779 | Y22: 3.506 | Z22: 3.506 | AA22: 3.506 | AB22: 3.506 | AD22: 3.506 | AE22: 3.506 | AF22: 3.506 | AG22: 3.506 | AI22: 3.506 | AJ22: 3.506 | AK22: 3.506 | AL22: 3.506 | AN22: 3.506 | AO22: 178.25 | AP22: 228.909 | AQ22: 220 | AS22: 216.95 | AT22: 45.165 | AU22: 45.165 | AV22: 45.165 | AX22: 37.777 | AY22: 28.298 | BC22: 115.193 | BD22: 63.233 | BE22: 38.14 | BF22: 2.779 | BG22: 3.506 | BH22: 3.506 | BI22: 3.506 | BJ22: 220 | BK22: 45.165
B23: NON CURRENT ASSETS | E23: 0 | F23: 0 | G23: 0 | H23: 7235.837 | J23: 7300.188081 | K23: 7150.329 | L23: 6967.715744 | M23: 7196.463 | O23: 7126.209 | P23: 7065.364 | Q23: 7035.516 | R23: 6635.135 | T23: 6588.704 | U23: 7065.364 | V23: 6644.097 | W23: 7104.996 | Y23: 6952.111 | Z23: 7484.465 | AA23: 7637.483 | AB23: 8148.255 | AD23: 6166.678 | AE23: 6047.366 | AF23: 5957.54 | AG23: 6179.182 | AI23: 6240.592 | AJ23: 5804.505 | AK23: 5685.549 | AL23: 5969.016 | AN23: 5984.858 | AO23: 5508.477 | AP23: 5288.085 | AQ23: 5685 | AS23: =SUM(AS24:AS35) -> 6872.654 | AT23: =SUM(AT24:AT35) -> 6881.732 | AU23: =SUM(AU24:AU35) -> 6939.523 | AV23: =SUM(AV24:AV35) -> 7885.539 | AX23: =SUM(AX24:AX35) -> 7632.936 | AY23: =SUM(AY24:AY35) -> 7333.668 | BC23: 7235.837 | BD23: 7196.463 | BE23: 6635.135 | BF23: 7104.996 | BG23: 8148.255 | BH23: 6179.182 | BI23: 5969.016 | BJ23: 5685 | BK23: =SUM(BK24:BK35) -> 7885.539
B24: Long-term investments | E24: 0 | F24: 0 | G24: 0 | H24: 0 | J24: 0 | K24: 0 | L24: 0 | M24: 0 | O24: 0 | P24: 0 | Q24: 0 | R24: 0 | T24: 0 | U24: 0 | V24: 4.192 | W24: 11.496 | Y24: 4.413 | Z24: 4.561 | AA24: 4.694 | AB24: 4.831 | AD24: 0 | AE24: 17.415 | AF24: 18.705 | AG24: 19.891 | AI24: 22.737 | AJ24: 15 | AK24: 21.92 | AL24: 10.595 | AN24: 15.602 | AO24: 7.205 | AP24: 4.851 | AQ24: - | AS24: 0 | AT24: 0 | AU24: 0 | AV24: 0 | AX24: 0 | AY24: 14.21 | BC24: 0 | BD24: 0 | BE24: 0 | BF24: 11.496 | BG24: 4.831 | BH24: 19.891 | BI24: 10.595 | BJ24: - | BK24: 0
B25: Advances to suppliers | E25: 0 | F25: 0 | G25: 0 | H25: 62.351 | J25: 25.343 | K25: 35.944 | L25: 43.42572355 | M25: 34.828 | O25: 29.102 | P25: 34.289 | Q25: 40.245 | R25: 27.268 | T25: 32.464 | U25: 34.289 | V25: 37.166 | W25: 23.515 | Y25: 34.39 | Z25: 36.45 | AA25: 40.613 | AB25: 21.404 | AD25: 26.77 | AE25: 30.11 | AF25: 30.474 | AG25: 14.936 | AI25: 18.125 | AJ25: 18.732 | AK25: 18.83 | AL25: 6.491 | AN25: 9.945 | AO25: 13.393 | AP25: 49.406 | AQ25: 42 | AS25: 48.094 | AT25: 58.826 | AU25: 62.464 | AV25: 56.602 | AX25: 59.136 | AY25: 58.5 | BC25: 62.351 | BD25: 34.828 | BE25: 27.268 | BF25: 23.515 | BG25: 21.404 | BH25: 14.936 | BI25: 6.491 | BJ25: 42 | BK25: 56.602
B26: Escrow deposits | E26: 0 | F26: 0 | G26: 0 | H26: 129.334 | J26: 138.919 | K26: 149.688 | L26: 159.8309626 | M26: 171.407 | O26: 180.729 | P26: 193.149 | Q26: 191.011 | R26: 170.273 | T26: 200.541 | U26: 193.149 | V26: 168.209 | W26: 161.491 | Y26: 179.667 | Z26: 195.676 | AA26: 202.98 | AB26: 237.877 | AD26: 252.248 | AE26: 271.78 | AF26: 285.113 | AG26: 302.966 | AI26: 320.122 | AJ26: 331.186 | AK26: 345.439 | AL26: 342.736 | AN26: 348.525 | AO26: 370.46 | AP26: 378.952 | AQ26: 367 | AS26: 374.145 | AT26: 428.422 | AU26: 430.766 | AV26: 385.413 | AX26: 383.113 | AY26: 372.029 | BC26: 129.334 | BD26: 171.407 | BE26: 170.273 | BF26: 161.491 | BG26: 237.877 | BH26: 302.966 | BI26: 342.736 | BJ26: 367 | BK26: 385.413
B27: Recoverable taxes | E27: 0 | F27: 0 | G27: 0 | H27: 29.757 | J27: 29.757 | K27: 29.757 | L27: 67.504 | M27: 68.291 | O27: 72.948 | P27: 69.413 | Q27: 138.233 | R27: 148.97 | T27: 147.222 | U27: 69.413 | V27: 148.39 | W27: 147.176 | Y27: 147.998 | Z27: 129.412 | AA27: 84.101 | AB27: 253.388 | AD27: 269.261 | AE27: 307.41 | AF27: 262.033 | AG27: 211.747 | AI27: 229.953 | AJ27: 217.386 | AK27: 87.858 | AL27: 133.351 | AN27: 121.047 | AO27: 44.328 | AP27: 33.514 | AQ27: 64 | AS27: 65.592 | AT27: 60.704 | AU27: 120.418 | AV27: 57.529 | AX27: 82.003 | AY27: 78.453 | BC27: 29.757 | BD27: 68.291 | BE27: 148.97 | BF27: 147.176 | BG27: 253.388 | BH27: 211.747 | BI27: 133.351 | BJ27: 64 | BK27: 57.529
B28: Derivative financial instruments | J28: 0 | K28: 0 | L28: 0 | M28: 0 | O28: 0 | P28: 0 | Q28: 0 | R28: 0 | T28: 0 | U28: 0 | V28: 0 | W28: 0 | Y28: 0 | Z28: 0 | AA28: 0 | AB28: 0 | AD28: 0 | AE28: 0 | AF28: 0 | AG28: 0 | AI28: 0 | AJ28: 0 | AK28: 0 | AL28: 0 | AN28: 0 | AO28: 0.263 | AP28: 0 | AQ28: - | AS28: 0 | AT28: 0 | AU28: 0 | AV28: 55.885 | AX28: 0 | AY28: 0 | BC28: 0 | BD28: 0 | BE28: 0 | BF28: 0 | BG28: 0 | BH28: 0 | BI28: 0 | BJ28: 0 | BK28: 55.885
B29: Deferred income tax and social contribution | E29: 0 | F29: 0 | G29: 0 | H29: 65.4 | J29: 161.0290814 | K29: 115.978 | L29: 195.606 | M29: 243.393 | O29: 363.705 | P29: 239.356 | Q29: 192.58 | R29: 34.137 | T29: 6.267 | U29: 239.356 | V29: 15.871 | W29: 263.445 | Y29: 9.485 | Z29: 212.841 | AA29: 149.017 | AB29: 164.09 | AD29: 42.577 | AE29: 9.317 | AF29: 7.044 | AG29: 3.552 | AI29: 141.922 | AJ29: 5.909 | AK29: 62.125 | AL29: 275.592 | AN29: 563.492 | AO29: 590.7 | AP29: 436.958 | AQ29: 404 | AS29: 259.645 | AT29: 397.702 | AU29: 296.381 | AV29: 872.971 | AX29: 856.718 | AY29: 743.016 | BC29: 65.4 | BD29: 243.393 | BE29: 34.137 | BF29: 263.445 | BG29: 164.09 | BH29: 3.552 | BI29: 275.592 | BJ29: 404 | BK29: 872.971
B30: Other receivables | E30: 0 | F30: 0 | G30: 0 | H30: 28.141 | J30: 34.468 | K30: 17.986 | L30: 31.944 | M30: 47.618 | O30: 37.9 | P30: 43.541 | Q30: 39.469 | R30: 33.924 | T30: 29.501 | U30: 43.541 | V30: 47.298 | W30: 41.84 | Y30: 25.452 | Z30: 24.827 | AA30: 22.874 | AB30: 19.545 | AD30: 19.994 | AE30: 18.856 | AF30: 18.525 | AG30: 17.371 | AI30: 15.545 | AJ30: 15.275 | AK30: 11.648 | AL30: 11.95 | AN30: 11.185 | AO30: 11.231 | AP30: 10.554 | AQ30: 77 | AS30: 67.331 | AT30: 269.692 | AU30: 269.098 | AV30: 320.012 | AX30: 319.104 | AY30: 326.79 | BC30: 28.141 | BD30: 47.618 | BE30: 33.924 | BF30: 41.84 | BG30: 19.545 | BH30: 17.371 | BI30: 11.95 | BJ30: 77 | BK30: 320.012
B31: Biological Assets | E31: 0 | F31: 0 | G31: 0 | H31: 1507.989 | J31: 1444.626 | K31: 1492.346 | L31: 1242.830479 | M31: 1241.58 | O31: 1104.572 | P31: 1278.637 | Q31: 1332.577 | R31: 1279.891 | T31: 1324.299 | U31: 1278.637 | V31: 1575.624 | W31: 1685.048 | Y31: 1777.412 | Z31: 2288.258 | AA31: 2676.423 | AB31: 2834.735 | AD31: 0 | AE31: 0 | AF31: 0 | AG31: 0 | AI31: - | AJ31: 0 | AK31: 0 | AL31: 0 | AN31: 0 | AO31: 0 | AP31: 0 | AQ31: 0 | AS31: 0 | AT31: 0 | AU31: 0 | AV31: 0 | AX31: 0 | AY31: 0 | BC31: 1507.989 | BD31: 1241.58 | BE31: 1279.891 | BF31: 1685.048 | BG31: 2834.735 | BH31: 0 | BI31: 0 | BJ31: 0 | BK31: 0
B32: Right to use the assets from lease operations | J32: 0 | K32: 0 | L32: 0 | M32: 0 | O32: 0 | P32: 0 | Q32: 0 | R32: 0 | T32: 0 | U32: 0 | V32: 0 | W32: 0 | Y32: 0 | Z32: 0 | AA32: 0 | AB32: 0 | AD32: 0 | AE32: 0 | AF32: 0 | AG32: 0 | AI32: 0 | AJ32: 0 | AK32: 0 | AL32: 0 | AN32: 0 | AO32: 0 | AP32: 0 | AQ32: 0 | AS32: 1499.359 | AT32: 1421.646 | AU32: 1441.042 | AV32: 1577.379 | AX32: 1588.562 | AY32: 1647.882 | BC32: 0 | BD32: 0 | BE32: 0 | BF32: 0 | BG32: 0 | BH32: 0 | BI32: 0 | BJ32: 0 | BK32: 1577.379
B33: Investments | E33: 0 | F33: 0 | G33: 0 | H33: 238.081 | J33: 235.54 | K33: 235.946 | L33: 235.5047693 | M33: 235.209 | O33: 234.398 | P33: 233.906 | Q33: 235.618 | R33: 233.53 | T33: 224.926 | U33: 233.906 | V33: 219.562 | W33: 215.029 | Y33: 212.539 | Z33: 211.268 | AA33: 221.13 | AB33: 209.655 | AD33: 206.66 | AE33: 205.013 | AF33: 204.644 | AG33: 188.387 | AI33: 186.443 | AJ33: 187.213 | AK33: 185.215 | AL33: 183.53 | AN33: 178.301 | AO33: 176.859 | AP33: 172.646 | AQ33: 170 | AS33: 166.438 | AT33: 163.271 | AU33: 159.29 | AV33: 160.393 | AX33: 157.457 | AY33: 156.485 | BC33: 238.081 | BD33: 235.209 | BE33: 233.53 | BF33: 215.029 | BG33: 209.655 | BH33: 188.387 | BI33: 183.53 | BJ33: 170 | BK33: 160.393
B34: Property, plant and equipment | E34: 0 | F34: 0 | G34: 0 | H34: 4129.684 | J34: 4171.836 | K34: 4017.633 | L34: 3951.34281 | M34: 4117.416 | O34: 4070.022 | P34: 3944.102 | Q34: 3832.385 | R34: 3761.14 | T34: 3679.981 | U34: 3944.102 | V34: 3489.739 | W34: 3618.599 | Y34: 3626.306 | Z34: 3447.768 | AA34: 3304.76 | AB34: 3468.567 | AD34: 1042.366 | AE34: 1015.177 | AF34: 1010.028 | AG34: 4489.025 | AI34: 4376.603 | AJ34: 4086.237 | AK34: 4026.446 | AL34: 4079.573 | AN34: 3812.941 | AO34: 3371.858 | AP34: 3280.637 | AQ34: 3642 | AS34: 3467.954 | AT34: 3158.887 | AU34: 3236.987 | AV34: 3477.391 | AX34: 3266.705 | AY34: 3017.598 | BC34: 4129.684 | BD34: 4117.416 | BE34: 3761.14 | BF34: 3618.599 | BG34: 3468.567 | BH34: 4489.025 | BI34: 4079.573 | BJ34: 3642 | BK34: 3477.391
B35: Intangible assets | E35: 0 | F35: 0 | G35: 0 | H35: 1045.1 | J35: 1058.67 | K35: 1055.051 | L35: 1039.727 | M35: 1036.721 | O35: 1032.833 | P35: 1028.971 | Q35: 1033.398 | R35: 946.002 | T35: 943.503 | U35: 1028.971 | V35: 938.046 | W35: 937.357 | Y35: 934.449 | Z35: 933.404 | AA35: 930.891 | AB35: 934.163 | AD35: 931.754 | AE35: 930.395 | AF35: 930.778 | AG35: 931.307 | AI35: 929.142 | AJ35: 927.567 | AK35: 926.068 | AL35: 925.198 | AN35: 923.82 | AO35: 922.18 | AP35: 920.567 | AQ35: 920 | AS35: 924.096 | AT35: 922.582 | AU35: 923.077 | AV35: 921.964 | AX35: 920.138 | AY35: 918.705 | BC35: 1045.1 | BD35: 1036.721 | BE35: 946.002 | BF35: 937.357 | BG35: 934.163 | BH35: 931.307 | BI35: 925.198 | BJ35: 920 | BK35: 921.964
B37: LIABILITIES (R$MM) * | E37: 0 | F37: 0 | G37: 0 | H37: 9716.827 | J37: 8870.446418 | K37: 9158.933 | L37: 9045.048812 | M37: 9737.403 | O37: 9388.642 | P37: 9477.385 | Q37: 8978.475 | R37: 9529.208 | T37: 9221.769 | U37: 9477.385 | V37: 8500.067 | W37: 10262.595 | Y37: 10139.152 | Z37: 10679.115 | AA37: 10256.684 | AB37: 11566.748 | AD37: 9656.13 | AE37: 9555.72 | AF37: 9293.29 | AG37: 10288.597 | AI37: 9202.469 | AJ37: 8877.161 | AK37: 8635.436 | AL37: 9731.228 | AN37: 9315.778 | AO37: 8923.739 | AP37: 8381.829 | AQ37: 8842 | AS37: =AS39+AS50+AS60 -> 10651.928 | AT37: =AT39+AT50+AT60 -> 10896.327 | AU37: =AU39+AU50+AU60 -> 10269.609 | AV37: =AV39+AV50+AV60 -> 13445.217 | AX37: =AX39+AX50+AX60 -> 12431.224 | AY37: =AY39+AY50+AY60 -> 12084.656 | BC37: 9716.827 | BD37: 9737.403 | BE37: 9529.208 | BF37: 10262.595 | BG37: 11566.748 | BH37: 10288.597 | BI37: 9731.228 | BJ37: 8842 | BK37: =BK39+BK50+BK60 -> 13445.217
B39: CURRENT LIABILITIES | E39: 0 | F39: 0 | G39: 0 | H39: 2524.793 | J39: 3006.034 | K39: 3241.406 | L39: 3122.368194 | M39: 2341.107 | O39: 2412.495 | P39: 2550.958 | Q39: 2806.416 | R39: 2944.429 | T39: 2918.082 | U39: 2550.958 | V39: 2685.58 | W39: 3345.864 | Y39: 3390.361 | Z39: 3792.219 | AA39: 3508.878 | AB39: 3602.957 | AD39: 5124.654 | AE39: 4224.766 | AF39: 4092.42 | AG39: 3631.927 | AI39: 3753.875 | AJ39: 3971.062 | AK39: 3935.654 | AL39: 1903.801 | AN39: 2332.65 | AO39: 2243.999 | AP39: 1939.947 | AQ39: 2001 | AS39: =SUM(AS40:AS49) -> 3318.857 | AT39: =SUM(AT40:AT49) -> 3573.425 | AU39: =SUM(AU40:AU49) -> 3134.052 | AV39: =SUM(AV40:AV49) -> 12007.367 | AX39: =SUM(AX40:AX49) -> 5416.419 | AY39: =SUM(AY40:AY49) -> 6231.106 | BC39: 2524.793 | BD39: 2341.107 | BE39: 2944.429 | BF39: 3345.864 | BG39: 3602.957 | BH39: 3631.927 | BI39: 1903.801 | BJ39: 2001 | BK39: =SUM(BK40:BK49) -> 12007.367
B40: Borrowings and financing | E40: 0 | F40: 0 | G40: 0 | H40: 1802.37 | J40: 1888.506 | K40: 2029.096 | L40: 1961.850508 | M40: 1254.433 | O40: 1241.327 | P40: 1398.445 | Q40: 1720.304 | R40: 1907.036 | T40: 2103.03 | U40: 1398.445 | V40: 1748.128 | W40: 1615.579 | Y40: 1831.397 | Z40: 2295.954 | AA40: 2126.672 | AB40: 1830.913 | AD40: 3358.562 | AE40: 2461.076 | AF40: 2354.234 | AG40: 1944.007 | AI40: 2091.119 | AJ40: 2125.69 | AK40: 2097.934 | AL40: 536.552 | AN40: 566.83 | AO40: 511.165 | AP40: 562.689 | AQ40: 543 | AS40: 435.687 | AT40: 462.817 | AU40: 482.732 | AV40: 7225.234 | AX40: 1168.611 | AY40: 2899.005 | BC40: 1802.37 | BD40: 1254.433 | BE40: 1907.036 | BF40: 1615.579 | BG40: 1830.913 | BH40: 1944.007 | BI40: 536.552 | BJ40: 543 | BK40: 7225.234
B41: Lease liabilities | J41: 0 | K41: 0 | L41: 0 | M41: 0 | O41: 0 | P41: 0 | Q41: 0 | R41: 0 | T41: 0 | U41: 0 | V41: 0 | W41: 0 | Y41: 0 | Z41: 0 | AA41: 0 | AB41: 0 | AD41: 0 | AE41: 0 | AF41: 0 | AG41: 0 | AI41: 0 | AJ41: 0 | AK41: 0 | AL41: 0 | AN41: 0 | AO41: 0 | AP41: 0 | AQ41: 0 | AS41: 462.123 | AT41: 454.136 | AU41: 493.348 | AV41: 498.932 | AX41: 477.464 | AY41: 495.857 | BC41: 0 | BD41: 0 | BE41: 0 | BF41: 0 | BG41: 0 | BH41: 0 | BI41: 0 | BJ41: 0 | BK41: 498.932
B42: Advance from domestic customers | E42: 0 | F42: 0 | G42: 0 | H42: 10.527 | J42: 10.487 | K42: 6.319 | L42: 13.445 | M42: 16.805 | O42: 42.665 | P42: 38.178 | Q42: 60.192 | R42: 61.493 | T42: 28.531 | U42: 38.178 | V42: 21.652 | W42: 20.042 | Y42: 12.538 | Z42: 12.517 | AA42: 19.125 | AB42: 29.389 | AD42: 13.485 | AE42: 16.164 | AF42: 16.588 | AG42: 30.998 | AI42: 23.885 | AJ42: 20.674 | AK42: 23.379 | AL42: 43.918 | AN42: 12.829 | AO42: 23.357 | AP42: 22.166 | AQ42: 14 | AS42: 17.779 | AT42: 25.124 | AU42: 36.593 | AV42: 28.128 | AX42: 140.694 | AY42: 121.312 | BC42: 10.527 | BD42: 16.805 | BE42: 61.493 | BF42: 20.042 | BG42: 29.389 | BH42: 30.998 | BI42: 43.918 | BJ42: 14 | BK42: 28.128
B43: Advance from foreign customers | E43: 0 | F43: 0 | G43: 0 | H43: 12.945 | J43: 324.747 | K43: 378.224 | L43: 398.027 | M43: 403.913 | O43: 304.371 | P43: 224.392 | Q43: 225.765 | R43: 208.672 | T43: 110.96 | U43: 224.392 | V43: 77.601 | W43: 479.075 | Y43: 626.564 | Z43: 214.4 | AA43: 152.747 | AB43: 637.884 | AD43: 732.23 | AE43: 476.17 | AF43: 328.158 | AG43: 515.922 | AI43: 464.845 | AJ43: 392.924 | AK43: 369.528 | AL43: 74.933 | AN43: 488.322 | AO43: 501.561 | AP43: 468.814 | AQ43: 357 | AS43: 1621.593 | AT43: 1671.281 | AU43: 1393.188 | AV43: 2585.641 | AX43: 2292.16 | AY43: 1399.838 | BC43: 12.945 | BD43: 403.913 | BE43: 208.672 | BF43: 479.075 | BG43: 637.884 | BH43: 515.922 | BI43: 74.933 | BJ43: 357 | BK43: 2585.641
B44: Trade payables | E44: 0 | F44: 0 | G44: 0 | H44: 248.65 | J44: 252.432 | K44: 384.038 | L44: 325.379 | M44: 254.044 | O44: 312.665 | P44: 432.471 | Q44: 358.128 | R44: 333.913 | T44: 310.925 | U44: 432.471 | V44: 340.656 | W44: 436.073 | Y44: 383.681 | Z44: 651.623 | AA44: 731.733 | AB44: 572.483 | AD44: 542.56 | AE44: 768.379 | AF44: 906.182 | AG44: 793.048 | AI44: 802.512 | AJ44: 1053.28 | AK44: 987.235 | AL44: 728.802 | AN44: 673.216 | AO44: 643.766 | AP44: 533.448 | AQ44: 654 | AS44: 541.805 | AT44: 625.691 | AU44: 476.977 | AV44: 798.903 | AX44: 690.168 | AY44: 716.891 | BC44: 248.65 | BD44: 254.044 | BE44: 333.913 | BF44: 436.073 | BG44: 572.483 | BH44: 793.048 | BI44: 728.802 | BJ44: 654 | BK44: 798.903
B45: Accrued payroll and related taxes | E45: 0 | F45: 0 | G45: 0 | H45: 98.184 | J45: 105.509 | K45: 134.974 | L45: 112.6215989 | M45: 112.239 | O45: 93.788 | P45: 128.25 | Q45: 109.182 | R45: 103.589 | T45: 103.984 | U45: 128.25 | V45: 94.075 | W45: 108.849 | Y45: 114.595 | Z45: 140.149 | AA45: 126.603 | AB45: 124.72 | AD45: 134.855 | AE45: 162.959 | AF45: 137.165 | AG45: 108.609 | AI45: 131.294 | AJ45: 156.494 | AK45: 116.623 | AL45: 117.276 | AN45: 113.167 | AO45: 129.068 | AP45: 84.682 | AQ45: 92 | AS45: 97.861 | AT45: 114.922 | AU45: 88.525 | AV45: 90.483 | AX45: 110.115 | AY45: 125.848 | BC45: 98.184 | BD45: 112.239 | BE45: 103.589 | BF45: 108.849 | BG45: 124.72 | BH45: 108.609 | BI45: 117.276 | BJ45: 92 | BK45: 90.483
B46: Taxes payable | E46: 0 | F46: 0 | G46: 0 | H46: 94.019 | J46: 77.702 | K46: 78.102 | L46: 76.59966415 | M46: 90.405 | O46: 68.714 | P46: 70.633 | Q46: 73.038 | R46: 36.247 | T46: 26.583 | U46: 70.633 | V46: 36.069 | W46: 78.707 | Y46: 38.465 | Z46: 18.131 | AA46: 24.531 | AB46: 46.035 | AD46: 18.416 | AE46: 37.564 | AF46: 33.182 | AG46: 49.644 | AI46: 41.436 | AJ46: 33.217 | AK46: 95.514 | AL46: 134.075 | AN46: 56.75 | AO46: 54.658 | AP46: 45.115 | AQ46: 74 | AS46: 51.343 | AT46: 56.326 | AU46: 57.57 | AV46: 75.152 | AX46: 69.442 | AY46: 63.263 | BC46: 94.019 | BD46: 90.405 | BE46: 36.247 | BF46: 78.707 | BG46: 46.035 | BH46: 49.644 | BI46: 134.075 | BJ46: 74 | BK46: 75.152
B47: Derivative financial instruments | E47: 0 | F47: 0 | G47: 0 | H47: 97.79 | J47: 162.492 | K47: 92.887 | L47: 58.53942332 | M47: 58.955 | O47: 196.772 | P47: 127.366 | Q47: 155.052 | R47: 132.386 | T47: 59.732 | U47: 127.366 | V47: 104.525 | W47: 289.933 | Y47: 187.605 | Z47: 281.855 | AA47: 189.142 | AB47: 201.882 | AD47: 182.686 | AE47: 174.577 | AF47: 201 | AG47: 28.402 | AI47: 76.207 | AJ47: 57.988 | AK47: 41.635 | AL47: 52.658 | AN47: 303.032 | AO47: 283.688 | AP47: 143.232 | AQ47: 160 | AS47: 24.593 | AT47: 79.301 | AU47: 34.721 | AV47: 586.843 | AX47: 353.256 | AY47: 332.766 | BC47: 97.79 | BD47: 58.955 | BE47: 132.386 | BF47: 289.933 | BG47: 201.882 | BH47: 28.402 | BI47: 52.658 | BJ47: 160 | BK47: 586.843
B48: Other payables | E48: 0 | F48: 0 | G48: 0 | H48: 160.308 | J48: 184.159 | K48: 137.766 | L48: 175.906 | M48: 150.313 | O48: 152.193 | P48: 131.223 | Q48: 104.755 | R48: 161.093 | T48: 174.337 | U48: 131.223 | V48: 262.874 | W48: 317.606 | Y48: 195.516 | Z48: 177.59 | AA48: 138.325 | AB48: 159.651 | AD48: 141.86 | AE48: 127.877 | AF48: 115.911 | AG48: 161.297 | AI48: 122.577 | AJ48: 130.795 | AK48: 203.806 | AL48: 215.587 | AN48: 118.504 | AO48: 89.617 | AP48: 69.03 | AQ48: 108 | AS48: 66.073 | AT48: 83.827 | AU48: 70.398 | AV48: 118.051 | AX48: 114.509 | AY48: 76.326 | BC48: 160.308 | BD48: 150.313 | BE48: 161.093 | BF48: 317.606 | BG48: 159.651 | BH48: 161.297 | BI48: 215.587 | BJ48: 108 | BK48: 118.051
B49: Liabilities held for sale | J49: 0 | K49: 0 | L49: 0 | M49: 0 | O49: 0 | P49: 0 | Q49: 0 | R49: 0 | T49: 0 | U49: 0 | V49: 0 | W49: 0 | Y49: 0 | Z49: 0 | AA49: 0 | AB49: 0 | AD49: 0 | AE49: 0 | AF49: 0 | AG49: 0 | AI49: 0 | AJ49: 0 | AK49: 0 | AL49: 0 | AN49: 0 | AO49: 7.119 | AP49: 10.771 | AQ49: 0 | AS49: 0 | AT49: 0 | AU49: 0 | AV49: 0 | AX49: 0 | AY49: 0 | BC49: 0 | BD49: 0 | BE49: 0 | BF49: 0 | BG49: 0 | BH49: 0 | BI49: 0 | BJ49: 0 | BK49: 0
B50: NON CURRENT LIABILITIES | E50: 0 | F50: 0 | G50: 0 | H50: 4720.942 | J50: 3840.229 | K50: 3768.75 | L50: 3924.565477 | M50: 4932.191 | O50: 4326.633 | P50: 4185.172 | Q50: 3667.015 | R50: 5047.322 | T50: 4870.523 | U50: 4185.172 | V50: 4775.849 | W50: 6347.954 | Y50: 6298.714 | Z50: 7134.329 | AA50: 6801.658 | AB50: 7750.853 | AD50: 5127.936 | AE50: 5872.742 | AF50: 5647.619 | AG50: 7318.188 | AI50: 6646.511 | AJ50: 6010.355 | AK50: 6141.577 | AL50: 6220.839 | AN50: 6132.679 | AO50: 5973.975 | AP50: 5811.139 | AQ50: 6308 | AS50: =SUM(AS51:AS59) -> 6949.761 | AT50: =SUM(AT51:AT59) -> 7106.197 | AU50: =SUM(AU51:AU59) -> 6906.651 | AV50: =SUM(AV51:AV59) -> 2444.504 | AX50: =SUM(AX51:AX59) -> 8329.96 | AY50: =SUM(AY51:AY59) -> 6542.975 | BC50: 4720.942 | BD50: 4932.191 | BE50: 5047.322 | BF50: 6347.954 | BG50: 7750.853 | BH50: 7318.188 | BI50: 6220.839 | BJ50: 6308 | BK50: =SUM(BK51:BK59) -> 2444.504
B51: Borrowings and financing | E51: 0 | F51: 0 | G51: 0 | H51: 3668.794 | J51: 2768.499 | K51: 2756.393 | L51: 2901.700709 | M51: 3967.379 | O51: 3453.571 | P51: 3294.04 | Q51: 2812.53 | R51: 3414.704 | T51: 3198.432 | U51: 3294.04 | V51: 3738.085 | W51: 4711.664 | Y51: 4709.227 | Z51: 5370.904 | AA51: 5125.346 | AB51: 4881.016 | AD51: 2693.243 | AE51: 3545.45 | AF51: 3552.494 | AG51: 4344.647 | AI51: 3985.365 | AJ51: 3305.997 | AK51: 3355.261 | AL51: 4765.785 | AN51: 5714.874 | AO51: 5559.03 | AP51: 5383.045 | AQ51: 5436 | AS51: 5455.233 | AT51: 5610.379 | AU51: 5423.423 | AV51: 96.191 | AX51: 6593.297 | AY51: 4741.036 | BC51: 3668.794 | BD51: 3967.379 | BE51: 3414.704 | BF51: 4711.664 | BG51: 4881.016 | BH51: 4344.647 | BI51: 4765.785 | BJ51: 5436 | BK51: 96.191
B52: Lease liabilities | J52: 0 | K52: 0 | L52: 0 | M52: 0 | O52: 0 | P52: 0 | Q52: 0 | R52: 0 | T52: 0 | U52: 0 | V52: 0 | W52: 0 | Y52: 0 | Z52: 0 | AA52: 0 | AB52: 0 | AD52: 0 | AE52: 0 | AF52: 0 | AG52: 0 | AI52: 0 | AJ52: 0 | AK52: 0 | AL52: 0 | AN52: 0 | AO52: 0 | AP52: 0 | AQ52: 0 | AS52: 1045.154 | AT52: 999.853 | AU52: 1010.07 | AV52: 1182.337 | AX52: 1215.719 | AY52: 1275.932 | BC52: 0 | BD52: 0 | BE52: 0 | BF52: 0 | BG52: 0 | BH52: 0 | BI52: 0 | BJ52: 0 | BK52: 1182.337
B53: Advance from foreign customers | E53: 0 | F53: 0 | G53: 0 | H53: 0 | J53: 0 | K53: 0 | L53: 0 | M53: 0 | O53: 0 | P53: 0 | Q53: 0 | R53: 570.7 | T53: 562.948 | U53: 0 | V53: 184.327 | W53: 962.4 | Y53: 930.78 | Z53: 1164.971 | AA53: 995.277 | AB53: 2149.69 | AD53: 1769.427 | AE53: 1709.623 | AF53: 1595.713 | AG53: 2427.67 | AI53: 2239.793 | AJ53: 2258.444 | AK53: 2379.13 | AL53: 1052.893 | AN53: 0 | AO53: 0 | AP53: 0 | AQ53: 452 | AS53: 0 | AT53: 0 | AU53: - | AV53: 626.116 | AX53: 0 | AY53: 0 | BC53: 0 | BD53: 0 | BE53: 570.7 | BF53: 962.4 | BG53: 2149.69 | BH53: 2427.67 | BI53: 1052.893 | BJ53: 452 | BK53: 626.116
B54: Trade payables | J54: 0 | K54: 0 | L54: 0 | M54: 0 | O54: 0 | P54: 0 | Q54: 0 | R54: 0 | T54: 0 | U54: 0 | V54: 0 | W54: 0 | Y54: 0 | Z54: 0 | AA54: 0 | AB54: 1.233 | AD54: 1.802 | AE54: 1.841 | AF54: 4.667 | AG54: 1.941 | AI54: 1.056 | AJ54: 1.276 | AK54: 1.31 | AL54: 1.345 | AN54: 0 | AO54: 0 | AP54: 0.518 | AQ54: 1 | AS54: 6.09 | AT54: 5.972 | AU54: 5.861 | AV54: 5.965 | AX54: 4.857 | AY54: 4.691 | BC54: 0 | BD54: 0 | BE54: 0 | BF54: 0 | BG54: 1.233 | BH54: 1.941 | BI54: 1.345 | BJ54: 1 | BK54: 5.965
B55: Deferred income tax and social contribution | E55: 0 | F55: 0 | G55: 0 | H55: 317.275 | J55: 209.4 | K55: 208.015 | L55: 219.409 | M55: 166.738 | O55: 128.64 | P55: 146.047 | Q55: 125.971 | R55: 283.814 | T55: 321.74 | U55: 146.047 | V55: 192.947 | W55: 66.679 | Y55: 148.394 | Z55: 66.911 | AA55: 171.049 | AB55: 260.057 | AD55: 208.961 | AE55: 167.922 | AF55: 98.677 | AG55: 163.636 | AI55: 42.358 | AJ55: 77.262 | AK55: 41.358 | AL55: 40.881 | AN55: 40.381 | AO55: 39.881 | AP55: 39.382 | AQ55: 39 | AS55: 38.382 | AT55: 37.882 | AU55: 37.383 | AV55: 36.883 | AX55: 36.383 | AY55: 35.884 | BC55: 317.275 | BD55: 166.738 | BE55: 283.814 | BF55: 66.679 | BG55: 260.057 | BH55: 163.636 | BI55: 40.881 | BJ55: 39 | BK55: 36.883
B56: Derivative financial instruments | E56: 0 | F56: 0 | G56: 0 | H56: 52 | J56: 156.661 | K56: 77.524 | L56: 73.60726695 | M56: 58.744 | O56: 41.785 | P56: 35.582 | Q56: 30.457 | R56: 26.86 | T56: 34.176 | U56: 35.582 | V56: 38.426 | W56: 48.73 | Y56: 39.839 | Z56: 60.19 | AA56: 48.521 | AB56: 47.668 | AD56: 48.434 | AE56: 36.717 | AF56: 20.828 | AG56: 16.236 | AI56: 20.498 | AJ56: 14.453 | AK56: 12.018 | AL56: 3.833 | AN56: 2.444 | AO56: 0 | AP56: 6.098 | AQ56: 8 | AS56: 12.584 | AT56: 11.306 | AU56: 9.629 | AV56: 16.596 | AX56: 17.563 | AY56: 11.34 | BC56: 52 | BD56: 58.744 | BE56: 26.86 | BF56: 48.73 | BG56: 47.668 | BH56: 16.236 | BI56: 3.833 | BJ56: 8 | BK56: 16.596
B57: Provision for labor, civil and tax contigencies | E57: 0 | F57: 0 | G57: 0 | H57: 557.94 | J57: 573.074 | K57: 578.749 | L57: 600.316 | M57: 615.607 | O57: 600.118 | P57: 611.603 | Q57: 597.856 | R57: 606.914 | T57: 610.594 | U57: 611.603 | V57: 532.224 | W57: 468.59 | Y57: 382.369 | Z57: 383.256 | AA57: 384.859 | AB57: 338.301 | AD57: 349.928 | AE57: 338.301 | AF57: 314.992 | AG57: 307.282 | AI57: 303.445 | AJ57: 295.984 | AK57: 305.145 | AL57: 306.263 | AN57: 327.651 | AO57: 323.019 | AP57: 328.862 | AQ57: 287 | AS57: 307.259 | AT57: 314.056 | AU57: 286.481 | AV57: 294.668 | AX57: 308.175 | AY57: 309.826 | BC57: 557.94 | BD57: 615.607 | BE57: 606.914 | BF57: 468.59 | BG57: 338.301 | BH57: 307.282 | BI57: 306.263 | BJ57: 287 | BK57: 294.668
B58: Taxes payable | E58: 0 | F58: 0 | G58: 0 | H58: 27.297 | J58: 35.461 | K58: 33.013 | L58: 16.04647946 | M58: 11.79 | O58: 8.745 | P58: 5.662 | Q58: 6.592 | R58: 45.873 | T58: 45.438 | U58: 5.662 | V58: 1.85 | W58: 2.975 | Y58: 1.839 | Z58: 0.516 | AA58: 0.12 | AB58: 0.003 | AD58: 0.003 | AE58: 0.003 | AF58: 0 | AG58: 0 | AI58: - | AJ58: 0 | AK58: 0 | AL58: 0.029 | AN58: 0.029 | AO58: 0.029 | AP58: 0 | AQ58: 4 | AS58: 3.582 | AT58: 5.473 | AU58: 5.43 | AV58: 18.501 | AX58: 18.324 | AY58: 18.324 | BC58: 27.297 | BD58: 11.79 | BE58: 45.873 | BF58: 2.975 | BG58: 0.003 | BH58: 0 | BI58: 0.029 | BJ58: 4 | BK58: 18.501
B59: Other payables | E59: 0 | F59: 0 | G59: 0 | H59: 97.636 | J59: 97.134 | K59: 115.056 | L59: 113.4860221 | M59: 111.933 | O59: 93.774 | P59: 92.238 | Q59: 93.609 | R59: 98.457 | T59: 97.195 | U59: 92.238 | V59: 87.99 | W59: 86.916 | Y59: 86.266 | Z59: 87.581 | AA59: 76.486 | AB59: 72.885 | AD59: 56.138 | AE59: 72.885 | AF59: 60.248 | AG59: 56.776 | AI59: 53.996 | AJ59: 56.939 | AK59: 47.355 | AL59: 49.81 | AN59: 47.3 | AO59: 52.016 | AP59: 53.234 | AQ59: 81 | AS59: 81.477 | AT59: 121.276 | AU59: 128.374 | AV59: 167.247 | AX59: 135.642 | AY59: 145.942 | BC59: 97.636 | BD59: 111.933 | BE59: 98.457 | BF59: 86.916 | BG59: 72.885 | BH59: 56.776 | BI59: 49.81 | BJ59: 81 | BK59: 167.247
B60: SHAREHOLDERS' EQUITY | E60: 0 | F60: 0 | G60: 0 | H60: 2471.092 | J60: 2024.183418 | K60: 2148.777 | L60: 1998.11514 | M60: 2464.105 | O60: 2649.514 | P60: 2741.255 | Q60: 2505.044 | R60: 1537.457 | T60: 1433.164 | U60: 2741.255 | V60: 1038.638 | W60: 568.777 | Y60: 450.077 | Z60: -247.433 | AA60: -53.852 | AB60: 212.938 | AD60: -596.46 | AE60: -537.65 | AF60: -463.227 | AG60: -661.518 | AI60: -1197.917 | AJ60: -1104.256 | AK60: -1441.795 | AL60: 1606.588 | AN60: 850.449 | AO60: 705.765 | AP60: 630.743 | AQ60: 533 | AS60: =SUM(AS61:AS67) -> 383.31 | AT60: =SUM(AT61:AT67) -> 216.705 | AU60: =SUM(AU61:AU67) -> 228.906 | AV60: =SUM(AV61:AV67) -> -1006.654 | AX60: =SUM(AX61:AX67) -> -1315.155 | AY60: =SUM(AY61:AY67) -> -689.425 | BC60: 2471.092 | BD60: 2464.105 | BE60: 1537.457 | BF60: 568.777 | BG60: 212.938 | BH60: -661.518 | BI60: 1606.588 | BJ60: 533 | BK60: =SUM(BK61:BK67) -> -1006.654
B61: Paid-in Capital | E61: 0 | F61: 0 | G61: 0 | H61: 1175.996 | J61: 1190.036 | K61: 1190.036 | L61: 1190.036007 | M61: 1790.036 | O61: 2490.036 | P61: 2490.036 | Q61: 2490.036 | R61: 2490.036 | T61: 2490.036 | U61: 2490.036 | V61: 2490.036 | W61: 2618.214 | Y61: 2618.214 | Z61: 2618.214 | AA61: 2618.214 | AB61: 2618.214 | AD61: 2618.214 | AE61: 2618.214 | AF61: 2618.214 | AG61: 2618.214 | AI61: 2618.214 | AJ61: 2618.214 | AK61: 2618.214 | AL61: 2618.214 | AN61: 6077.674 | AO61: 6077.674 | AP61: 6077.674 | AQ61: 6078 | AS61: 6077.674 | AT61: 6077.674 | AU61: 6077.674 | AV61: 6077.674 | AX61: 6077.674 | AY61: 6077.674 | BC61: 1175.996 | BD61: 1790.036 | BE61: 2490.036 | BF61: 2618.214 | BG61: 2618.214 | BH61: 2618.214 | BI61: 2618.214 | BJ61: 6078 | BK61: 6077.674
B62: Capital to be Paid-in | J62: 0 | K62: 0 | L62: 0 | M62: 0 | O62: 0 | P62: 0 | Q62: 0 | R62: 0 | T62: 0 | U62: 0 | V62: 0 | W62: 0 | Y62: 0 | Z62: 0 | AA62: 0 | AB62: 0 | AD62: 0 | AE62: 0 | AF62: 0 | AG62: 0 | AI62: 0 | AJ62: 0 | AK62: 0 | AL62: 3459.25 | AN62: 0 | AO62: 0 | AP62: 0 | AQ62: 0 | AS62: 0 | AT62: 0 | AU62: 0 | AV62: 0 | AX62: 0 | AY62: 0 | BC62: 0 | BD62: 0 | BE62: 0 | BF62: 0 | BG62: 0 | BH62: 0 | BI62: 3459.25 | BJ62: 0 | BK62: 0
B63: Capital reserve | E63: 0 | F63: 0 | G63: 0 | H63: 1431.935 | J63: 1417.895 | K63: 1417.895 | L63: 1405.194196 | M63: 1405.194 | O63: 1356.787 | P63: 1356.787 | Q63: 1356.481 | R63: 1356.481 | T63: 1356.481 | U63: 1356.787 | V63: 1356.481 | W63: 1355.616 | Y63: 1355.616 | Z63: 1355.616 | AA63: 1355.616 | AB63: 1355.616 | AD63: 1355.616 | AE63: 1355.616 | AF63: 1355.616 | AG63: 1355.616 | AI63: 1360.046 | AJ63: 1360.072 | AK63: 1360.072 | AL63: 1349.809 | AN63: 1349.809 | AO63: 1349.809 | AP63: 1353.937 | AQ63: 1354 | AS63: 1353.937 | AT63: 1353.937 | AU63: 1353.937 | AV63: 1353.937 | AX63: 1353.937 | AY63: 1353.937 | BC63: 1431.935 | BD63: 1405.194 | BE63: 1356.481 | BF63: 1355.616 | BG63: 1355.616 | BH63: 1355.616 | BI63: 1349.809 | BJ63: 1354 | BK63: 1353.937
B64: Accumulated losses | E64: 0 | F64: 0 | G64: 0 | H64: -68.692 | J64: -419.894 | K64: -338.678 | L64: -503.38 | M64: -688.72 | O64: -1014.532 | P64: -933.897 | Q64: -1138.855 | R64: -2156.284 | T64: -2304.767 | U64: -933.897 | V64: -2433.821 | W64: -2658.168 | Y64: -2924.067 | Z64: -3143.725 | AA64: -2981.821 | AB64: -2936.585 | AD64: -3901.616 | AE64: -3878.076 | AF64: -3835.366 | AG64: -4148.598 | AI64: -4725.817 | AJ64: -4693.134 | AK64: -4971.76 | AL64: -5418.431 | AN64: -5924.644 | AO64: -6080.191 | AP64: -6310.632 | AQ64: -6617 | AS64: -6785.96 | AT64: -7090.213 | AU64: -7086.337 | AV64: -8167.31 | AX64: -8448.523 | AY64: -8167.309 | BC64: -68.692 | BD64: -688.72 | BE64: -2156.284 | BF64: -2658.168 | BG64: -2936.585 | BH64: -4148.598 | BI64: -5418.431 | BJ64: -6617 | BK64: -8167.31
B65: Profit for the period | J65: 0 | K65: 0 | L65: 0 | M65: 0 | O65: 0 | P65: 0 | Q65: 0 | R65: 0 | T65: 0 | U65: 0 | V65: 0 | W65: 0 | Y65: 0 | Z65: 0 | AA65: 0 | AB65: 0 | AD65: 0 | AE65: 0 | AF65: 0 | AG65: 0 | AI65: 0 | AJ65: 0 | AK65: 0 | AL65: 0 | AN65: 0 | AO65: 0 | AP65: 0 | AQ65: 0 | AS65: 0 | AT65: 0 | AU65: 0 | AV65: 0 | AX65: 0 | AY65: 142.384 | BC65: 0 | BD65: 0 | BE65: 0 | BF65: 0 | BG65: 0 | BH65: 0 | BI65: 0 | BJ65: 0 | BK65: 0
B66: Other comprehensive income (loss) | E66: 0 | F66: 0 | G66: 0 | H66: -73.977 | J66: -169.429 | K66: -126.077 | L66: -101.317063 | M66: -49.293 | O66: -189.666 | P66: -178.359 | Q66: -210.526 | R66: -160.429 | T66: -116.392 | U66: -178.359 | V66: -382.256 | W66: -757.705 | Y66: -610.848 | Z66: -1088.79 | AA66: -1058.014 | AB66: -840.887 | AD66: -685.097 | AE66: -649.805 | AF66: -601.691 | AG66: -503.033 | AI66: -462.103 | AJ66: -401.316 | AK66: -460.181 | AL66: -414.052 | AN66: -663.939 | AO66: -652.112 | AP66: -496.558 | AQ66: -288 | AS66: -268.548 | AT66: -130.818 | AU66: -122.448 | AV66: -277.132 | AX66: -304.343 | AY66: -102.187 | BC66: -73.977 | BD66: -49.293 | BE66: -160.429 | BF66: -757.705 | BG66: -840.887 | BH66: -503.033 | BI66: -414.052 | BJ66: -288 | BK66: -277.132
B67: Non-controlling interest | E67: 0 | F67: 0 | G67: 0 | H67: 5.83 | J67: 5.575418051 | K67: 5.601 | L67: 7.582 | M67: 6.888 | O67: 6.889 | P67: 6.688 | Q67: 7.908 | R67: 7.653 | T67: 7.806 | U67: 6.688 | V67: 8.198 | W67: 10.82 | Y67: 11.162 | Z67: 11.252 | AA67: 12.153 | AB67: 16.58 | AD67: 16.423 | AE67: 16.401 | AF67: 16.478 | AG67: 16.283 | AI67: 11.743 | AJ67: 11.908 | AK67: 11.86 | AL67: 11.798 | AN67: 11.549 | AO67: 10.585 | AP67: 6.322 | AQ67: 6 | AS67: =6207/1000 -> 6.207 | AT67: 6.125 | AU67: 6.08 | AV67: 6.177 | AX67: 6.1 | AY67: 6.076 | BC67: 5.83 | BD67: 6.888 | BE67: 7.653 | BF67: 10.82 | BG67: 16.58 | BH67: 16.283 | BI67: 11.798 | BJ67: 6 | BK67: 6.177
B69: * From 1Q20, includes IFRS16 impacts
B70: * From 1Q17. in accordance with the new standard for accounting of biological assets (CPC27/IAS16 and CPC29/IAS41).

Sheet 10.INFORMATION
B2: Fiscal Year - Biosev
B4: The Company’s fiscal year begins on April 1st of each year and ends on March 31 of the subsequent calendar year because the Company works per crop.
B5: When in doubt, you can consult our Calendar of Events available on our Investor Relations website.
B6: Crop | C6: Months
B7: 1° quarter of the crop | C7: April, May and June
B8: 2° quarter of the crop | C8: July, August and September
B9: 3° quarter of the crop | C9: October, November and December
B10: 4° quarter of the crop | C10: January, February and March
B11: Crop Year | C11: April until March of the subsequent calendar year
